{"text_format":"1","workbook":"xlsx","n_sheets":8,"sheets":["(はじめにお読み下さい)報告書作成手順","実績報告書","個票1","個票2","職員表","実績額一覧","法人実績額内訳","計算用"],"not_rendered":{"charts":0,"images":0,"macros":1,"external_links":0,"defined_names":10,"comments":5,"pivot_tables":0},"unopened":[],"bounds":{"document_bytes":16777216,"sheet_cells":100000,"rows_first":2000,"rows_last":500,"rows_between":2000,"halvings":0,"cell_chars":16384,"cell_head_chars":4096},"cells_cut":0,"cells_raw":0,"read":"whole","date_system":"1900"}

{"sheet":"(はじめにお読み下さい)報告書作成手順","index":0,"n_rows":14,"n_cols":3,"rows_kept":14,"cut":false,"hidden":false,"merged":[[1,0,1,2]]}
[]
["本報告書の作成手順"]
[]
["手順","法人本部の作業","各事業所の作業"]
[1,null,"証憑書類を各補助事業ごとに整理（表紙＋領収証等の写し）\n※整理方法については，別紙マニュアルP.6～7参照"]
[{"$f":"A5+1","v":2},"【実績報告書】へ宮城県から受け取った交付決定通知書に記載されている日付と指令番号を入力（紫色のセルに入力）\n※１件の交付決定に対して１件の実績報告書を作成していただくことになります。複数回交付申請を行い，複数の交付決定を受けている法人は，それぞれの交付決定に対して，実績報告書を作成してください。\n※交付決定日や指令番号が不明な場合は，申請法人名・申請時期を明記の上，「covid-jisseki@pref.miyagi.lg.jp」までメールにてお問い合わせください。"]
[{"$f":"A6+1","v":3},"各事業所へ【個票●】及び【職員表】への情報入力，証憑書類の提出を依頼\n※個票及び職員表へ入力を依頼する情報及び証憑書類は，上記で入力した交付決定通知分となりますので，交付申請の際と同じ事業所を取りまとめてください。"]
[4,null,"以下の作業を行った上で，法人本部へ証憑書類とともに送付\n【個票●】\n・水色セル：必要情報を入力\n・緑色セル：プルダウンから選択\n【職員表】\n・慰労金を受領した職員について，氏名や支払年月日などの情報を職員表に取りまとめ(水色セル：必要情報を入力，緑色セル：プルダウンから選択)"]
[5,"各事業所の【個票】のシートを１つのExcelファイルに集約し，個票シート名を【個票●】（●は１からの通し番号）に修正"]
[6,"各事業所の【職員表】を法人単位で一覧表として取りまとめ\n※氏名（漢字、カナ），生年月日が一致する者がいる場合，「重複受給者確認用」欄に「可」と表示されません。\n※記入欄が不足する場合は，6行目～205行目を行ごとコピーし，206行目に右クリック→「コピーしたセルの挿入」で挿入。"]
[7,"【個票●】の内容が，【実績額一覧】及び【法人実績額内訳】に正しく反映されていることを確認\n※【実績額一覧】及び【法人実績額内訳】は個票の入力内容をもとに自動入力されます。\n※実績額が交付決定額を下回る場合，差額分を返金していただきます。\n　なお，実績額が交付決定額を上回る場合でも，交付決定額以上の補助金を追加交付することはできません。"]
[8,"【実績報告書】に，日付，法人住所，法人名，法人代表者の役職と氏名，報告内容に関する連絡先を入力後，印刷し，法人代表者印を押印"]
[9,"Excelファイル名を法人名に変更後，実績報告書一式のExcelファイルを電子媒体（CD等）へ格納\n電子媒体（CD等）のディスク等の盤面に所要の事項（※）を記載したラベルを貼付又はフェルトペン等で記入\n※盤面に記載する事項\n・新型コロナ交付金(介護分)実績報告書\n・法人名\n・報告年月日（実績報告書に記載した日付）"]
[10,"提出物\n①法人代表者印を押印した実績報告書の紙媒体\n②Excelファイルを格納した電子媒体(CD等)\n③表紙を付けて整理した実績額の内訳が分かる証憑書類（領収証等の写し）\n\n①～③を県に直接郵送で提出\n郵送で提出する場合には，封筒に「新型コロナ支援交付金(介護分)実績報告書　在中」と明記\n提出先：〒980-8570\n　　　　仙台市青葉区本町３丁目８番１号\n　　　　宮城県庁　長寿社会政策課　新型コロナ交付金(介護分)担当　あて"]

{"sheet":"実績報告書","index":1,"n_rows":43,"n_cols":62,"rows_kept":43,"cut":false,"hidden":false,"merged":[[6,22,6,36],[19,59,19,60],[20,59,20,60],[12,1,12,2],[19,47,19,48],[19,53,19,54],[20,47,20,48],[20,53,20,54],[12,8,12,19],[7,35,8,36],[7,22,7,34],[2,35,2,36],[2,32,2,33],[2,29,2,30],[20,2,20,22],[21,2,21,22],[18,2,18,22],[18,23,18,27],[19,23,19,27],[20,23,20,27],[21,23,21,27],[13,0,13,38],[10,0,10,38],[15,1,15,9],[15,10,15,17],[19,2,19,22],[8,22,8,34],[42,28,42,36],[41,20,42,22],[41,24,41,27],[42,24,42,27],[41,28,41,36],[39,20,39,26],[40,20,40,26],[39,28,39,36],[40,28,40,36],[12,20,12,21],[38,28,38,36],[37,28,37,36],[37,20,38,23],[37,24,37,27],[38,24,38,27]]}
[]
[]
[null,null,null,null,null,null,null,null,null,null,null,null,null,null,null,null,null,null,null,null,null,null,null,null,null,null,null,null,"　　令和",2,null,"年",12,null,"月",13,null,"日"]
[]
["宮城県知事　村井　嘉浩　殿"]
[]
[null,null,null,null,null,null,null,null,null,null,null,null,null,null,null,null,null,null,null,null,null,"（法人住所）","仙台市青葉区本町３丁目８－１"]
[null,null,null,null,null,null,null,null,null,null,null,null,null,null,null,null,null,null,null,null,null,"（法人名）","社会福祉法人宮城県",null,null,null,null,null,null,null,null,null,null,null,null,"印"]
[null,null,null,null,null,null,null,null,null,null,null,null,null,null,null,null,null,null,null,null,null,"（役職・代表者名）","理事長　宮城　太郎"]
[]
["令和２年度新型コロナウイルス感染症緊急包括支援交付金（介護分）に係る実績報告書"]
[]
[null,"令和",null,2,"年",11,"月",24,"日付け宮城県（長政）指令第",null,null,null,null,null,null,null,null,null,null,null,1185,null,"号で交付決定通知のありました新型コロナ"]
["ウイルス感染症緊急包括支援交付金（介護分）については，事業が完了しましたので，補助金等交付規則（昭和５１年宮城県規則第３６号）第１２条の規定により関係書類を添えて報告します。"]
[]
[]
[]
[null,null,null,null,null,null,null,null,null,null,null,null,null,null,null,null,null,null,null,null,null,null,null,null,null,null,null,null,null,null,null,null,null,null,null,null,null,null,null,null,null,{"$f":"IF(BH20=BH21,\"○\",\"! 職員表の合計人数と個票の合計人数が一致しません\")","v":"○"}]
[]
[null,null,null,null,null,null,null,null,null,null,null,null,null,null,null,null,null,null,null,null,null,null,null,null,null,null,null,null,null,null,null,null,null,null,null,null,null,null,null,null,null,"職員表計",null,null,"20万円",null,null,{"$f":"COUNTIFS(職員表!O6:O1386,20)","v":0},null,"人","5万円",null,null,{"$f":"COUNTIFS(職員表!O6:O1386,5)","v":5},null,"人","合計",null,null,{"$f":"SUM(AV20,BB20)","v":5},null,"人"]
[null,null,null,null,null,null,null,null,null,null,null,null,null,null,null,null,null,null,null,null,null,null,null,null,null,null,null,null,null,null,null,null,null,null,null,null,null,null,null,null,null,"個表計",null,null,"20万円",null,null,{"$f":"SUM(実績額一覧!AJ5:AJ104)","v":0},null,"人","5万円",null,null,{"$f":"SUM(実績額一覧!AK5:AK104)","v":5},null,"人","合計",null,null,{"$f":"SUM(AV21,BB21)","v":5},null,"人"]
[]
[null,"（添付書類）"]
[null,"１　新型コロナウイルス感染症緊急包括支援交付金（介護分）に関する事業実績報告書"]
[null,null,null,"（事業所単位）"]
[null,"２　介護慰労金受給職員表（法人単位）"]
[null,"３　事業所・施設別実績報告額一覧（サービス別一覧）"]
[null,"４　法人実績額内訳"]
[null,"５　証憑書類（領収証等の写し）"]
[]
[]
[]
[]
[]
[]
[null,null,null,null,null,null,null,null,null,null,null,null,null,null,null,null,null,null,null,"【報告内容に関する連絡先】"]
[]
[null,null,null,null,null,null,null,null,null,null,null,null,null,null,null,null,null,null,null,null," 返納通知書等\n 書類送付先",null,null,null,"郵便番号",null,null,null,"980-8570"]
[null,null,null,null,null,null,null,null,null,null,null,null,null,null,null,null,null,null,null,null,null,null,null,null,"住所",null,null,null,"仙台市青葉区本町３丁目８－１"]
[null,null,null,null,null,null,null,null,null,null,null,null,null,null,null,null,null,null,null,null," 部署名・役職",null,null,null,null,null,null,null,"法人本部・事務長"]
[null,null,null,null,null,null,null,null,null,null,null,null,null,null,null,null,null,null,null,null," 担当者氏名",null,null,null,null,null,null,null,"長寿　花子　"]
[null,null,null,null,null,null,null,null,null,null,null,null,null,null,null,null,null,null,null,null," 連絡先",null,null,null,"電話番号",null,null,null,"022-211-2549"]
[null,null,null,null,null,null,null,null,null,null,null,null,null,null,null,null,null,null,null,null,null,null,null,null,"e-mail",null,null,null,"choujut2@pref.miyagi.lg.jp"]

{"sheet":"個票1","index":2,"n_rows":59,"n_cols":84,"rows_kept":59,"cut":false,"hidden":false,"merged":[[46,37,47,38],[46,32,47,36],[46,28,47,31],[20,23,20,27],[35,28,35,31],[35,32,35,36],[33,12,33,38],[25,12,25,38],[26,12,26,38],[27,12,27,38],[21,28,22,31],[21,32,22,36],[21,37,22,38],[36,28,37,31],[36,32,37,36],[46,26,47,27],[45,23,45,27],[40,37,40,38],[41,37,41,38],[42,37,42,38],[41,23,41,25],[42,23,42,25],[38,26,38,27],[43,23,43,25],[41,26,41,27],[41,28,41,33],[41,34,41,36],[38,23,38,25],[39,37,39,38],[45,28,45,31],[45,37,45,38],[45,32,45,36],[43,34,43,36],[43,37,43,38],[38,37,38,38],[58,7,58,11],[58,12,58,38],[57,7,57,11],[48,12,48,38],[49,12,49,38],[50,12,50,38],[51,12,51,38],[52,12,52,38],[57,12,57,38],[53,7,53,11],[53,12,53,38],[54,7,54,11],[54,12,54,38],[55,7,55,11],[55,12,55,38],[56,7,56,11],[56,12,56,38],[48,0,48,6],[48,7,48,11],[49,7,49,11],[50,7,50,11],[51,7,51,11],[52,7,52,11],[38,28,38,33],[38,34,38,36],[40,34,40,36],[43,26,43,27],[40,26,40,27],[40,28,40,33],[42,26,42,27],[42,28,42,33],[42,34,42,36],[40,23,40,25],[43,28,43,33],[38,0,39,9],[39,23,39,25],[39,26,39,27],[39,28,39,33],[39,34,39,36],[40,1,43,9],[46,23,47,25],[9,0,9,6],[7,11,7,24],[8,11,8,24],[9,41,9,46],[18,7,18,11],[18,12,18,14],[18,16,18,20],[18,21,18,23],[9,25,9,27],[9,28,9,29],[9,30,9,31],[10,0,11,7],[15,37,15,38],[9,7,9,24],[16,37,17,38],[16,32,17,36],[16,28,17,31],[13,0,13,38],[9,32,9,38],[2,0,2,38],[4,0,4,38],[6,14,6,18],[7,0,8,2],[7,7,7,10],[8,7,8,10],[7,25,8,27],[6,7,6,13],[6,19,6,38],[6,0,6,6],[8,28,8,32],[7,28,7,32],[8,3,8,6],[7,3,7,6],[7,33,7,38],[8,33,8,38],[23,0,23,6],[24,12,24,38],[23,12,23,38],[24,7,24,11],[23,7,23,11],[18,30,18,32],[15,28,15,31],[15,32,15,36],[20,32,20,36],[20,37,20,38],[20,28,20,31],[21,23,22,25],[21,26,22,27],[29,12,29,38],[30,12,30,38],[31,12,31,38],[32,7,32,11],[32,12,32,38],[36,37,37,38],[25,7,25,11],[26,7,26,11],[27,7,27,11],[35,37,35,38],[33,7,33,11],[28,7,28,11],[29,7,29,11],[31,7,31,11],[30,7,30,11],[28,12,28,38]]}
[]
[]
["新型コロナウイルス感染症緊急包括支援交付金（介護分）に関する事業実績報告書（事業所単位）",null,null,null,null,null,null,null,null,null,null,null,null,null,null,null,null,null,null,null,null,null,null,null,null,null,null,null,null,null,null,null,null,null,null,null,null,null,null,null,null,null,null,null,null,null,null,null,null,null,null,null,null,null,null,null,null,null,null,null,null,null,null,null,null,null,null,null,null,null,null,null,null,null,null,null,null,null,null,"（１）①　",null,null,"（２）②"]
[null,null,null,null,null,null,null,null,null,null,null,null,null,null,null,null,null,null,null,null,null,null,null,null,null,null,null,null,null,null,null,null,null,null,null,null,null,null,null,null,null,null,null,null,null,null,null,null,null,null,null,null,null,null,null,null,null,null,null,null,null,null,null,null,null,null,null,null,null,null,null,null,null,null,null,null,null,null,null,"共通",null,"単価","共通"]
["施設概要",null,null,null,null,null,null,null,null,null,null,null,null,null,null,null,null,null,null,null,null,null,null,null,null,null,null,null,null,null,null,null,null,null,null,null,null,null,null,null,null,null,null,null,null,null,null,null,null,null,null,null,null,null,null,null,null,null,null,null,null,null,null,null,null,null,null,null,null,null,null,null,null,null,null,null,null,null,"通所介護事業所（通常規模型）",892,"/事業所",null,200,"/事業所"]
[null,null,null,null,null,null,null,null,null,null,null,null,null,null,null,null,null,null,null,null,null,null,null,null,null,null,null,null,null,null,null,null,null,null,null,null,null,null,null,null,null,null,null,null,null,null,null,null,null,null,null,null,null,null,null,null,null,null,null,null,null,null,null,null,null,null,null,null,null,null,null,null,null,null,null,null,null,null,"通所介護事業所（大規模型（Ⅰ））",1137,"/事業所",null,200,"/事業所"]
["介護保険事業所番号",null,null,null,null,null,null,"0420123456",null,null,null,null,null,null,"事業所名称",null,null,null,null,"特別養護老人ホーム長寿社会政策課",null,null,null,null,null,null,null,null,null,null,null,null,null,null,null,null,null,null,null,null,null,null,null,null,null,null,null,null,null,null,null,null,null,null,null,null,null,null,null,null,null,null,null,null,null,null,null,null,null,null,null,null,null,null,null,null,null,null,"通所介護事業所（大規模型（Ⅱ））",1480,"/事業所",null,200,"/事業所"]
["所在地",null,null,"郵便番号",null,null,null,"都道府県名",null,null,null,"住所",null,null,null,null,null,null,null,null,null,null,null,null,null,"連絡先",null,null,"電話番号",null,null,null,null,"担当部署名",null,null,null,null,null,null,null,null,null,null,null,null,null,null,null,null,null,null,null,null,null,null,null,null,null,null,null,null,null,null,null,null,null,null,null,null,null,null,null,null,null,null,null,null,"地域密着型通所介護事業所(療養通所介護事業所を含む)",384,"/事業所",null,200,"/事業所"]
[null,null,null,"980-8570",null,null,null,"宮城県",null,null,null,"仙台市青葉区本町３丁目８－１",null,null,null,null,null,null,null,null,null,null,null,null,null,null,null,null,"022-211-2549",null,null,null,null,"施設支援班",null,null,null,null,null,null,null,null,null,null,null,null,null,null,null,null,null,null,null,null,null,null,null,null,null,null,null,null,null,null,null,null,null,null,null,null,null,null,null,null,null,null,null,null,"認知症対応型通所介護事業所",375,"/事業所",null,200,"/事業所"]
["提供サービス",null,null,null,null,null,null,"介護老人福祉施設",null,null,null,null,null,null,null,null,null,null,null,null,null,null,null,null,null,"定員",null,null,40,null,"人",null,null,null,null,null,null,null,null,null,null,null,null,null,null,null,null,null,null,null,null,null,null,null,null,null,null,null,null,null,null,null,null,null,null,null,null,null,null,null,null,null,null,null,null,null,null,null,"通所リハビリテーション事業所（通常規模型）",939,"/事業所",null,200,"/事業所"]
["事業区分",null,null,null,null,null,null,null,null," 介護慰労金事業　→　1を記載",null,null,null,null,null,null,null,null,null,null,null,null,null,null,null,"  感染対策費用助成事業　→ 2を記載",null,null,null,null,null,null,null,null,null,null,null,null,null,null,null,null,null,null,null,null,null,null,null,null,null,null,null,null,null,null,null,null,null,null,null,null,null,null,null,null,null,null,null,null,null,null,null,null,null,null,null,null,"通所リハビリテーション事業所（大規模型（Ⅰ））",1181,"/事業所",null,200,"/事業所"]
[null,null,null,null,null,null,null,null,null," 個別再開支援助成事業　→ 3を記載",null,null,null,null,null,null,null,null,null,null,null,null,null,null,null,"　再開環境整備助成事業　→ 4を記載",null,null,null,null,null,null,null,null,null,null,null,null,null,null,null,null,null,null,null,null,null,null,null,null,null,null,null,null,null,null,null,null,null,null,null,null,null,null,null,null,null,null,null,null,null,null,null,null,null,null,null,null,"通所リハビリテーション事業所（大規模型（Ⅱ））",1885,"/事業所",null,200,"/事業所"]
[null,null,null,null,null,null,null,null,null,null,null,null,null,null,null,null,null,null,null,null,null,null,null,null,null,null,null,null,null,null,null,null,null,null,null,null,null,null,null,null,null,null,null,null,null,null,null,null,null,null,null,null,null,null,null,null,null,null,null,null,null,null,null,null,null,null,null,null,null,null,null,null,null,null,null,null,null,null,"短期入所生活介護事業所",{"$f":"CD13*個票1!$AC$10","v":1760},"/定員",44,200,"/事業所"]
["支出実績額",null,null,null,null,null,null,null,null,null,null,null,null,null,null,null,null,null,null,null,null,null,null,null,null,null,null,null,null,null,null,null,null,null,null,null,null,null,null,null,null,null,null,null,null,null,null,null,null,null,null,null,null,null,null,null,null,null,null,null,null,null,null,null,null,null,null,null,null,null,null,null,null,null,null,null,null,null,"短期入所療養介護事業所",{"$f":"CD14*個票1!$AC$10","v":1760},"/定員",44,200,"/事業所"]
[null,null,null,null,null,null,null,null,null,null,null,null,null,null,null,null,null,null,null,null,null,null,null,null,null,null,null,null,null,null,null,null,null,null,null,null,null,null,null,null,null,null,null,null,null,null,null,null,null,null,null,null,null,null,null,null,null,null,null,null,null,null,null,null,null,null,null,null,null,null,null,null,null,null,null,null,null,null,"訪問介護事業所",534,"/事業所",null,200,"/事業所"]
["１．介護慰労金事業",null,null,null,null,null,null,null," ※対象職員の氏名等について、職員表を作成すること。",null,null,null,null,null,null,null,null,null,null,null,null,null,null,null,null,null,null,null,null,null,null,null,null,null,null,null,null,null,null,null,null,null,null,null,null,null,null,null,null,null,null,null,null,null,null,null,null,null,null,null,null,null,null,null,null,null,null,null,null,null,null,null,null,null,null,null,null,null,"訪問入浴介護事業所",564,"/事業所",null,200,"/事業所"]
[null,null,null,null,null,null,null,null,null,null,null,null,null,null,null,null,null,null,null,null,null,null,null,null,null,null,null,null,"支給\n実績額①",null,null,null,{"$f":"(20*M19+5*V19)*10+AE19","v":151},null,null,null,null,"千円",null,null,null,null,null,null,null,null,null,null,null,null,null,null,null,null,null,null,null,null,null,null,null,null,null,null,null,null,null,null,null,null,null,null,null,null,null,null,null,null,"訪問看護事業所",518,"/事業所",null,200,"/事業所"]
["【慰労金を実際に支給した人数及びその振込手数料】",null,null,null,null,null,null,null,null,null,null,null,null,null,null,null,null,null,null,null,null,null,null,null,null,null,null,null,null,null,null,null,null,null,null,null,null,null,null,null,null,null,null,null,null,null,null,null,null,null,null,null,null,null,null,null,null,null,null,null,null,null,null,null,null,null,null,null,null,null,null,null,null,null,null,null,null,null,"訪問リハビリテーション事業所",227,"/事業所",null,200,"/事業所"]
["慰労金の区分・人数",null,null,null,null,null,null,"20万円対象",null,null,null,null,null,null,null,"人","5万円対象",null,null,null,null,3,null,null,"人","振込手数料",null,null,null,null,1,null,null,"千円（千円未満切り捨て）",null,null,null,null,null,null,{"$f":"IF(M19=0,,\"有\")","v":0},null,null,null,null,null,null,null,null,null,null,null,null,null,null,null,null,null,null,null,null,null,null,null,null,null,null,null,null,null,null,null,null,null,null,null,null,null,"定期巡回・随時対応型訪問介護看護事業所",508,"/事業所",null,200,"/事業所"]
[null,null,null,null,null,null,null,null,null,null,null,null,null,null,null,null,null,null,null,null,null,null,null,null,null,null,null,null,null,null,null,null,null,null,null,null,null,null,null,null,null,null,null,null,null,null,null,null,null,null,null,null,null,null,null,null,null,null,null,null,null,null,null,null,null,null,null,null,null,null,null,null,null,null,null,null,null,null,"夜間対応型訪問介護事業所",204,"/事業所",null,200,"/事業所"]
["2．感染症対策を徹底した上での介護サービス提供支援事業",null,null,null,null,null,null,null,null,null,null,null,null,null,null,null,null,null,null,null,null,null,null,"補助上限額",null,null,null,null,null,null,null,null,null,null,null,null,null,null,null,null,null,null,null,null,null,null,null,null,null,null,null,null,null,null,null,null,null,null,null,null,null,null,null,null,null,null,null,null,null,null,null,null,null,null,null,null,null,null,"居宅介護支援事業所",148,"/事業所",null,200,"/事業所"]
[null,null,null,null,null,null,null,null,null,null,null,null,null,null,null,null,null,null,null,null,null,null,null,{"$f":"IFERROR(VLOOKUP(H10,個票1!CA5:CB39,2,FALSE),\"\")","v":1520},null,null,"千円",null,"支出\n実績額②",null,null,null,{"$f":"ROUNDDOWN(H34/1000,0)","v":1529},null,null,null,null,"千円",null,null,null,null,null,null,null,null,null,null,null,null,null,null,null,null,null,null,null,null,null,null,null,null,null,null,null,null,null,null,null,null,null,null,null,null,null,null,null,null,"福祉用具貸与事業所",148,"/事業所",null,200,"/事業所"]
["【感染拡大防止対策や介護サービスの提供体制の確保のための経費として実際に要した額】",null,null,null,null,null,null,null,null,null,null,null,null,null,null,null,null,null,null,null,null,null,null,null,null,null,null,null,null,null,null,null,null,null,null,null,null,null,null,null,null,null,null,null,null,null,null,null,null,null,null,null,null,null,null,null,null,null,null,null,null,null,null,null,null,null,null,null,null,null,null,null,null,null,null,null,null,null,"居宅療養管理指導事業所",33,"/事業所",null,200,"/事業所"]
["科目",null,null,null,null,null,null,"支出額（円）",null,null,null,null,"用途・品目・数量等",null,null,null,null,null,null,null,null,null,null,null,null,null,null,null,null,null,null,null,null,null,null,null,null,null,null,null,null,null,null,null,null,null,null,null,null,null,null,null,null,null,null,null,null,null,null,null,null,null,null,null,null,null,null,null,null,null,null,null,null,null,null,null,null,null,"小規模多機能型居宅介護事業所",475,"/事業所",null,200,"/事業所"]
["賃金・報酬",null,null,null,null,null,null,null,null,null,null,null,null,null,null,null,null,null,null,null,null,null,null,null,null,null,null,null,null,null,null,null,null,null,null,null,null,null,null,null,null,null,null,null,null,null,null,null,null,null,null,null,null,null,null,null,null,null,null,null,null,null,null,null,null,null,null,null,null,null,null,null,null,null,null,null,null,null,"看護小規模多機能型居宅介護事業所",638,"/事業所",null,200,"/事業所"]
["謝金",null,null,null,null,null,null,null,null,null,null,null,null,null,null,null,null,null,null,null,null,null,null,null,null,null,null,null,null,null,null,null,null,null,null,null,null,null,null,null,null,null,null,null,null,null,null,null,null,null,null,null,null,null,null,null,null,null,null,null,null,null,null,null,null,null,null,null,null,null,null,null,null,null,null,null,null,null,"介護老人福祉施設",{"$f":"CD26*個票1!$AC$10","v":1520},"/定員",38,"-"]
["会議費",null,null,null,null,null,null,null,null,null,null,null,null,null,null,null,null,null,null,null,null,null,null,null,null,null,null,null,null,null,null,null,null,null,null,null,null,null,null,null,null,null,null,null,null,null,null,null,null,null,null,null,null,null,null,null,null,null,null,null,null,null,null,null,null,null,null,null,null,null,null,null,null,null,null,null,null,null,"地域密着型介護老人福祉施設",{"$f":"CD27*個票1!$AC$10","v":1600},"/定員",40,"-"]
["旅費",null,null,null,null,null,null,null,null,null,null,null,null,null,null,null,null,null,null,null,null,null,null,null,null,null,null,null,null,null,null,null,null,null,null,null,null,null,null,null,null,null,null,null,null,null,null,null,null,null,null,null,null,null,null,null,null,null,null,null,null,null,null,null,null,null,null,null,null,null,null,null,null,null,null,null,null,null,"介護老人保健施設",{"$f":"CD28*個票1!$AC$10","v":1520},"/定員",38,"-"]
["需用費",null,null,null,null,null,null,446420,null,null,null,null,"マスク（148,020円分），消毒用アルコール（198,800円分），フェイスシールド（39,800円分），手袋（59,800円分）",null,null,null,null,null,null,null,null,null,null,null,null,null,null,null,null,null,null,null,null,null,null,null,null,null,null,null,null,null,null,null,null,null,null,null,null,null,null,null,null,null,null,null,null,null,null,null,null,null,null,null,null,null,null,null,null,null,null,null,null,null,null,null,null,null,"介護医療院",{"$f":"CD29*個票1!$AC$10","v":1920},"/定員",48,"-"]
["役務費",null,null,null,null,null,null,null,null,null,null,null,null,null,null,null,null,null,null,null,null,null,null,null,null,null,null,null,null,null,null,null,null,null,null,null,null,null,null,null,null,null,null,null,null,null,null,null,null,null,null,null,null,null,null,null,null,null,null,null,null,null,null,null,null,null,null,null,null,null,null,null,null,null,null,null,null,null,"介護療養型医療施設",{"$f":"CD30*個票1!$AC$10","v":1720},"/定員",43,"-"]
["委託料",null,null,null,null,null,null,null,null,null,null,null,null,null,null,null,null,null,null,null,null,null,null,null,null,null,null,null,null,null,null,null,null,null,null,null,null,null,null,null,null,null,null,null,null,null,null,null,null,null,null,null,null,null,null,null,null,null,null,null,null,null,null,null,null,null,null,null,null,null,null,null,null,null,null,null,null,null,"認知症対応型共同生活介護事業所",{"$f":"CD31*個票1!$AC$10","v":1440},"/定員",36,"-"]
["使用料及び賃借料",null,null,null,null,null,null,null,null,null,null,null,null,null,null,null,null,null,null,null,null,null,null,null,null,null,null,null,null,null,null,null,null,null,null,null,null,null,null,null,null,null,null,null,null,null,null,null,null,null,null,null,null,null,null,null,null,null,null,null,null,null,null,null,null,null,null,null,null,null,null,null,null,null,null,null,null,null,"養護老人ホーム（定員30人以上）",{"$f":"CD32*個票1!$AC$10","v":1480},"/定員",37,"-"]
["備品購入費",null,null,null,null,null,null,1082800,null,null,null,null,"非接触型体温計（598,800円×1台），面会用タブレット端末（96,800円×5台）",null,null,null,null,null,null,null,null,null,null,null,null,null,null,null,null,null,null,null,null,null,null,null,null,null,null,null,null,null,null,null,null,null,null,null,null,null,null,null,null,null,null,null,null,null,null,null,null,null,null,null,null,null,null,null,null,null,null,null,null,null,null,null,null,null,"養護老人ホーム（定員29人以下）",{"$f":"CD33*個票1!$AC$10","v":1400},"/定員",35,"-"]
["合計",null,null,null,null,null,null,{"$f":"SUM(H25:L33)","v":1529220},null,null,null,null,"※用途・品目・数量等を上記に入力しきれない場合は，別紙にまとめてください。",null,null,null,null,null,null,null,null,null,null,null,null,null,null,null,null,null,null,null,null,null,null,null,null,null,null,null,null,null,null,null,null,null,null,null,null,null,null,null,null,null,null,null,null,null,null,null,null,null,null,null,null,null,null,null,null,null,null,null,null,null,null,null,null,null,"軽費老人ホーム（定員30人以上）",{"$f":"CD34*個票1!$AC$10","v":1480},"/定員",37,"-"]
[null,null,null,null,null,null,null,null,null,null,null,null,null,null,null,null,null,null,null,null,null,null,null,null,null,null,null,null,null,null,null,null,null,null,null,null,null,null,null,null,null,null,null,null,null,null,null,null,null,null,null,null,null,null,null,null,null,null,null,null,null,null,null,null,null,null,null,null,null,null,null,null,null,null,null,null,null,null,"軽費老人ホーム（定員29人以下）",{"$f":"CD35*個票1!$AC$10","v":1400},"/定員",35,"-"]
["3．在宅サービス事業所による利用者への再開支援への助成事業",null,null,null,null,null,null,null,null,null,null,null,null,null,null,null,null,null,null,null,null,null,null,null,null,null,null,null,null,null,null,null,null,null,null,null,null,null,null,null,null,null,null,null,null,null,null,null,null,null,null,null,null,null,null,null,null,null,null,null,null,null,null,null,null,null,null,null,null,null,null,null,null,null,null,null,null,null,"有料老人ホーム（定員30人以上）",{"$f":"CD36*個票1!$AC$10","v":1480},"/定員",37,"-"]
[null,null,null,null,null,null,null,null,null,null,null,null,null,null,null,null,null,null,null,null,null,null,null,null,null,null,null,null,"実績額③",null,null,null,{"$f":"IFERROR(IF(H10=\"居宅介護支援事業所\",(X41*AI41+X42*AI42+X43*AI43+X44*AI44)/1000,(X39*AI39+X40*AI40)/1000),\"\")","v":0},null,null,null,null,"千円",null,null,null,null,null,null,null,null,null,null,null,null,null,null,null,null,null,null,null,null,null,null,null,null,null,null,null,null,null,null,null,null,null,null,null,null,null,null,null,null,"有料老人ホーム（定員29人以下）",{"$f":"CD37*個票1!$AC$10","v":1400},"/定員",35,"-"]
["【在宅介護サービスの利用再開に向け，実際に事業所から働きかけを行った対象利用者数】",null,null,null,null,null,null,null,null,null,null,null,null,null,null,null,null,null,null,null,null,null,null,null,null,null,null,null,null,null,null,null,null,null,null,null,null,null,null,null,{"$f":"AG36-AG37","v":0},null,null,null,null,null,null,null,null,null,null,null,null,null,null,null,null,null,null,null,null,null,null,null,null,null,null,null,null,null,null,null,null,null,null,null,null,null,"サービス付き高齢者向け住宅（定員30人以上）",{"$f":"CD38*個票1!$AC$10","v":1480},"/定員",37,"-"]
["利用者１人あたり単価\n　（居宅介護支援以外共通）",null,null,null,null,null,null,null,null,null,"電話による確認",null,null,null,null,null,null,null,null,null,null,null,null,{"$f":"IF($H$10=\"介護予防・生活支援サービス事業の事業者\",\"\",1500)","v":1500},null,null,"円",null,"対象利用者数（実績）",null,null,null,null,null,null,null,null,"人",null,null,null,null,null,null,null,null,null,null,null,null,null,null,null,null,null,null,null,null,null,null,null,null,null,null,null,null,null,null,null,null,null,null,null,null,null,null,null,null,"サービス付き高齢者向け住宅（定員29人以下）",{"$f":"CD39*個票1!$AC$10","v":1400},"/定員",35,"-"]
[null,null,null,null,null,null,null,null,null,null,"訪問による確認",null,null,null,null,null,null,null,null,null,null,null,null,{"$f":"IF($H$10=\"介護予防・生活支援サービス事業の事業者\",\"\",3000)","v":3000},null,null,"円",null,"対象利用者数（実績）",null,null,null,null,null,null,null,null,"人",null,null,null,null,null,null,null,null,null,null,null,null,null,null,null,null,null,null,null,null,null,null,null,null,null,null,null,null,null,null,null,null,null,null,null,null,null,null,null,null,"介護予防・生活支援サービス事業の事業者"]
[null,"居宅介護支援のみ\n右欄に記載",null,null,null,null,null,null,null,null,"電話による確認",null,null,null,null,null,null,null,null,null,null,null,null,{"$f":"IF($H$10=\"介護予防・生活支援サービス事業の事業者\",\"\",1500)","v":1500},null,null,"円",null,"対象利用者数（実績）",null,null,null,null,null,null,null,null,"人"]
[null,null,null,null,null,null,null,null,null,null,"電話による確認（看護師等が協力した場合）",null,null,null,null,null,null,null,null,null,null,null,null,{"$f":"IF($H$10=\"介護予防・生活支援サービス事業の事業者\",\"\",4500)","v":4500},null,null,"円",null,"対象利用者数（実績）",null,null,null,null,null,null,null,null,"人"]
[null,null,null,null,null,null,null,null,null,null,"訪問による確認",null,null,null,null,null,null,null,null,null,null,null,null,{"$f":"IF($H$10=\"介護予防・生活支援サービス事業の事業者\",\"\",3000)","v":3000},null,null,"円",null,"対象利用者数（実績）",null,null,null,null,null,null,null,null,"人"]
[null,null,null,null,null,null,null,null,null,null,"訪問による確認（看護師等が協力した場合）",null,null,null,null,null,null,null,null,null,null,null,null,{"$f":"IF($H$10=\"介護予防・生活支援サービス事業の事業者\",\"\",6000)","v":6000},null,null,"円",null,"対象利用者数（実績）",null,null,null,null,null,null,null,null,"人"]
[]
["4．在宅サービス事業所における環境整備への助成事業",null,null,null,null,null,null,null,null,null,null,null,null,null,null,null,null,null,null,null,null,null,null,"補助上限額"]
[null,null,null,null,null,null,null,null,null,null,null,null,null,null,null,null,null,null,null,null,null,null,null,{"$f":"IFERROR(VLOOKUP(H10,個票1!CA5:CE39,5,FALSE),\"\")","v":"-"},null,null,"千円",null,"支出\n実績額④",null,null,null,{"$f":"ROUNDDOWN(H59/1000,0)","v":0},null,null,null,null,"千円"]
["【在宅サービス事業所における環境整備のための経費として実際に要した額】",null,null,null,null,null,null,null,null,null,null,null,null,null,null,null,null,null,null,null,null,null,null,null,null,null,null,null,null,null,null,null,null,null,null,null,null,null,null,null,{"$f":"AG46-AG47","v":0}]
["科目",null,null,null,null,null,null,"支出額（円）",null,null,null,null,"用途・品目・数量等"]
["賃金・報酬"]
["謝金"]
["会議費"]
["旅費"]
["需用費"]
["役務費"]
["委託料"]
["使用料及び賃借料"]
["備品購入費"]
["合計",null,null,null,null,null,null,{"$f":"SUM(H50:L58)","v":0},null,null,null,null,"※用途・品目・数量等を上記に入力しきれない場合は，別紙にまとめてください。"]

{"sheet":"個票2","index":3,"n_rows":59,"n_cols":84,"rows_kept":59,"cut":false,"hidden":false,"merged":[[58,7,58,11],[58,12,58,38],[55,7,55,11],[55,12,55,38],[56,7,56,11],[56,12,56,38],[57,7,57,11],[57,12,57,38],[52,7,52,11],[52,12,52,38],[53,7,53,11],[53,12,53,38],[54,7,54,11],[54,12,54,38],[49,7,49,11],[49,12,49,38],[50,7,50,11],[50,12,50,38],[51,7,51,11],[51,12,51,38],[46,23,47,25],[46,26,47,27],[46,28,47,31],[46,32,47,36],[46,37,47,38],[48,0,48,6],[48,7,48,11],[48,12,48,38],[43,23,43,25],[43,26,43,27],[43,28,43,33],[43,34,43,36],[43,37,43,38],[45,23,45,27],[45,28,45,31],[45,32,45,36],[45,37,45,38],[40,1,43,9],[40,23,40,25],[40,26,40,27],[40,28,40,33],[40,34,40,36],[40,37,40,38],[41,23,41,25],[41,26,41,27],[41,28,41,33],[41,34,41,36],[41,37,41,38],[42,23,42,25],[42,26,42,27],[42,28,42,33],[42,34,42,36],[42,37,42,38],[36,28,37,31],[36,32,37,36],[36,37,37,38],[38,0,39,9],[38,23,38,25],[38,26,38,27],[38,28,38,33],[38,34,38,36],[38,37,38,38],[39,23,39,25],[39,26,39,27],[39,28,39,33],[39,34,39,36],[39,37,39,38],[32,7,32,11],[32,12,32,38],[33,7,33,11],[33,12,33,38],[35,28,35,31],[35,32,35,36],[35,37,35,38],[29,7,29,11],[29,12,29,38],[30,7,30,11],[30,12,30,38],[31,7,31,11],[31,12,31,38],[26,7,26,11],[26,12,26,38],[27,7,27,11],[27,12,27,38],[28,7,28,11],[28,12,28,38],[23,0,23,6],[23,7,23,11],[23,12,23,38],[24,7,24,11],[24,12,24,38],[25,7,25,11],[25,12,25,38],[20,23,20,27],[20,28,20,31],[20,32,20,36],[20,37,20,38],[21,23,22,25],[21,26,22,27],[21,28,22,31],[21,32,22,36],[21,37,22,38],[16,28,17,31],[16,32,17,36],[16,37,17,38],[18,7,18,11],[18,12,18,14],[18,16,18,20],[18,21,18,23],[18,30,18,32],[9,32,9,38],[9,41,9,46],[10,0,11,7],[13,0,13,38],[15,28,15,31],[15,32,15,36],[15,37,15,38],[9,0,9,6],[9,7,9,24],[9,25,9,27],[9,28,9,29],[9,30,9,31],[2,0,2,38],[4,0,4,38],[6,0,6,6],[6,7,6,13],[6,14,6,18],[6,19,6,38],[7,33,7,38],[8,3,8,6],[8,7,8,10],[8,11,8,24],[8,28,8,32],[8,33,8,38],[7,0,8,2],[7,3,7,6],[7,7,7,10],[7,11,7,24],[7,25,8,27],[7,28,7,32]]}
[]
[]
["新型コロナウイルス感染症緊急包括支援交付金（介護分）に関する事業実績報告書（事業所単位）",null,null,null,null,null,null,null,null,null,null,null,null,null,null,null,null,null,null,null,null,null,null,null,null,null,null,null,null,null,null,null,null,null,null,null,null,null,null,null,null,null,null,null,null,null,null,null,null,null,null,null,null,null,null,null,null,null,null,null,null,null,null,null,null,null,null,null,null,null,null,null,null,null,null,null,null,null,null,"（１）①　",null,null,"（２）②"]
[null,null,null,null,null,null,null,null,null,null,null,null,null,null,null,null,null,null,null,null,null,null,null,null,null,null,null,null,null,null,null,null,null,null,null,null,null,null,null,null,null,null,null,null,null,null,null,null,null,null,null,null,null,null,null,null,null,null,null,null,null,null,null,null,null,null,null,null,null,null,null,null,null,null,null,null,null,null,null,"共通",null,"単価","共通"]
["施設概要",null,null,null,null,null,null,null,null,null,null,null,null,null,null,null,null,null,null,null,null,null,null,null,null,null,null,null,null,null,null,null,null,null,null,null,null,null,null,null,null,null,null,null,null,null,null,null,null,null,null,null,null,null,null,null,null,null,null,null,null,null,null,null,null,null,null,null,null,null,null,null,null,null,null,null,null,null,"通所介護事業所（通常規模型）",892,"/事業所",null,200,"/事業所"]
[null,null,null,null,null,null,null,null,null,null,null,null,null,null,null,null,null,null,null,null,null,null,null,null,null,null,null,null,null,null,null,null,null,null,null,null,null,null,null,null,null,null,null,null,null,null,null,null,null,null,null,null,null,null,null,null,null,null,null,null,null,null,null,null,null,null,null,null,null,null,null,null,null,null,null,null,null,null,"通所介護事業所（大規模型（Ⅰ））",1137,"/事業所",null,200,"/事業所"]
["介護保険事業所番号",null,null,null,null,null,null,"0420123999",null,null,null,null,null,null,"事業所名称",null,null,null,null,"居宅介護支援事業所長寿社会政策課",null,null,null,null,null,null,null,null,null,null,null,null,null,null,null,null,null,null,null,null,null,null,null,null,null,null,null,null,null,null,null,null,null,null,null,null,null,null,null,null,null,null,null,null,null,null,null,null,null,null,null,null,null,null,null,null,null,null,"通所介護事業所（大規模型（Ⅱ））",1480,"/事業所",null,200,"/事業所"]
["所在地",null,null,"郵便番号",null,null,null,"都道府県名",null,null,null,"住所",null,null,null,null,null,null,null,null,null,null,null,null,null,"連絡先",null,null,"電話番号",null,null,null,null,"担当部署名",null,null,null,null,null,null,null,null,null,null,null,null,null,null,null,null,null,null,null,null,null,null,null,null,null,null,null,null,null,null,null,null,null,null,null,null,null,null,null,null,null,null,null,null,"地域密着型通所介護事業所(療養通所介護事業所を含む)",384,"/事業所",null,200,"/事業所"]
[null,null,null,"980-8570",null,null,null,"宮城県",null,null,null,"仙台市青葉区本町３丁目８－１",null,null,null,null,null,null,null,null,null,null,null,null,null,null,null,null,"022-211-2549",null,null,null,null,"施設支援班",null,null,null,null,null,null,null,null,null,null,null,null,null,null,null,null,null,null,null,null,null,null,null,null,null,null,null,null,null,null,null,null,null,null,null,null,null,null,null,null,null,null,null,null,"認知症対応型通所介護事業所",375,"/事業所",null,200,"/事業所"]
["提供サービス",null,null,null,null,null,null,"居宅介護支援事業所",null,null,null,null,null,null,null,null,null,null,null,null,null,null,null,null,null,"定員",null,null,null,null,"人",null,null,null,null,null,null,null,null,null,null,null,null,null,null,null,null,null,null,null,null,null,null,null,null,null,null,null,null,null,null,null,null,null,null,null,null,null,null,null,null,null,null,null,null,null,null,null,"通所リハビリテーション事業所（通常規模型）",939,"/事業所",null,200,"/事業所"]
["事業区分",null,null,null,null,null,null,null,null," 介護慰労金事業　→　1を記載",null,null,null,null,null,null,null,null,null,null,null,null,null,null,null,"  感染対策費用助成事業　→ 2を記載",null,null,null,null,null,null,null,null,null,null,null,null,null,null,null,null,null,null,null,null,null,null,null,null,null,null,null,null,null,null,null,null,null,null,null,null,null,null,null,null,null,null,null,null,null,null,null,null,null,null,null,null,"通所リハビリテーション事業所（大規模型（Ⅰ））",1181,"/事業所",null,200,"/事業所"]
[null,null,null,null,null,null,null,null,null," 個別再開支援助成事業　→ 3を記載",null,null,null,null,null,null,null,null,null,null,null,null,null,null,null,"　再開環境整備助成事業　→ 4を記載",null,null,null,null,null,null,null,null,null,null,null,null,null,null,null,null,null,null,null,null,null,null,null,null,null,null,null,null,null,null,null,null,null,null,null,null,null,null,null,null,null,null,null,null,null,null,null,null,null,null,null,null,"通所リハビリテーション事業所（大規模型（Ⅱ））",1885,"/事業所",null,200,"/事業所"]
[null,null,null,null,null,null,null,null,null,null,null,null,null,null,null,null,null,null,null,null,null,null,null,null,null,null,null,null,null,null,null,null,null,null,null,null,null,null,null,null,null,null,null,null,null,null,null,null,null,null,null,null,null,null,null,null,null,null,null,null,null,null,null,null,null,null,null,null,null,null,null,null,null,null,null,null,null,null,"短期入所生活介護事業所",{"$f":"CD13*個票2!$AC$10","v":0},"/定員",44,200,"/事業所"]
["支出実績額",null,null,null,null,null,null,null,null,null,null,null,null,null,null,null,null,null,null,null,null,null,null,null,null,null,null,null,null,null,null,null,null,null,null,null,null,null,null,null,null,null,null,null,null,null,null,null,null,null,null,null,null,null,null,null,null,null,null,null,null,null,null,null,null,null,null,null,null,null,null,null,null,null,null,null,null,null,"短期入所療養介護事業所",{"$f":"CD14*個票2!$AC$10","v":0},"/定員",44,200,"/事業所"]
[null,null,null,null,null,null,null,null,null,null,null,null,null,null,null,null,null,null,null,null,null,null,null,null,null,null,null,null,null,null,null,null,null,null,null,null,null,null,null,null,null,null,null,null,null,null,null,null,null,null,null,null,null,null,null,null,null,null,null,null,null,null,null,null,null,null,null,null,null,null,null,null,null,null,null,null,null,null,"訪問介護事業所",534,"/事業所",null,200,"/事業所"]
["１．介護慰労金事業",null,null,null,null,null,null,null," ※対象職員の氏名等について、職員表を作成すること。",null,null,null,null,null,null,null,null,null,null,null,null,null,null,null,null,null,null,null,null,null,null,null,null,null,null,null,null,null,null,null,null,null,null,null,null,null,null,null,null,null,null,null,null,null,null,null,null,null,null,null,null,null,null,null,null,null,null,null,null,null,null,null,null,null,null,null,null,null,"訪問入浴介護事業所",564,"/事業所",null,200,"/事業所"]
[null,null,null,null,null,null,null,null,null,null,null,null,null,null,null,null,null,null,null,null,null,null,null,null,null,null,null,null,"支給\n実績額①",null,null,null,{"$f":"(20*M19+5*V19)*10+AE19","v":100},null,null,null,null,"千円",null,null,null,null,null,null,null,null,null,null,null,null,null,null,null,null,null,null,null,null,null,null,null,null,null,null,null,null,null,null,null,null,null,null,null,null,null,null,null,null,"訪問看護事業所",518,"/事業所",null,200,"/事業所"]
["【慰労金を実際に支給した人数及びその振込手数料】",null,null,null,null,null,null,null,null,null,null,null,null,null,null,null,null,null,null,null,null,null,null,null,null,null,null,null,null,null,null,null,null,null,null,null,null,null,null,null,null,null,null,null,null,null,null,null,null,null,null,null,null,null,null,null,null,null,null,null,null,null,null,null,null,null,null,null,null,null,null,null,null,null,null,null,null,null,"訪問リハビリテーション事業所",227,"/事業所",null,200,"/事業所"]
["慰労金の区分・人数",null,null,null,null,null,null,"20万円対象",null,null,null,null,null,null,null,"人","5万円対象",null,null,null,null,2,null,null,"人","振込手数料",null,null,null,null,null,null,null,"千円（千円未満切り捨て）",null,null,null,null,null,null,{"$f":"IF(M19=0,,\"有\")","v":0},null,null,null,null,null,null,null,null,null,null,null,null,null,null,null,null,null,null,null,null,null,null,null,null,null,null,null,null,null,null,null,null,null,null,null,null,null,"定期巡回・随時対応型訪問介護看護事業所",508,"/事業所",null,200,"/事業所"]
[null,null,null,null,null,null,null,null,null,null,null,null,null,null,null,null,null,null,null,null,null,null,null,null,null,null,null,null,null,null,null,null,null,null,null,null,null,null,null,null,null,null,null,null,null,null,null,null,null,null,null,null,null,null,null,null,null,null,null,null,null,null,null,null,null,null,null,null,null,null,null,null,null,null,null,null,null,null,"夜間対応型訪問介護事業所",204,"/事業所",null,200,"/事業所"]
["2．感染症対策を徹底した上での介護サービス提供支援事業",null,null,null,null,null,null,null,null,null,null,null,null,null,null,null,null,null,null,null,null,null,null,"補助上限額",null,null,null,null,null,null,null,null,null,null,null,null,null,null,null,null,null,null,null,null,null,null,null,null,null,null,null,null,null,null,null,null,null,null,null,null,null,null,null,null,null,null,null,null,null,null,null,null,null,null,null,null,null,null,"居宅介護支援事業所",148,"/事業所",null,200,"/事業所"]
[null,null,null,null,null,null,null,null,null,null,null,null,null,null,null,null,null,null,null,null,null,null,null,{"$f":"IFERROR(VLOOKUP(H10,個票1!CA5:CB39,2,FALSE),\"\")","v":148},null,null,"千円",null,"支出\n実績額②",null,null,null,{"$f":"ROUNDDOWN(H34/1000,0)","v":177},null,null,null,null,"千円",null,null,null,null,null,null,null,null,null,null,null,null,null,null,null,null,null,null,null,null,null,null,null,null,null,null,null,null,null,null,null,null,null,null,null,null,null,null,null,null,"福祉用具貸与事業所",148,"/事業所",null,200,"/事業所"]
["【感染拡大防止対策や介護サービスの提供体制の確保のための経費として実際に要した額】",null,null,null,null,null,null,null,null,null,null,null,null,null,null,null,null,null,null,null,null,null,null,null,null,null,null,null,null,null,null,null,null,null,null,null,null,null,null,null,null,null,null,null,null,null,null,null,null,null,null,null,null,null,null,null,null,null,null,null,null,null,null,null,null,null,null,null,null,null,null,null,null,null,null,null,null,null,"居宅療養管理指導事業所",33,"/事業所",null,200,"/事業所"]
["科目",null,null,null,null,null,null,"支出額（円）",null,null,null,null,"用途・品目・数量等",null,null,null,null,null,null,null,null,null,null,null,null,null,null,null,null,null,null,null,null,null,null,null,null,null,null,null,null,null,null,null,null,null,null,null,null,null,null,null,null,null,null,null,null,null,null,null,null,null,null,null,null,null,null,null,null,null,null,null,null,null,null,null,null,null,"小規模多機能型居宅介護事業所",475,"/事業所",null,200,"/事業所"]
["賃金・報酬",null,null,null,null,null,null,null,null,null,null,null,null,null,null,null,null,null,null,null,null,null,null,null,null,null,null,null,null,null,null,null,null,null,null,null,null,null,null,null,null,null,null,null,null,null,null,null,null,null,null,null,null,null,null,null,null,null,null,null,null,null,null,null,null,null,null,null,null,null,null,null,null,null,null,null,null,null,"看護小規模多機能型居宅介護事業所",638,"/事業所",null,200,"/事業所"]
["謝金",null,null,null,null,null,null,null,null,null,null,null,null,null,null,null,null,null,null,null,null,null,null,null,null,null,null,null,null,null,null,null,null,null,null,null,null,null,null,null,null,null,null,null,null,null,null,null,null,null,null,null,null,null,null,null,null,null,null,null,null,null,null,null,null,null,null,null,null,null,null,null,null,null,null,null,null,null,"介護老人福祉施設",{"$f":"CD26*個票2!$AC$10","v":0},"/定員",38,"-"]
["会議費",null,null,null,null,null,null,null,null,null,null,null,null,null,null,null,null,null,null,null,null,null,null,null,null,null,null,null,null,null,null,null,null,null,null,null,null,null,null,null,null,null,null,null,null,null,null,null,null,null,null,null,null,null,null,null,null,null,null,null,null,null,null,null,null,null,null,null,null,null,null,null,null,null,null,null,null,null,"地域密着型介護老人福祉施設",{"$f":"CD27*個票2!$AC$10","v":0},"/定員",40,"-"]
["旅費",null,null,null,null,null,null,null,null,null,null,null,null,null,null,null,null,null,null,null,null,null,null,null,null,null,null,null,null,null,null,null,null,null,null,null,null,null,null,null,null,null,null,null,null,null,null,null,null,null,null,null,null,null,null,null,null,null,null,null,null,null,null,null,null,null,null,null,null,null,null,null,null,null,null,null,null,null,"介護老人保健施設",{"$f":"CD28*個票2!$AC$10","v":0},"/定員",38,"-"]
["需用費",null,null,null,null,null,null,177880,null,null,null,null,"マスク（79,880円分），消毒用アルコール（98,000円分）",null,null,null,null,null,null,null,null,null,null,null,null,null,null,null,null,null,null,null,null,null,null,null,null,null,null,null,null,null,null,null,null,null,null,null,null,null,null,null,null,null,null,null,null,null,null,null,null,null,null,null,null,null,null,null,null,null,null,null,null,null,null,null,null,null,"介護医療院",{"$f":"CD29*個票2!$AC$10","v":0},"/定員",48,"-"]
["役務費",null,null,null,null,null,null,null,null,null,null,null,null,null,null,null,null,null,null,null,null,null,null,null,null,null,null,null,null,null,null,null,null,null,null,null,null,null,null,null,null,null,null,null,null,null,null,null,null,null,null,null,null,null,null,null,null,null,null,null,null,null,null,null,null,null,null,null,null,null,null,null,null,null,null,null,null,null,"介護療養型医療施設",{"$f":"CD30*個票2!$AC$10","v":0},"/定員",43,"-"]
["委託料",null,null,null,null,null,null,null,null,null,null,null,null,null,null,null,null,null,null,null,null,null,null,null,null,null,null,null,null,null,null,null,null,null,null,null,null,null,null,null,null,null,null,null,null,null,null,null,null,null,null,null,null,null,null,null,null,null,null,null,null,null,null,null,null,null,null,null,null,null,null,null,null,null,null,null,null,null,"認知症対応型共同生活介護事業所",{"$f":"CD31*個票2!$AC$10","v":0},"/定員",36,"-"]
["使用料及び賃借料",null,null,null,null,null,null,null,null,null,null,null,null,null,null,null,null,null,null,null,null,null,null,null,null,null,null,null,null,null,null,null,null,null,null,null,null,null,null,null,null,null,null,null,null,null,null,null,null,null,null,null,null,null,null,null,null,null,null,null,null,null,null,null,null,null,null,null,null,null,null,null,null,null,null,null,null,null,"養護老人ホーム（定員30人以上）",{"$f":"CD32*個票2!$AC$10","v":0},"/定員",37,"-"]
["備品購入費",null,null,null,null,null,null,null,null,null,null,null,null,null,null,null,null,null,null,null,null,null,null,null,null,null,null,null,null,null,null,null,null,null,null,null,null,null,null,null,null,null,null,null,null,null,null,null,null,null,null,null,null,null,null,null,null,null,null,null,null,null,null,null,null,null,null,null,null,null,null,null,null,null,null,null,null,null,"養護老人ホーム（定員29人以下）",{"$f":"CD33*個票2!$AC$10","v":0},"/定員",35,"-"]
["合計",null,null,null,null,null,null,{"$f":"SUM(H25:L33)","v":177880},null,null,null,null,"※用途・品目・数量等を上記に入力しきれない場合は，別紙にまとめてください。",null,null,null,null,null,null,null,null,null,null,null,null,null,null,null,null,null,null,null,null,null,null,null,null,null,null,null,null,null,null,null,null,null,null,null,null,null,null,null,null,null,null,null,null,null,null,null,null,null,null,null,null,null,null,null,null,null,null,null,null,null,null,null,null,null,"軽費老人ホーム（定員30人以上）",{"$f":"CD34*個票2!$AC$10","v":0},"/定員",37,"-"]
[null,null,null,null,null,null,null,null,null,null,null,null,null,null,null,null,null,null,null,null,null,null,null,null,null,null,null,null,null,null,null,null,null,null,null,null,null,null,null,null,null,null,null,null,null,null,null,null,null,null,null,null,null,null,null,null,null,null,null,null,null,null,null,null,null,null,null,null,null,null,null,null,null,null,null,null,null,null,"軽費老人ホーム（定員29人以下）",{"$f":"CD35*個票2!$AC$10","v":0},"/定員",35,"-"]
["3．在宅サービス事業所による利用者への再開支援への助成事業",null,null,null,null,null,null,null,null,null,null,null,null,null,null,null,null,null,null,null,null,null,null,null,null,null,null,null,null,null,null,null,null,null,null,null,null,null,null,null,null,null,null,null,null,null,null,null,null,null,null,null,null,null,null,null,null,null,null,null,null,null,null,null,null,null,null,null,null,null,null,null,null,null,null,null,null,null,"有料老人ホーム（定員30人以上）",{"$f":"CD36*個票2!$AC$10","v":0},"/定員",37,"-"]
[null,null,null,null,null,null,null,null,null,null,null,null,null,null,null,null,null,null,null,null,null,null,null,null,null,null,null,null,"実績額③",null,null,null,{"$f":"IFERROR(IF(H10=\"居宅介護支援事業所\",(X41*AI41+X42*AI42+X43*AI43+X44*AI44)/1000,(X39*AI39+X40*AI40)/1000),\"\")","v":19.5},null,null,null,null,"千円",null,null,null,null,null,null,null,null,null,null,null,null,null,null,null,null,null,null,null,null,null,null,null,null,null,null,null,null,null,null,null,null,null,null,null,null,null,null,null,null,"有料老人ホーム（定員29人以下）",{"$f":"CD37*個票2!$AC$10","v":0},"/定員",35,"-"]
["【在宅介護サービスの利用再開に向け，実際に事業所から働きかけを行った対象利用者数】",null,null,null,null,null,null,null,null,null,null,null,null,null,null,null,null,null,null,null,null,null,null,null,null,null,null,null,null,null,null,null,null,null,null,null,null,null,null,null,{"$f":"AG36-AG37","v":-19.5},null,null,null,null,null,null,null,null,null,null,null,null,null,null,null,null,null,null,null,null,null,null,null,null,null,null,null,null,null,null,null,null,null,null,null,null,null,"サービス付き高齢者向け住宅（定員30人以上）",{"$f":"CD38*個票2!$AC$10","v":0},"/定員",37,"-"]
["利用者１人あたり単価\n　（居宅介護支援以外共通）",null,null,null,null,null,null,null,null,null,"電話による確認",null,null,null,null,null,null,null,null,null,null,null,null,{"$f":"IF($H$10=\"介護予防・生活支援サービス事業の事業者\",\"\",1500)","v":1500},null,null,"円",null,"対象利用者数（実績）",null,null,null,null,null,null,null,null,"人",null,null,null,null,null,null,null,null,null,null,null,null,null,null,null,null,null,null,null,null,null,null,null,null,null,null,null,null,null,null,null,null,null,null,null,null,null,null,null,null,"サービス付き高齢者向け住宅（定員29人以下）",{"$f":"CD39*個票2!$AC$10","v":0},"/定員",35,"-"]
[null,null,null,null,null,null,null,null,null,null,"訪問による確認",null,null,null,null,null,null,null,null,null,null,null,null,{"$f":"IF($H$10=\"介護予防・生活支援サービス事業の事業者\",\"\",3000)","v":3000},null,null,"円",null,"対象利用者数（実績）",null,null,null,null,null,null,null,null,"人",null,null,null,null,null,null,null,null,null,null,null,null,null,null,null,null,null,null,null,null,null,null,null,null,null,null,null,null,null,null,null,null,null,null,null,null,null,null,null,null,"介護予防・生活支援サービス事業の事業者"]
[null,"居宅介護支援のみ\n右欄に記載",null,null,null,null,null,null,null,null,"電話による確認",null,null,null,null,null,null,null,null,null,null,null,null,{"$f":"IF($H$10=\"介護予防・生活支援サービス事業の事業者\",\"\",1500)","v":1500},null,null,"円",null,"対象利用者数（実績）",null,null,null,null,null,2,null,null,"人"]
[null,null,null,null,null,null,null,null,null,null,"電話による確認（看護師等が協力した場合）",null,null,null,null,null,null,null,null,null,null,null,null,{"$f":"IF($H$10=\"介護予防・生活支援サービス事業の事業者\",\"\",4500)","v":4500},null,null,"円",null,"対象利用者数（実績）",null,null,null,null,null,1,null,null,"人"]
[null,null,null,null,null,null,null,null,null,null,"訪問による確認",null,null,null,null,null,null,null,null,null,null,null,null,{"$f":"IF($H$10=\"介護予防・生活支援サービス事業の事業者\",\"\",3000)","v":3000},null,null,"円",null,"対象利用者数（実績）",null,null,null,null,null,2,null,null,"人"]
[null,null,null,null,null,null,null,null,null,null,"訪問による確認（看護師等が協力した場合）",null,null,null,null,null,null,null,null,null,null,null,null,{"$f":"IF($H$10=\"介護予防・生活支援サービス事業の事業者\",\"\",6000)","v":6000},null,null,"円",null,"対象利用者数（実績）",null,null,null,null,null,1,null,null,"人"]
[]
["4．在宅サービス事業所における環境整備への助成事業",null,null,null,null,null,null,null,null,null,null,null,null,null,null,null,null,null,null,null,null,null,null,"補助上限額"]
[null,null,null,null,null,null,null,null,null,null,null,null,null,null,null,null,null,null,null,null,null,null,null,{"$f":"IFERROR(VLOOKUP(H10,個票1!CA5:CE39,5,FALSE),\"\")","v":200},null,null,"千円",null,"支出\n実績額④",null,null,null,{"$f":"ROUNDDOWN(H59/1000,0)","v":152},null,null,null,null,"千円"]
["【在宅サービス事業所における環境整備のための経費として実際に要した額】",null,null,null,null,null,null,null,null,null,null,null,null,null,null,null,null,null,null,null,null,null,null,null,null,null,null,null,null,null,null,null,null,null,null,null,null,null,null,null,{"$f":"AG46-AG47","v":-152}]
["科目",null,null,null,null,null,null,"支出額（円）",null,null,null,null,"用途・品目・数量等"]
["賃金・報酬"]
["謝金"]
["会議費"]
["旅費"]
["需用費"]
["役務費"]
["委託料"]
["使用料及び賃借料"]
["備品購入費",null,null,null,null,null,null,152400,null,null,null,null,"飛散防止パネル（50,800円×3台）"]
["合計",null,null,null,null,null,null,{"$f":"SUM(H50:L58)","v":152400},null,null,null,null,"※用途・品目・数量等を上記に入力しきれない場合は，別紙にまとめてください。"]

{"sheet":"職員表","index":4,"n_rows":505,"n_cols":21,"rows_kept":505,"cut":false,"hidden":false,"merged":[[3,15,3,18],[3,19,3,20],[3,0,4,0],[3,6,4,6],[3,7,3,9],[3,14,4,14],[3,1,4,1],[3,2,4,2],[3,3,4,3],[3,10,3,13]]}
["介護慰労金受給職員表（法人単位）"]
[]
["※　本表は法人単位でまとめて記載すること。"]
[null,"氏名\n（漢字）","氏名\n（全角カナ）","生年月日\n（西暦）",null,null,"本人の住所","主たる勤務先",null,null,"分類",null,null,null,"慰労金\n(万円)","確認事項",null,null,null,"支払実績"]
[null,null,null,null,"（確認用）","（確認用）",null,"事業所番号","サービス種類コード","事業所・施設の名称","施設区分","対応区分","(計算用)","他の施設等との期間通算がある場合その施設名",null,"委任状の有無","他法人での慰労金の受給の有無","業務委託による\n従事者","重複\n受給者確認用","支払年月日\n(西暦)","支払金額\n（円）"]
[{"$f":"ROW()-5","v":1},"長寿一郎","チョウジュイチロウ","1970-01-01",{"$f":"B6&C6&D6","v":"長寿一郎チョウジュイチロウ25569"},{"$f":"IF(E6=\"\",\"\",COUNTIF($E$6:$E$1385,E6))","v":1},"仙台市青葉区本町３丁目８－１","0420123456","51","特別養護老人ホーム長寿社会政策課","その他の施設","対象期間に10日以上勤務",{"$f":"K6&L6","v":"その他の施設対象期間に10日以上勤務"},null,{"$f":"IFERROR(VLOOKUP(M6,計算用!$A$8:$B$15,2,FALSE),\"\")","v":5},"あり","なし",null,{"$f":"IF(F6>=2,\"\",\"可\")","v":"可"},"2020-12-05",50000]
[{"$f":"ROW()-5","v":2},"長寿二郎","チョウジュジロウ","1974-02-10",{"$f":"B7&C7&D7","v":"長寿二郎チョウジュジロウ27070"},{"$f":"IF(E7=\"\",\"\",COUNTIF($E$6:$E$1385,E7))","v":1},"仙台市青葉区本町３丁目８－１","0420123456","51","特別養護老人ホーム長寿社会政策課","その他の施設","対象期間に10日以上勤務",{"$f":"K7&L7","v":"その他の施設対象期間に10日以上勤務"},null,{"$f":"IFERROR(VLOOKUP(M7,計算用!$A$8:$B$15,2,FALSE),\"\")","v":5},"あり","なし",null,{"$f":"IF(F7>=2,\"\",\"可\")","v":"可"},"2020-12-05",50000]
[3,"長寿三郎","チョウジュサブロウ","1978-03-20",{"$f":"B8&C8&D8","v":"長寿三郎チョウジュサブロウ28569"},{"$f":"IF(E8=\"\",\"\",COUNTIF($E$6:$E$1385,E8))","v":1},"仙台市青葉区本町３丁目８－１","0420123456","51","特別養護老人ホーム長寿社会政策課","その他の施設","対象期間に10日以上勤務",{"$f":"K8&L8","v":"その他の施設対象期間に10日以上勤務"},null,{"$f":"IFERROR(VLOOKUP(M8,計算用!$A$8:$B$15,2,FALSE),\"\")","v":5},"あり","なし","該当",{"$f":"IF(F8>=2,\"\",\"可\")","v":"可"},"2020-12-05",50000]
[4,"長寿四郎","チョウジュシロウ","1982-04-12",{"$f":"B9&C9&D9","v":"長寿四郎チョウジュシロウ30053"},{"$f":"IF(E9=\"\",\"\",COUNTIF($E$6:$E$1385,E9))","v":1},"仙台市青葉区本町３丁目８－１","0420123999","43","居宅介護支援事業所長寿社会政策課","その他の施設","対象期間に10日以上勤務",{"$f":"K9&L9","v":"その他の施設対象期間に10日以上勤務"},null,{"$f":"IFERROR(VLOOKUP(M9,計算用!$A$8:$B$15,2,FALSE),\"\")","v":5},"あり","なし",null,{"$f":"IF(F9>=2,\"\",\"可\")","v":"可"},"2020-12-05",50000]
[5,"長寿五郎","チョウジュゴロウ","1988-12-13",{"$f":"B10&C10&D10","v":"長寿五郎チョウジュゴロウ32490"},{"$f":"IF(E10=\"\",\"\",COUNTIF($E$6:$E$1385,E10))","v":1},"仙台市青葉区本町３丁目８－１","0420123999","43","居宅介護支援事業所長寿社会政策課","その他の施設","対象期間に10日以上勤務",{"$f":"K10&L10","v":"その他の施設対象期間に10日以上勤務"},null,{"$f":"IFERROR(VLOOKUP(M10,計算用!$A$8:$B$15,2,FALSE),\"\")","v":5},"あり","なし",null,{"$f":"IF(F10>=2,\"\",\"可\")","v":"可"},"2020-12-05",50000]
[6,null,null,null,{"$f":"B11&C11&D11","v":""},{"$f":"IF(E11=\"\",\"\",COUNTIF($E$6:$E$1385,E11))","v":""},null,null,null,null,null,null,{"$f":"K11&L11","v":""},null,{"$f":"IFERROR(VLOOKUP(M11,計算用!$A$8:$B$15,2,FALSE),\"\")","v":""},null,null,null,{"$f":"IF(F11>=2,\"\",\"可\")","v":""}]
[7,null,null,null,"","",null,null,null,null,null,null,"",null,{"$f":"IFERROR(VLOOKUP(M12,計算用!$A$8:$B$15,2,FALSE),\"\")","v":""},null,null,null,""]
[8,null,null,null,"","",null,null,null,null,null,null,"",null,{"$f":"IFERROR(VLOOKUP(M13,計算用!$A$8:$B$15,2,FALSE),\"\")","v":""},null,null,null,""]
[9,null,null,null,"","",null,null,null,null,null,null,{"$f":"K14&L14","v":""},null,{"$f":"IFERROR(VLOOKUP(M14,計算用!$A$8:$B$15,2,FALSE),\"\")","v":""},null,null,null,""]
[10,null,null,null,"","",null,null,null,null,null,null,"",null,{"$f":"IFERROR(VLOOKUP(M15,計算用!$A$8:$B$15,2,FALSE),\"\")","v":""},null,null,null,""]
[11,null,null,null,"","",null,null,null,null,null,null,"",null,{"$f":"IFERROR(VLOOKUP(M16,計算用!$A$8:$B$15,2,FALSE),\"\")","v":""},null,null,null,""]
[12,null,null,null,"","",null,null,null,null,null,null,"",null,{"$f":"IFERROR(VLOOKUP(M17,計算用!$A$8:$B$15,2,FALSE),\"\")","v":""},null,null,null,""]
[13,null,null,null,"","",null,null,null,null,null,null,"",null,{"$f":"IFERROR(VLOOKUP(M18,計算用!$A$8:$B$15,2,FALSE),\"\")","v":""},null,null,null,""]
[14,null,null,null,"","",null,null,null,null,null,null,"",null,{"$f":"IFERROR(VLOOKUP(M19,計算用!$A$8:$B$15,2,FALSE),\"\")","v":""},null,null,null,""]
[15,null,null,null,"","",null,null,null,null,null,null,"",null,{"$f":"IFERROR(VLOOKUP(M20,計算用!$A$8:$B$15,2,FALSE),\"\")","v":""},null,null,null,""]
[16,null,null,null,"","",null,null,null,null,null,null,"",null,{"$f":"IFERROR(VLOOKUP(M21,計算用!$A$8:$B$15,2,FALSE),\"\")","v":""},null,null,null,""]
[17,null,null,null,"","",null,null,null,null,null,null,"",null,{"$f":"IFERROR(VLOOKUP(M22,計算用!$A$8:$B$15,2,FALSE),\"\")","v":""},null,null,null,""]
[18,null,null,null,"","",null,null,null,null,null,null,"",null,{"$f":"IFERROR(VLOOKUP(M23,計算用!$A$8:$B$15,2,FALSE),\"\")","v":""},null,null,null,""]
[19,null,null,null,"","",null,null,null,null,null,null,"",null,{"$f":"IFERROR(VLOOKUP(M24,計算用!$A$8:$B$15,2,FALSE),\"\")","v":""},null,null,null,""]
[20,null,null,null,"","",null,null,null,null,null,null,"",null,{"$f":"IFERROR(VLOOKUP(M25,計算用!$A$8:$B$15,2,FALSE),\"\")","v":""},null,null,null,""]
[21,null,null,null,"","",null,null,null,null,null,null,"",null,{"$f":"IFERROR(VLOOKUP(M26,計算用!$A$8:$B$15,2,FALSE),\"\")","v":""},null,null,null,""]
[22,null,null,null,"","",null,null,null,null,null,null,"",null,{"$f":"IFERROR(VLOOKUP(M27,計算用!$A$8:$B$15,2,FALSE),\"\")","v":""},null,null,null,""]
[23,null,null,null,"","",null,null,null,null,null,null,"",null,{"$f":"IFERROR(VLOOKUP(M28,計算用!$A$8:$B$15,2,FALSE),\"\")","v":""},null,null,null,""]
[24,null,null,null,"","",null,null,null,null,null,null,"",null,{"$f":"IFERROR(VLOOKUP(M29,計算用!$A$8:$B$15,2,FALSE),\"\")","v":""},null,null,null,""]
[25,null,null,null,"","",null,null,null,null,null,null,"",null,{"$f":"IFERROR(VLOOKUP(M30,計算用!$A$8:$B$15,2,FALSE),\"\")","v":""},null,null,null,""]
[26,null,null,null,"","",null,null,null,null,null,null,"",null,{"$f":"IFERROR(VLOOKUP(M31,計算用!$A$8:$B$15,2,FALSE),\"\")","v":""},null,null,null,""]
[27,null,null,null,"","",null,null,null,null,null,null,"",null,{"$f":"IFERROR(VLOOKUP(M32,計算用!$A$8:$B$15,2,FALSE),\"\")","v":""},null,null,null,""]
[28,null,null,null,"","",null,null,null,null,null,null,"",null,{"$f":"IFERROR(VLOOKUP(M33,計算用!$A$8:$B$15,2,FALSE),\"\")","v":""},null,null,null,""]
[29,null,null,null,"","",null,null,null,null,null,null,"",null,{"$f":"IFERROR(VLOOKUP(M34,計算用!$A$8:$B$15,2,FALSE),\"\")","v":""},null,null,null,""]
[30,null,null,null,"","",null,null,null,null,null,null,"",null,{"$f":"IFERROR(VLOOKUP(M35,計算用!$A$8:$B$15,2,FALSE),\"\")","v":""},null,null,null,""]
[31,null,null,null,"","",null,null,null,null,null,null,"",null,{"$f":"IFERROR(VLOOKUP(M36,計算用!$A$8:$B$15,2,FALSE),\"\")","v":""},null,null,null,""]
[32,null,null,null,"","",null,null,null,null,null,null,"",null,{"$f":"IFERROR(VLOOKUP(M37,計算用!$A$8:$B$15,2,FALSE),\"\")","v":""},null,null,null,""]
[33,null,null,null,"","",null,null,null,null,null,null,"",null,{"$f":"IFERROR(VLOOKUP(M38,計算用!$A$8:$B$15,2,FALSE),\"\")","v":""},null,null,null,{"$f":"IF(F38>=2,\"\",\"可\")","v":""}]
[34,null,null,null,"","",null,null,null,null,null,null,"",null,{"$f":"IFERROR(VLOOKUP(M39,計算用!$A$8:$B$15,2,FALSE),\"\")","v":""},null,null,null,""]
[35,null,null,null,"","",null,null,null,null,null,null,"",null,{"$f":"IFERROR(VLOOKUP(M40,計算用!$A$8:$B$15,2,FALSE),\"\")","v":""},null,null,null,""]
[36,null,null,null,"","",null,null,null,null,null,null,"",null,{"$f":"IFERROR(VLOOKUP(M41,計算用!$A$8:$B$15,2,FALSE),\"\")","v":""},null,null,null,""]
[37,null,null,null,"","",null,null,null,null,null,null,"",null,{"$f":"IFERROR(VLOOKUP(M42,計算用!$A$8:$B$15,2,FALSE),\"\")","v":""},null,null,null,""]
[38,null,null,null,"","",null,null,null,null,null,null,"",null,{"$f":"IFERROR(VLOOKUP(M43,計算用!$A$8:$B$15,2,FALSE),\"\")","v":""},null,null,null,""]
[39,null,null,null,"","",null,null,null,null,null,null,"",null,{"$f":"IFERROR(VLOOKUP(M44,計算用!$A$8:$B$15,2,FALSE),\"\")","v":""},null,null,null,""]
[40,null,null,null,"","",null,null,null,null,null,null,"",null,{"$f":"IFERROR(VLOOKUP(M45,計算用!$A$8:$B$15,2,FALSE),\"\")","v":""},null,null,null,""]
[41,null,null,null,"","",null,null,null,null,null,null,"",null,{"$f":"IFERROR(VLOOKUP(M46,計算用!$A$8:$B$15,2,FALSE),\"\")","v":""},null,null,null,""]
[42,null,null,null,"","",null,null,null,null,null,null,"",null,{"$f":"IFERROR(VLOOKUP(M47,計算用!$A$8:$B$15,2,FALSE),\"\")","v":""},null,null,null,""]
[43,null,null,null,"","",null,null,null,null,null,null,"",null,{"$f":"IFERROR(VLOOKUP(M48,計算用!$A$8:$B$15,2,FALSE),\"\")","v":""},null,null,null,""]
[44,null,null,null,"","",null,null,null,null,null,null,"",null,{"$f":"IFERROR(VLOOKUP(M49,計算用!$A$8:$B$15,2,FALSE),\"\")","v":""},null,null,null,""]
[45,null,null,null,"","",null,null,null,null,null,null,"",null,{"$f":"IFERROR(VLOOKUP(M50,計算用!$A$8:$B$15,2,FALSE),\"\")","v":""},null,null,null,""]
[46,null,null,null,"","",null,null,null,null,null,null,"",null,{"$f":"IFERROR(VLOOKUP(M51,計算用!$A$8:$B$15,2,FALSE),\"\")","v":""},null,null,null,""]
[47,null,null,null,"","",null,null,null,null,null,null,"",null,{"$f":"IFERROR(VLOOKUP(M52,計算用!$A$8:$B$15,2,FALSE),\"\")","v":""},null,null,null,""]
[48,null,null,null,"","",null,null,null,null,null,null,"",null,{"$f":"IFERROR(VLOOKUP(M53,計算用!$A$8:$B$15,2,FALSE),\"\")","v":""},null,null,null,""]
[49,null,null,null,"","",null,null,null,null,null,null,"",null,{"$f":"IFERROR(VLOOKUP(M54,計算用!$A$8:$B$15,2,FALSE),\"\")","v":""},null,null,null,""]
[50,null,null,null,"","",null,null,null,null,null,null,"",null,{"$f":"IFERROR(VLOOKUP(M55,計算用!$A$8:$B$15,2,FALSE),\"\")","v":""},null,null,null,""]
[51,null,null,null,"","",null,null,null,null,null,null,"",null,{"$f":"IFERROR(VLOOKUP(M56,計算用!$A$8:$B$15,2,FALSE),\"\")","v":""},null,null,null,""]
[52,null,null,null,"","",null,null,null,null,null,null,"",null,{"$f":"IFERROR(VLOOKUP(M57,計算用!$A$8:$B$15,2,FALSE),\"\")","v":""},null,null,null,""]
[53,null,null,null,"","",null,null,null,null,null,null,"",null,{"$f":"IFERROR(VLOOKUP(M58,計算用!$A$8:$B$15,2,FALSE),\"\")","v":""},null,null,null,""]
[54,null,null,null,"","",null,null,null,null,null,null,"",null,{"$f":"IFERROR(VLOOKUP(M59,計算用!$A$8:$B$15,2,FALSE),\"\")","v":""},null,null,null,""]
[55,null,null,null,"","",null,null,null,null,null,null,"",null,{"$f":"IFERROR(VLOOKUP(M60,計算用!$A$8:$B$15,2,FALSE),\"\")","v":""},null,null,null,""]
[56,null,null,null,"","",null,null,null,null,null,null,"",null,{"$f":"IFERROR(VLOOKUP(M61,計算用!$A$8:$B$15,2,FALSE),\"\")","v":""},null,null,null,""]
[57,null,null,null,"","",null,null,null,null,null,null,"",null,{"$f":"IFERROR(VLOOKUP(M62,計算用!$A$8:$B$15,2,FALSE),\"\")","v":""},null,null,null,""]
[58,null,null,null,"","",null,null,null,null,null,null,"",null,{"$f":"IFERROR(VLOOKUP(M63,計算用!$A$8:$B$15,2,FALSE),\"\")","v":""},null,null,null,""]
[59,null,null,null,"","",null,null,null,null,null,null,"",null,{"$f":"IFERROR(VLOOKUP(M64,計算用!$A$8:$B$15,2,FALSE),\"\")","v":""},null,null,null,""]
[60,null,null,null,"","",null,null,null,null,null,null,"",null,{"$f":"IFERROR(VLOOKUP(M65,計算用!$A$8:$B$15,2,FALSE),\"\")","v":""},null,null,null,""]
[61,null,null,null,"","",null,null,null,null,null,null,"",null,{"$f":"IFERROR(VLOOKUP(M66,計算用!$A$8:$B$15,2,FALSE),\"\")","v":""},null,null,null,""]
[62,null,null,null,"","",null,null,null,null,null,null,"",null,{"$f":"IFERROR(VLOOKUP(M67,計算用!$A$8:$B$15,2,FALSE),\"\")","v":""},null,null,null,""]
[63,null,null,null,"","",null,null,null,null,null,null,"",null,{"$f":"IFERROR(VLOOKUP(M68,計算用!$A$8:$B$15,2,FALSE),\"\")","v":""},null,null,null,""]
[64,null,null,null,"","",null,null,null,null,null,null,"",null,{"$f":"IFERROR(VLOOKUP(M69,計算用!$A$8:$B$15,2,FALSE),\"\")","v":""},null,null,null,""]
[65,null,null,null,"","",null,null,null,null,null,null,"",null,{"$f":"IFERROR(VLOOKUP(M70,計算用!$A$8:$B$15,2,FALSE),\"\")","v":""},null,null,null,{"$f":"IF(F70>=2,\"\",\"可\")","v":""}]
[{"$f":"ROW()-5","v":66},null,null,null,{"$f":"B71&C71&D71","v":""},{"$f":"IF(E71=\"\",\"\",COUNTIF($E$6:$E$1385,E71))","v":""},null,null,null,null,null,null,{"$f":"K71&L71","v":""},null,{"$f":"IFERROR(VLOOKUP(M71,計算用!$A$8:$B$15,2,FALSE),\"\")","v":""},null,null,null,""]
[67,null,null,null,"","",null,null,null,null,null,null,"",null,{"$f":"IFERROR(VLOOKUP(M72,計算用!$A$8:$B$15,2,FALSE),\"\")","v":""},null,null,null,""]
[68,null,null,null,"","",null,null,null,null,null,null,"",null,{"$f":"IFERROR(VLOOKUP(M73,計算用!$A$8:$B$15,2,FALSE),\"\")","v":""},null,null,null,""]
[69,null,null,null,"","",null,null,null,null,null,null,"",null,{"$f":"IFERROR(VLOOKUP(M74,計算用!$A$8:$B$15,2,FALSE),\"\")","v":""},null,null,null,""]
[70,null,null,null,"","",null,null,null,null,null,null,"",null,{"$f":"IFERROR(VLOOKUP(M75,計算用!$A$8:$B$15,2,FALSE),\"\")","v":""},null,null,null,""]
[71,null,null,null,"","",null,null,null,null,null,null,"",null,{"$f":"IFERROR(VLOOKUP(M76,計算用!$A$8:$B$15,2,FALSE),\"\")","v":""},null,null,null,""]
[72,null,null,null,"","",null,null,null,null,null,null,"",null,{"$f":"IFERROR(VLOOKUP(M77,計算用!$A$8:$B$15,2,FALSE),\"\")","v":""},null,null,null,""]
[73,null,null,null,"","",null,null,null,null,null,null,"",null,{"$f":"IFERROR(VLOOKUP(M78,計算用!$A$8:$B$15,2,FALSE),\"\")","v":""},null,null,null,""]
[74,null,null,null,"","",null,null,null,null,null,null,"",null,{"$f":"IFERROR(VLOOKUP(M79,計算用!$A$8:$B$15,2,FALSE),\"\")","v":""},null,null,null,""]
[75,null,null,null,"","",null,null,null,null,null,null,"",null,{"$f":"IFERROR(VLOOKUP(M80,計算用!$A$8:$B$15,2,FALSE),\"\")","v":""},null,null,null,""]
[76,null,null,null,"","",null,null,null,null,null,null,"",null,{"$f":"IFERROR(VLOOKUP(M81,計算用!$A$8:$B$15,2,FALSE),\"\")","v":""},null,null,null,""]
[77,null,null,null,"","",null,null,null,null,null,null,"",null,{"$f":"IFERROR(VLOOKUP(M82,計算用!$A$8:$B$15,2,FALSE),\"\")","v":""},null,null,null,""]
[78,null,null,null,"","",null,null,null,null,null,null,"",null,{"$f":"IFERROR(VLOOKUP(M83,計算用!$A$8:$B$15,2,FALSE),\"\")","v":""},null,null,null,""]
[79,null,null,null,"","",null,null,null,null,null,null,"",null,{"$f":"IFERROR(VLOOKUP(M84,計算用!$A$8:$B$15,2,FALSE),\"\")","v":""},null,null,null,""]
[80,null,null,null,"","",null,null,null,null,null,null,"",null,{"$f":"IFERROR(VLOOKUP(M85,計算用!$A$8:$B$15,2,FALSE),\"\")","v":""},null,null,null,""]
[{"$f":"ROW()-5","v":81},null,null,null,{"$f":"B86&C86&D86","v":""},{"$f":"IF(E86=\"\",\"\",COUNTIF($E$6:$E$1385,E86))","v":""},null,null,null,null,null,null,{"$f":"K86&L86","v":""},null,{"$f":"IFERROR(VLOOKUP(M86,計算用!$A$8:$B$15,2,FALSE),\"\")","v":""},null,null,null,{"$f":"IF(F86>=2,\"\",\"可\")","v":""}]
[{"$f":"ROW()-5","v":82},null,null,null,{"$f":"B87&C87&D87","v":""},{"$f":"IF(E87=\"\",\"\",COUNTIF($E$6:$E$1385,E87))","v":""},null,null,null,null,null,null,"",null,{"$f":"IFERROR(VLOOKUP(M87,計算用!$A$8:$B$15,2,FALSE),\"\")","v":""},null,null,null,{"$f":"IF(F87>=2,\"\",\"可\")","v":""}]
[83,null,null,null,{"$f":"B88&C88&D88","v":""},{"$f":"IF(E88=\"\",\"\",COUNTIF($E$6:$E$1385,E88))","v":""},null,null,null,null,null,null,"",null,{"$f":"IFERROR(VLOOKUP(M88,計算用!$A$8:$B$15,2,FALSE),\"\")","v":""},null,null,null,{"$f":"IF(F88>=2,\"\",\"可\")","v":""}]
[84,null,null,null,{"$f":"B89&C89&D89","v":""},{"$f":"IF(E89=\"\",\"\",COUNTIF($E$6:$E$1385,E89))","v":""},null,null,null,null,null,null,"",null,{"$f":"IFERROR(VLOOKUP(M89,計算用!$A$8:$B$15,2,FALSE),\"\")","v":""},null,null,null,{"$f":"IF(F89>=2,\"\",\"可\")","v":""}]
[85,null,null,null,{"$f":"B90&C90&D90","v":""},{"$f":"IF(E90=\"\",\"\",COUNTIF($E$6:$E$1385,E90))","v":""},null,null,null,null,null,null,"",null,{"$f":"IFERROR(VLOOKUP(M90,計算用!$A$8:$B$15,2,FALSE),\"\")","v":""},null,null,null,{"$f":"IF(F90>=2,\"\",\"可\")","v":""}]
[86,null,null,null,{"$f":"B91&C91&D91","v":""},"",null,null,null,null,null,null,"",null,{"$f":"IFERROR(VLOOKUP(M91,計算用!$A$8:$B$15,2,FALSE),\"\")","v":""},null,null,null,{"$f":"IF(F91>=2,\"\",\"可\")","v":""}]
[87,null,null,null,"","",null,null,null,null,null,null,"",null,{"$f":"IFERROR(VLOOKUP(M92,計算用!$A$8:$B$15,2,FALSE),\"\")","v":""},null,null,null,""]
[88,null,null,null,"","",null,null,null,null,null,null,"",null,{"$f":"IFERROR(VLOOKUP(M93,計算用!$A$8:$B$15,2,FALSE),\"\")","v":""},null,null,null,""]
[89,null,null,null,"","",null,null,null,null,null,null,"",null,{"$f":"IFERROR(VLOOKUP(M94,計算用!$A$8:$B$15,2,FALSE),\"\")","v":""},null,null,null,""]
[90,null,null,null,"","",null,null,null,null,null,null,{"$f":"K95&L95","v":""},null,{"$f":"IFERROR(VLOOKUP(M95,計算用!$A$8:$B$15,2,FALSE),\"\")","v":""},null,null,null,""]
[91,null,null,null,"","",null,null,null,null,null,null,"",null,{"$f":"IFERROR(VLOOKUP(M96,計算用!$A$8:$B$15,2,FALSE),\"\")","v":""},null,null,null,""]
[92,null,null,null,"","",null,null,null,null,null,null,"",null,{"$f":"IFERROR(VLOOKUP(M97,計算用!$A$8:$B$15,2,FALSE),\"\")","v":""},null,null,null,""]
[93,null,null,null,"","",null,null,null,null,null,null,"",null,{"$f":"IFERROR(VLOOKUP(M98,計算用!$A$8:$B$15,2,FALSE),\"\")","v":""},null,null,null,""]
[94,null,null,null,"","",null,null,null,null,null,null,"",null,{"$f":"IFERROR(VLOOKUP(M99,計算用!$A$8:$B$15,2,FALSE),\"\")","v":""},null,null,null,""]
[95,null,null,null,"","",null,null,null,null,null,null,"",null,{"$f":"IFERROR(VLOOKUP(M100,計算用!$A$8:$B$15,2,FALSE),\"\")","v":""},null,null,null,""]
[96,null,null,null,"","",null,null,null,null,null,null,"",null,{"$f":"IFERROR(VLOOKUP(M101,計算用!$A$8:$B$15,2,FALSE),\"\")","v":""},null,null,null,""]
[97,null,null,null,"","",null,null,null,null,null,null,"",null,{"$f":"IFERROR(VLOOKUP(M102,計算用!$A$8:$B$15,2,FALSE),\"\")","v":""},null,null,null,""]
[98,null,null,null,"","",null,null,null,null,null,null,"",null,{"$f":"IFERROR(VLOOKUP(M103,計算用!$A$8:$B$15,2,FALSE),\"\")","v":""},null,null,null,""]
[99,null,null,null,"","",null,null,null,null,null,null,"",null,{"$f":"IFERROR(VLOOKUP(M104,計算用!$A$8:$B$15,2,FALSE),\"\")","v":""},null,null,null,""]
[100,null,null,null,"","",null,null,null,null,null,null,"",null,{"$f":"IFERROR(VLOOKUP(M105,計算用!$A$8:$B$15,2,FALSE),\"\")","v":""},null,null,null,""]
[101,null,null,null,"","",null,null,null,null,null,null,"",null,{"$f":"IFERROR(VLOOKUP(M106,計算用!$A$8:$B$15,2,FALSE),\"\")","v":""},null,null,null,""]
[102,null,null,null,"","",null,null,null,null,null,null,"",null,{"$f":"IFERROR(VLOOKUP(M107,計算用!$A$8:$B$15,2,FALSE),\"\")","v":""},null,null,null,""]
[103,null,null,null,"","",null,null,null,null,null,null,"",null,{"$f":"IFERROR(VLOOKUP(M108,計算用!$A$8:$B$15,2,FALSE),\"\")","v":""},null,null,null,""]
[104,null,null,null,"","",null,null,null,null,null,null,"",null,{"$f":"IFERROR(VLOOKUP(M109,計算用!$A$8:$B$15,2,FALSE),\"\")","v":""},null,null,null,""]
[105,null,null,null,"","",null,null,null,null,null,null,"",null,{"$f":"IFERROR(VLOOKUP(M110,計算用!$A$8:$B$15,2,FALSE),\"\")","v":""},null,null,null,""]
[106,null,null,null,"","",null,null,null,null,null,null,"",null,{"$f":"IFERROR(VLOOKUP(M111,計算用!$A$8:$B$15,2,FALSE),\"\")","v":""},null,null,null,""]
[107,null,null,null,"","",null,null,null,null,null,null,"",null,{"$f":"IFERROR(VLOOKUP(M112,計算用!$A$8:$B$15,2,FALSE),\"\")","v":""},null,null,null,""]
[108,null,null,null,"","",null,null,null,null,null,null,"",null,{"$f":"IFERROR(VLOOKUP(M113,計算用!$A$8:$B$15,2,FALSE),\"\")","v":""},null,null,null,""]
[109,null,null,null,"","",null,null,null,null,null,null,"",null,{"$f":"IFERROR(VLOOKUP(M114,計算用!$A$8:$B$15,2,FALSE),\"\")","v":""},null,null,null,""]
[110,null,null,null,"","",null,null,null,null,null,null,"",null,{"$f":"IFERROR(VLOOKUP(M115,計算用!$A$8:$B$15,2,FALSE),\"\")","v":""},null,null,null,""]
[111,null,null,null,"","",null,null,null,null,null,null,"",null,{"$f":"IFERROR(VLOOKUP(M116,計算用!$A$8:$B$15,2,FALSE),\"\")","v":""},null,null,null,""]
[112,null,null,null,"","",null,null,null,null,null,null,"",null,{"$f":"IFERROR(VLOOKUP(M117,計算用!$A$8:$B$15,2,FALSE),\"\")","v":""},null,null,null,""]
[113,null,null,null,"","",null,null,null,null,null,null,"",null,{"$f":"IFERROR(VLOOKUP(M118,計算用!$A$8:$B$15,2,FALSE),\"\")","v":""},null,null,null,""]
[114,null,null,null,"","",null,null,null,null,null,null,"",null,{"$f":"IFERROR(VLOOKUP(M119,計算用!$A$8:$B$15,2,FALSE),\"\")","v":""},null,null,null,""]
[115,null,null,null,"","",null,null,null,null,null,null,"",null,{"$f":"IFERROR(VLOOKUP(M120,計算用!$A$8:$B$15,2,FALSE),\"\")","v":""},null,null,null,""]
[116,null,null,null,"","",null,null,null,null,null,null,"",null,{"$f":"IFERROR(VLOOKUP(M121,計算用!$A$8:$B$15,2,FALSE),\"\")","v":""},null,null,null,""]
[117,null,null,null,"","",null,null,null,null,null,null,"",null,{"$f":"IFERROR(VLOOKUP(M122,計算用!$A$8:$B$15,2,FALSE),\"\")","v":""},null,null,null,""]
[118,null,null,null,"","",null,null,null,null,null,null,"",null,{"$f":"IFERROR(VLOOKUP(M123,計算用!$A$8:$B$15,2,FALSE),\"\")","v":""},null,null,null,""]
[119,null,null,null,"","",null,null,null,null,null,null,"",null,{"$f":"IFERROR(VLOOKUP(M124,計算用!$A$8:$B$15,2,FALSE),\"\")","v":""},null,null,null,""]
[120,null,null,null,"","",null,null,null,null,null,null,"",null,{"$f":"IFERROR(VLOOKUP(M125,計算用!$A$8:$B$15,2,FALSE),\"\")","v":""},null,null,null,""]
[121,null,null,null,"","",null,null,null,null,null,null,"",null,{"$f":"IFERROR(VLOOKUP(M126,計算用!$A$8:$B$15,2,FALSE),\"\")","v":""},null,null,null,""]
[122,null,null,null,"","",null,null,null,null,null,null,"",null,{"$f":"IFERROR(VLOOKUP(M127,計算用!$A$8:$B$15,2,FALSE),\"\")","v":""},null,null,null,""]
[123,null,null,null,"","",null,null,null,null,null,null,"",null,{"$f":"IFERROR(VLOOKUP(M128,計算用!$A$8:$B$15,2,FALSE),\"\")","v":""},null,null,null,""]
[124,null,null,null,"","",null,null,null,null,null,null,"",null,{"$f":"IFERROR(VLOOKUP(M129,計算用!$A$8:$B$15,2,FALSE),\"\")","v":""},null,null,null,""]
[125,null,null,null,"","",null,null,null,null,null,null,"",null,{"$f":"IFERROR(VLOOKUP(M130,計算用!$A$8:$B$15,2,FALSE),\"\")","v":""},null,null,null,""]
[126,null,null,null,"","",null,null,null,null,null,null,"",null,{"$f":"IFERROR(VLOOKUP(M131,計算用!$A$8:$B$15,2,FALSE),\"\")","v":""},null,null,null,""]
[127,null,null,null,"","",null,null,null,null,null,null,"",null,{"$f":"IFERROR(VLOOKUP(M132,計算用!$A$8:$B$15,2,FALSE),\"\")","v":""},null,null,null,""]
[128,null,null,null,"","",null,null,null,null,null,null,"",null,{"$f":"IFERROR(VLOOKUP(M133,計算用!$A$8:$B$15,2,FALSE),\"\")","v":""},null,null,null,""]
[129,null,null,null,"","",null,null,null,null,null,null,"",null,{"$f":"IFERROR(VLOOKUP(M134,計算用!$A$8:$B$15,2,FALSE),\"\")","v":""},null,null,null,""]
[130,null,null,null,"",{"$f":"IF(E135=\"\",\"\",COUNTIF($E$6:$E$1385,E135))","v":""},null,null,null,null,null,null,"",null,{"$f":"IFERROR(VLOOKUP(M135,計算用!$A$8:$B$15,2,FALSE),\"\")","v":""},null,null,null,""]
[131,null,null,null,"","",null,null,null,null,null,null,"",null,{"$f":"IFERROR(VLOOKUP(M136,計算用!$A$8:$B$15,2,FALSE),\"\")","v":""},null,null,null,""]
[132,null,null,null,"","",null,null,null,null,null,null,"",null,{"$f":"IFERROR(VLOOKUP(M137,計算用!$A$8:$B$15,2,FALSE),\"\")","v":""},null,null,null,""]
[133,null,null,null,"","",null,null,null,null,null,null,"",null,{"$f":"IFERROR(VLOOKUP(M138,計算用!$A$8:$B$15,2,FALSE),\"\")","v":""},null,null,null,""]
[134,null,null,null,"","",null,null,null,null,null,null,"",null,{"$f":"IFERROR(VLOOKUP(M139,計算用!$A$8:$B$15,2,FALSE),\"\")","v":""},null,null,null,""]
[135,null,null,null,"","",null,null,null,null,null,null,"",null,{"$f":"IFERROR(VLOOKUP(M140,計算用!$A$8:$B$15,2,FALSE),\"\")","v":""},null,null,null,""]
[136,null,null,null,"","",null,null,null,null,null,null,"",null,{"$f":"IFERROR(VLOOKUP(M141,計算用!$A$8:$B$15,2,FALSE),\"\")","v":""},null,null,null,""]
[137,null,null,null,"","",null,null,null,null,null,null,"",null,{"$f":"IFERROR(VLOOKUP(M142,計算用!$A$8:$B$15,2,FALSE),\"\")","v":""},null,null,null,""]
[138,null,null,null,"","",null,null,null,null,null,null,"",null,{"$f":"IFERROR(VLOOKUP(M143,計算用!$A$8:$B$15,2,FALSE),\"\")","v":""},null,null,null,""]
[139,null,null,null,"","",null,null,null,null,null,null,"",null,{"$f":"IFERROR(VLOOKUP(M144,計算用!$A$8:$B$15,2,FALSE),\"\")","v":""},null,null,null,""]
[140,null,null,null,"","",null,null,null,null,null,null,"",null,{"$f":"IFERROR(VLOOKUP(M145,計算用!$A$8:$B$15,2,FALSE),\"\")","v":""},null,null,null,""]
[141,null,null,null,"","",null,null,null,null,null,null,"",null,{"$f":"IFERROR(VLOOKUP(M146,計算用!$A$8:$B$15,2,FALSE),\"\")","v":""},null,null,null,""]
[142,null,null,null,"","",null,null,null,null,null,null,"",null,{"$f":"IFERROR(VLOOKUP(M147,計算用!$A$8:$B$15,2,FALSE),\"\")","v":""},null,null,null,""]
[143,null,null,null,"","",null,null,null,null,null,null,"",null,{"$f":"IFERROR(VLOOKUP(M148,計算用!$A$8:$B$15,2,FALSE),\"\")","v":""},null,null,null,""]
[144,null,null,null,"","",null,null,null,null,null,null,"",null,{"$f":"IFERROR(VLOOKUP(M149,計算用!$A$8:$B$15,2,FALSE),\"\")","v":""},null,null,null,""]
[145,null,null,null,"","",null,null,null,null,null,null,"",null,{"$f":"IFERROR(VLOOKUP(M150,計算用!$A$8:$B$15,2,FALSE),\"\")","v":""},null,null,null,""]
[{"$f":"ROW()-5","v":146},null,null,null,"","",null,null,null,null,null,null,"",null,{"$f":"IFERROR(VLOOKUP(M151,計算用!$A$8:$B$15,2,FALSE),\"\")","v":""},null,null,null,{"$f":"IF(F151>=2,\"\",\"可\")","v":""}]
[147,null,null,null,{"$f":"B152&C152&D152","v":""},"",null,null,null,null,null,null,"",null,{"$f":"IFERROR(VLOOKUP(M152,計算用!$A$8:$B$15,2,FALSE),\"\")","v":""},null,null,null,""]
[148,null,null,null,"","",null,null,null,null,null,null,"",null,{"$f":"IFERROR(VLOOKUP(M153,計算用!$A$8:$B$15,2,FALSE),\"\")","v":""},null,null,null,""]
[149,null,null,null,"","",null,null,null,null,null,null,"",null,{"$f":"IFERROR(VLOOKUP(M154,計算用!$A$8:$B$15,2,FALSE),\"\")","v":""},null,null,null,""]
[150,null,null,null,"","",null,null,null,null,null,null,"",null,{"$f":"IFERROR(VLOOKUP(M155,計算用!$A$8:$B$15,2,FALSE),\"\")","v":""},null,null,null,""]
[151,null,null,null,"","",null,null,null,null,null,null,"",null,{"$f":"IFERROR(VLOOKUP(M156,計算用!$A$8:$B$15,2,FALSE),\"\")","v":""},null,null,null,""]
[152,null,null,null,"","",null,null,null,null,null,null,"",null,{"$f":"IFERROR(VLOOKUP(M157,計算用!$A$8:$B$15,2,FALSE),\"\")","v":""},null,null,null,""]
[153,null,null,null,"","",null,null,null,null,null,null,"",null,{"$f":"IFERROR(VLOOKUP(M158,計算用!$A$8:$B$15,2,FALSE),\"\")","v":""},null,null,null,""]
[154,null,null,null,"","",null,null,null,null,null,null,{"$f":"K159&L159","v":""},null,{"$f":"IFERROR(VLOOKUP(M159,計算用!$A$8:$B$15,2,FALSE),\"\")","v":""},null,null,null,""]
[155,null,null,null,"","",null,null,null,null,null,null,"",null,{"$f":"IFERROR(VLOOKUP(M160,計算用!$A$8:$B$15,2,FALSE),\"\")","v":""},null,null,null,""]
[156,null,null,null,"","",null,null,null,null,null,null,"",null,{"$f":"IFERROR(VLOOKUP(M161,計算用!$A$8:$B$15,2,FALSE),\"\")","v":""},null,null,null,""]
[157,null,null,null,"","",null,null,null,null,null,null,"",null,{"$f":"IFERROR(VLOOKUP(M162,計算用!$A$8:$B$15,2,FALSE),\"\")","v":""},null,null,null,""]
[158,null,null,null,"","",null,null,null,null,null,null,"",null,{"$f":"IFERROR(VLOOKUP(M163,計算用!$A$8:$B$15,2,FALSE),\"\")","v":""},null,null,null,""]
[159,null,null,null,"","",null,null,null,null,null,null,"",null,{"$f":"IFERROR(VLOOKUP(M164,計算用!$A$8:$B$15,2,FALSE),\"\")","v":""},null,null,null,""]
[160,null,null,null,"","",null,null,null,null,null,null,"",null,{"$f":"IFERROR(VLOOKUP(M165,計算用!$A$8:$B$15,2,FALSE),\"\")","v":""},null,null,null,""]
[161,null,null,null,"","",null,null,null,null,null,null,"",null,{"$f":"IFERROR(VLOOKUP(M166,計算用!$A$8:$B$15,2,FALSE),\"\")","v":""},null,null,null,""]
[162,null,null,null,"","",null,null,null,null,null,null,"",null,{"$f":"IFERROR(VLOOKUP(M167,計算用!$A$8:$B$15,2,FALSE),\"\")","v":""},null,null,null,""]
[163,null,null,null,"","",null,null,null,null,null,null,"",null,{"$f":"IFERROR(VLOOKUP(M168,計算用!$A$8:$B$15,2,FALSE),\"\")","v":""},null,null,null,""]
[164,null,null,null,"","",null,null,null,null,null,null,"",null,{"$f":"IFERROR(VLOOKUP(M169,計算用!$A$8:$B$15,2,FALSE),\"\")","v":""},null,null,null,""]
[165,null,null,null,"","",null,null,null,null,null,null,"",null,{"$f":"IFERROR(VLOOKUP(M170,計算用!$A$8:$B$15,2,FALSE),\"\")","v":""},null,null,null,""]
[166,null,null,null,"","",null,null,null,null,null,null,"",null,{"$f":"IFERROR(VLOOKUP(M171,計算用!$A$8:$B$15,2,FALSE),\"\")","v":""},null,null,null,""]
[167,null,null,null,"","",null,null,null,null,null,null,"",null,{"$f":"IFERROR(VLOOKUP(M172,計算用!$A$8:$B$15,2,FALSE),\"\")","v":""},null,null,null,""]
[168,null,null,null,"","",null,null,null,null,null,null,"",null,{"$f":"IFERROR(VLOOKUP(M173,計算用!$A$8:$B$15,2,FALSE),\"\")","v":""},null,null,null,""]
[169,null,null,null,"","",null,null,null,null,null,null,"",null,{"$f":"IFERROR(VLOOKUP(M174,計算用!$A$8:$B$15,2,FALSE),\"\")","v":""},null,null,null,""]
[170,null,null,null,"",{"$f":"IF(E175=\"\",\"\",COUNTIF($E$6:$E$1385,E175))","v":""},null,null,null,null,null,null,"",null,{"$f":"IFERROR(VLOOKUP(M175,計算用!$A$8:$B$15,2,FALSE),\"\")","v":""},null,null,null,""]
[171,null,null,null,"","",null,null,null,null,null,null,"",null,{"$f":"IFERROR(VLOOKUP(M176,計算用!$A$8:$B$15,2,FALSE),\"\")","v":""},null,null,null,""]
[172,null,null,null,"","",null,null,null,null,null,null,"",null,{"$f":"IFERROR(VLOOKUP(M177,計算用!$A$8:$B$15,2,FALSE),\"\")","v":""},null,null,null,""]
[173,null,null,null,"","",null,null,null,null,null,null,"",null,{"$f":"IFERROR(VLOOKUP(M178,計算用!$A$8:$B$15,2,FALSE),\"\")","v":""},null,null,null,""]
[174,null,null,null,"","",null,null,null,null,null,null,"",null,{"$f":"IFERROR(VLOOKUP(M179,計算用!$A$8:$B$15,2,FALSE),\"\")","v":""},null,null,null,""]
[175,null,null,null,"","",null,null,null,null,null,null,"",null,{"$f":"IFERROR(VLOOKUP(M180,計算用!$A$8:$B$15,2,FALSE),\"\")","v":""},null,null,null,""]
[176,null,null,null,"","",null,null,null,null,null,null,"",null,{"$f":"IFERROR(VLOOKUP(M181,計算用!$A$8:$B$15,2,FALSE),\"\")","v":""},null,null,null,""]
[177,null,null,null,"","",null,null,null,null,null,null,"",null,{"$f":"IFERROR(VLOOKUP(M182,計算用!$A$8:$B$15,2,FALSE),\"\")","v":""},null,null,null,""]
[178,null,null,null,"","",null,null,null,null,null,null,"",null,{"$f":"IFERROR(VLOOKUP(M183,計算用!$A$8:$B$15,2,FALSE),\"\")","v":""},null,null,null,""]
[179,null,null,null,"","",null,null,null,null,null,null,"",null,{"$f":"IFERROR(VLOOKUP(M184,計算用!$A$8:$B$15,2,FALSE),\"\")","v":""},null,null,null,""]
[180,null,null,null,"","",null,null,null,null,null,null,"",null,{"$f":"IFERROR(VLOOKUP(M185,計算用!$A$8:$B$15,2,FALSE),\"\")","v":""},null,null,null,""]
[181,null,null,null,"","",null,null,null,null,null,null,"",null,{"$f":"IFERROR(VLOOKUP(M186,計算用!$A$8:$B$15,2,FALSE),\"\")","v":""},null,null,null,""]
[182,null,null,null,"","",null,null,null,null,null,null,"",null,{"$f":"IFERROR(VLOOKUP(M187,計算用!$A$8:$B$15,2,FALSE),\"\")","v":""},null,null,null,""]
[183,null,null,null,"","",null,null,null,null,null,null,"",null,{"$f":"IFERROR(VLOOKUP(M188,計算用!$A$8:$B$15,2,FALSE),\"\")","v":""},null,null,null,""]
[184,null,null,null,"","",null,null,null,null,null,null,"",null,{"$f":"IFERROR(VLOOKUP(M189,計算用!$A$8:$B$15,2,FALSE),\"\")","v":""},null,null,null,""]
[185,null,null,null,"","",null,null,null,null,null,null,"",null,{"$f":"IFERROR(VLOOKUP(M190,計算用!$A$8:$B$15,2,FALSE),\"\")","v":""},null,null,null,""]
[186,null,null,null,"","",null,null,null,null,null,null,"",null,{"$f":"IFERROR(VLOOKUP(M191,計算用!$A$8:$B$15,2,FALSE),\"\")","v":""},null,null,null,{"$f":"IF(F191>=2,\"\",\"可\")","v":""}]
[187,null,null,null,{"$f":"B192&C192&D192","v":""},"",null,null,null,null,null,null,"",null,{"$f":"IFERROR(VLOOKUP(M192,計算用!$A$8:$B$15,2,FALSE),\"\")","v":""},null,null,null,""]
[188,null,null,null,"","",null,null,null,null,null,null,"",null,{"$f":"IFERROR(VLOOKUP(M193,計算用!$A$8:$B$15,2,FALSE),\"\")","v":""},null,null,null,""]
[189,null,null,null,"","",null,null,null,null,null,null,"",null,{"$f":"IFERROR(VLOOKUP(M194,計算用!$A$8:$B$15,2,FALSE),\"\")","v":""},null,null,null,""]
[190,null,null,null,"","",null,null,null,null,null,null,"",null,{"$f":"IFERROR(VLOOKUP(M195,計算用!$A$8:$B$15,2,FALSE),\"\")","v":""},null,null,null,""]
[191,null,null,null,"","",null,null,null,null,null,null,"",null,{"$f":"IFERROR(VLOOKUP(M196,計算用!$A$8:$B$15,2,FALSE),\"\")","v":""},null,null,null,""]
[192,null,null,null,"","",null,null,null,null,null,null,"",null,{"$f":"IFERROR(VLOOKUP(M197,計算用!$A$8:$B$15,2,FALSE),\"\")","v":""},null,null,null,""]
[193,null,null,null,"","",null,null,null,null,null,null,"",null,{"$f":"IFERROR(VLOOKUP(M198,計算用!$A$8:$B$15,2,FALSE),\"\")","v":""},null,null,null,""]
[194,null,null,null,"","",null,null,null,null,null,null,{"$f":"K199&L199","v":""},null,{"$f":"IFERROR(VLOOKUP(M199,計算用!$A$8:$B$15,2,FALSE),\"\")","v":""},null,null,null,""]
[195,null,null,null,"","",null,null,null,null,null,null,"",null,{"$f":"IFERROR(VLOOKUP(M200,計算用!$A$8:$B$15,2,FALSE),\"\")","v":""},null,null,null,""]
[196,null,null,null,"","",null,null,null,null,null,null,"",null,{"$f":"IFERROR(VLOOKUP(M201,計算用!$A$8:$B$15,2,FALSE),\"\")","v":""},null,null,null,""]
[197,null,null,null,"","",null,null,null,null,null,null,"",null,{"$f":"IFERROR(VLOOKUP(M202,計算用!$A$8:$B$15,2,FALSE),\"\")","v":""},null,null,null,""]
[198,null,null,null,"","",null,null,null,null,null,null,"",null,{"$f":"IFERROR(VLOOKUP(M203,計算用!$A$8:$B$15,2,FALSE),\"\")","v":""},null,null,null,""]
[199,null,null,null,"","",null,null,null,null,null,null,"",null,{"$f":"IFERROR(VLOOKUP(M204,計算用!$A$8:$B$15,2,FALSE),\"\")","v":""},null,null,null,""]
[200,null,null,null,"","",null,null,null,null,null,null,"",null,{"$f":"IFERROR(VLOOKUP(M205,計算用!$A$8:$B$15,2,FALSE),\"\")","v":""},null,null,null,""]
[201,null,null,null,"","",null,null,null,null,null,null,"",null,{"$f":"IFERROR(VLOOKUP(M206,計算用!$A$8:$B$15,2,FALSE),\"\")","v":""},null,null,null,""]
[202,null,null,null,"","",null,null,null,null,null,null,"",null,{"$f":"IFERROR(VLOOKUP(M207,計算用!$A$8:$B$15,2,FALSE),\"\")","v":""},null,null,null,""]
[203,null,null,null,"","",null,null,null,null,null,null,"",null,{"$f":"IFERROR(VLOOKUP(M208,計算用!$A$8:$B$15,2,FALSE),\"\")","v":""},null,null,null,""]
[204,null,null,null,"","",null,null,null,null,null,null,"",null,{"$f":"IFERROR(VLOOKUP(M209,計算用!$A$8:$B$15,2,FALSE),\"\")","v":""},null,null,null,""]
[205,null,null,null,"","",null,null,null,null,null,null,"",null,{"$f":"IFERROR(VLOOKUP(M210,計算用!$A$8:$B$15,2,FALSE),\"\")","v":""},null,null,null,""]
[206,null,null,null,"","",null,null,null,null,null,null,"",null,{"$f":"IFERROR(VLOOKUP(M211,計算用!$A$8:$B$15,2,FALSE),\"\")","v":""},null,null,null,""]
[207,null,null,null,"","",null,null,null,null,null,null,"",null,{"$f":"IFERROR(VLOOKUP(M212,計算用!$A$8:$B$15,2,FALSE),\"\")","v":""},null,null,null,""]
[208,null,null,null,"","",null,null,null,null,null,null,"",null,{"$f":"IFERROR(VLOOKUP(M213,計算用!$A$8:$B$15,2,FALSE),\"\")","v":""},null,null,null,""]
[209,null,null,null,"","",null,null,null,null,null,null,"",null,{"$f":"IFERROR(VLOOKUP(M214,計算用!$A$8:$B$15,2,FALSE),\"\")","v":""},null,null,null,""]
[{"$f":"ROW()-5","v":210},null,null,null,"","",null,null,null,null,null,null,"",null,{"$f":"IFERROR(VLOOKUP(M215,計算用!$A$8:$B$15,2,FALSE),\"\")","v":""},null,null,null,""]
[211,null,null,null,"","",null,null,null,null,null,null,"",null,{"$f":"IFERROR(VLOOKUP(M216,計算用!$A$8:$B$15,2,FALSE),\"\")","v":""},null,null,null,""]
[212,null,null,null,"","",null,null,null,null,null,null,"",null,{"$f":"IFERROR(VLOOKUP(M217,計算用!$A$8:$B$15,2,FALSE),\"\")","v":""},null,null,null,""]
[213,null,null,null,"","",null,null,null,null,null,null,"",null,{"$f":"IFERROR(VLOOKUP(M218,計算用!$A$8:$B$15,2,FALSE),\"\")","v":""},null,null,null,""]
[214,null,null,null,"","",null,null,null,null,null,null,"",null,{"$f":"IFERROR(VLOOKUP(M219,計算用!$A$8:$B$15,2,FALSE),\"\")","v":""},null,null,null,""]
[215,null,null,null,"","",null,null,null,null,null,null,"",null,{"$f":"IFERROR(VLOOKUP(M220,計算用!$A$8:$B$15,2,FALSE),\"\")","v":""},null,null,null,""]
[216,null,null,null,"","",null,null,null,null,null,null,"",null,{"$f":"IFERROR(VLOOKUP(M221,計算用!$A$8:$B$15,2,FALSE),\"\")","v":""},null,null,null,""]
[217,null,null,null,"","",null,null,null,null,null,null,"",null,{"$f":"IFERROR(VLOOKUP(M222,計算用!$A$8:$B$15,2,FALSE),\"\")","v":""},null,null,null,""]
[218,null,null,null,"","",null,null,null,null,null,null,"",null,{"$f":"IFERROR(VLOOKUP(M223,計算用!$A$8:$B$15,2,FALSE),\"\")","v":""},null,null,null,""]
[219,null,null,null,"","",null,null,null,null,null,null,"",null,{"$f":"IFERROR(VLOOKUP(M224,計算用!$A$8:$B$15,2,FALSE),\"\")","v":""},null,null,null,""]
[220,null,null,null,"","",null,null,null,null,null,null,"",null,{"$f":"IFERROR(VLOOKUP(M225,計算用!$A$8:$B$15,2,FALSE),\"\")","v":""},null,null,null,""]
[221,null,null,null,"","",null,null,null,null,null,null,"",null,{"$f":"IFERROR(VLOOKUP(M226,計算用!$A$8:$B$15,2,FALSE),\"\")","v":""},null,null,null,""]
[222,null,null,null,"","",null,null,null,null,null,null,"",null,{"$f":"IFERROR(VLOOKUP(M227,計算用!$A$8:$B$15,2,FALSE),\"\")","v":""},null,null,null,""]
[223,null,null,null,"","",null,null,null,null,null,null,"",null,{"$f":"IFERROR(VLOOKUP(M228,計算用!$A$8:$B$15,2,FALSE),\"\")","v":""},null,null,null,""]
[224,null,null,null,"","",null,null,null,null,null,null,"",null,{"$f":"IFERROR(VLOOKUP(M229,計算用!$A$8:$B$15,2,FALSE),\"\")","v":""},null,null,null,""]
[225,null,null,null,"","",null,null,null,null,null,null,"",null,{"$f":"IFERROR(VLOOKUP(M230,計算用!$A$8:$B$15,2,FALSE),\"\")","v":""},null,null,null,""]
[226,null,null,null,"","",null,null,null,null,null,null,"",null,{"$f":"IFERROR(VLOOKUP(M231,計算用!$A$8:$B$15,2,FALSE),\"\")","v":""},null,null,null,""]
[227,null,null,null,"","",null,null,null,null,null,null,"",null,{"$f":"IFERROR(VLOOKUP(M232,計算用!$A$8:$B$15,2,FALSE),\"\")","v":""},null,null,null,""]
[228,null,null,null,"","",null,null,null,null,null,null,"",null,{"$f":"IFERROR(VLOOKUP(M233,計算用!$A$8:$B$15,2,FALSE),\"\")","v":""},null,null,null,""]
[229,null,null,null,"","",null,null,null,null,null,null,"",null,{"$f":"IFERROR(VLOOKUP(M234,計算用!$A$8:$B$15,2,FALSE),\"\")","v":""},null,null,null,""]
[230,null,null,null,"","",null,null,null,null,null,null,"",null,{"$f":"IFERROR(VLOOKUP(M235,計算用!$A$8:$B$15,2,FALSE),\"\")","v":""},null,null,null,""]
[231,null,null,null,"","",null,null,null,null,null,null,"",null,{"$f":"IFERROR(VLOOKUP(M236,計算用!$A$8:$B$15,2,FALSE),\"\")","v":""},null,null,null,""]
[232,null,null,null,"","",null,null,null,null,null,null,"",null,{"$f":"IFERROR(VLOOKUP(M237,計算用!$A$8:$B$15,2,FALSE),\"\")","v":""},null,null,null,""]
[233,null,null,null,"","",null,null,null,null,null,null,"",null,{"$f":"IFERROR(VLOOKUP(M238,計算用!$A$8:$B$15,2,FALSE),\"\")","v":""},null,null,null,""]
[234,null,null,null,"",{"$f":"IF(E239=\"\",\"\",COUNTIF($E$6:$E$1385,E239))","v":""},null,null,null,null,null,null,"",null,{"$f":"IFERROR(VLOOKUP(M239,計算用!$A$8:$B$15,2,FALSE),\"\")","v":""},null,null,null,""]
[235,null,null,null,"","",null,null,null,null,null,null,"",null,{"$f":"IFERROR(VLOOKUP(M240,計算用!$A$8:$B$15,2,FALSE),\"\")","v":""},null,null,null,""]
[236,null,null,null,"","",null,null,null,null,null,null,"",null,{"$f":"IFERROR(VLOOKUP(M241,計算用!$A$8:$B$15,2,FALSE),\"\")","v":""},null,null,null,""]
[237,null,null,null,"","",null,null,null,null,null,null,"",null,{"$f":"IFERROR(VLOOKUP(M242,計算用!$A$8:$B$15,2,FALSE),\"\")","v":""},null,null,null,""]
[238,null,null,null,"","",null,null,null,null,null,null,"",null,{"$f":"IFERROR(VLOOKUP(M243,計算用!$A$8:$B$15,2,FALSE),\"\")","v":""},null,null,null,""]
[239,null,null,null,"","",null,null,null,null,null,null,"",null,{"$f":"IFERROR(VLOOKUP(M244,計算用!$A$8:$B$15,2,FALSE),\"\")","v":""},null,null,null,""]
[240,null,null,null,"","",null,null,null,null,null,null,"",null,{"$f":"IFERROR(VLOOKUP(M245,計算用!$A$8:$B$15,2,FALSE),\"\")","v":""},null,null,null,""]
[241,null,null,null,"","",null,null,null,null,null,null,"",null,{"$f":"IFERROR(VLOOKUP(M246,計算用!$A$8:$B$15,2,FALSE),\"\")","v":""},null,null,null,""]
[242,null,null,null,"","",null,null,null,null,null,null,"",null,{"$f":"IFERROR(VLOOKUP(M247,計算用!$A$8:$B$15,2,FALSE),\"\")","v":""},null,null,null,""]
[243,null,null,null,"","",null,null,null,null,null,null,"",null,{"$f":"IFERROR(VLOOKUP(M248,計算用!$A$8:$B$15,2,FALSE),\"\")","v":""},null,null,null,""]
[244,null,null,null,"","",null,null,null,null,null,null,"",null,{"$f":"IFERROR(VLOOKUP(M249,計算用!$A$8:$B$15,2,FALSE),\"\")","v":""},null,null,null,""]
[245,null,null,null,"","",null,null,null,null,null,null,"",null,{"$f":"IFERROR(VLOOKUP(M250,計算用!$A$8:$B$15,2,FALSE),\"\")","v":""},null,null,null,""]
[246,null,null,null,"","",null,null,null,null,null,null,"",null,{"$f":"IFERROR(VLOOKUP(M251,計算用!$A$8:$B$15,2,FALSE),\"\")","v":""},null,null,null,""]
[247,null,null,null,"","",null,null,null,null,null,null,"",null,{"$f":"IFERROR(VLOOKUP(M252,計算用!$A$8:$B$15,2,FALSE),\"\")","v":""},null,null,null,""]
[248,null,null,null,"","",null,null,null,null,null,null,"",null,{"$f":"IFERROR(VLOOKUP(M253,計算用!$A$8:$B$15,2,FALSE),\"\")","v":""},null,null,null,""]
[249,null,null,null,"","",null,null,null,null,null,null,"",null,{"$f":"IFERROR(VLOOKUP(M254,計算用!$A$8:$B$15,2,FALSE),\"\")","v":""},null,null,null,""]
[250,null,null,null,"","",null,null,null,null,null,null,"",null,{"$f":"IFERROR(VLOOKUP(M255,計算用!$A$8:$B$15,2,FALSE),\"\")","v":""},null,null,null,{"$f":"IF(F255>=2,\"\",\"可\")","v":""}]
[251,null,null,null,{"$f":"B256&C256&D256","v":""},"",null,null,null,null,null,null,"",null,{"$f":"IFERROR(VLOOKUP(M256,計算用!$A$8:$B$15,2,FALSE),\"\")","v":""},null,null,null,""]
[252,null,null,null,"","",null,null,null,null,null,null,"",null,{"$f":"IFERROR(VLOOKUP(M257,計算用!$A$8:$B$15,2,FALSE),\"\")","v":""},null,null,null,""]
[253,null,null,null,"","",null,null,null,null,null,null,"",null,{"$f":"IFERROR(VLOOKUP(M258,計算用!$A$8:$B$15,2,FALSE),\"\")","v":""},null,null,null,""]
[254,null,null,null,"","",null,null,null,null,null,null,"",null,{"$f":"IFERROR(VLOOKUP(M259,計算用!$A$8:$B$15,2,FALSE),\"\")","v":""},null,null,null,""]
[255,null,null,null,"","",null,null,null,null,null,null,"",null,{"$f":"IFERROR(VLOOKUP(M260,計算用!$A$8:$B$15,2,FALSE),\"\")","v":""},null,null,null,""]
[256,null,null,null,"","",null,null,null,null,null,null,"",null,{"$f":"IFERROR(VLOOKUP(M261,計算用!$A$8:$B$15,2,FALSE),\"\")","v":""},null,null,null,""]
[257,null,null,null,"","",null,null,null,null,null,null,"",null,{"$f":"IFERROR(VLOOKUP(M262,計算用!$A$8:$B$15,2,FALSE),\"\")","v":""},null,null,null,""]
[258,null,null,null,"","",null,null,null,null,null,null,{"$f":"K263&L263","v":""},null,{"$f":"IFERROR(VLOOKUP(M263,計算用!$A$8:$B$15,2,FALSE),\"\")","v":""},null,null,null,""]
[259,null,null,null,"","",null,null,null,null,null,null,"",null,{"$f":"IFERROR(VLOOKUP(M264,計算用!$A$8:$B$15,2,FALSE),\"\")","v":""},null,null,null,""]
[260,null,null,null,"","",null,null,null,null,null,null,"",null,{"$f":"IFERROR(VLOOKUP(M265,計算用!$A$8:$B$15,2,FALSE),\"\")","v":""},null,null,null,""]
[261,null,null,null,"","",null,null,null,null,null,null,"",null,{"$f":"IFERROR(VLOOKUP(M266,計算用!$A$8:$B$15,2,FALSE),\"\")","v":""},null,null,null,""]
[262,null,null,null,"","",null,null,null,null,null,null,"",null,{"$f":"IFERROR(VLOOKUP(M267,計算用!$A$8:$B$15,2,FALSE),\"\")","v":""},null,null,null,""]
[263,null,null,null,"","",null,null,null,null,null,null,"",null,{"$f":"IFERROR(VLOOKUP(M268,計算用!$A$8:$B$15,2,FALSE),\"\")","v":""},null,null,null,""]
[264,null,null,null,"","",null,null,null,null,null,null,"",null,{"$f":"IFERROR(VLOOKUP(M269,計算用!$A$8:$B$15,2,FALSE),\"\")","v":""},null,null,null,""]
[265,null,null,null,"","",null,null,null,null,null,null,"",null,{"$f":"IFERROR(VLOOKUP(M270,計算用!$A$8:$B$15,2,FALSE),\"\")","v":""},null,null,null,""]
[266,null,null,null,"","",null,null,null,null,null,null,"",null,{"$f":"IFERROR(VLOOKUP(M271,計算用!$A$8:$B$15,2,FALSE),\"\")","v":""},null,null,null,""]
[267,null,null,null,"","",null,null,null,null,null,null,"",null,{"$f":"IFERROR(VLOOKUP(M272,計算用!$A$8:$B$15,2,FALSE),\"\")","v":""},null,null,null,""]
[268,null,null,null,"","",null,null,null,null,null,null,"",null,{"$f":"IFERROR(VLOOKUP(M273,計算用!$A$8:$B$15,2,FALSE),\"\")","v":""},null,null,null,""]
[269,null,null,null,"","",null,null,null,null,null,null,"",null,{"$f":"IFERROR(VLOOKUP(M274,計算用!$A$8:$B$15,2,FALSE),\"\")","v":""},null,null,null,""]
[270,null,null,null,"","",null,null,null,null,null,null,"",null,{"$f":"IFERROR(VLOOKUP(M275,計算用!$A$8:$B$15,2,FALSE),\"\")","v":""},null,null,null,""]
[271,null,null,null,"","",null,null,null,null,null,null,"",null,{"$f":"IFERROR(VLOOKUP(M276,計算用!$A$8:$B$15,2,FALSE),\"\")","v":""},null,null,null,""]
[272,null,null,null,"","",null,null,null,null,null,null,"",null,{"$f":"IFERROR(VLOOKUP(M277,計算用!$A$8:$B$15,2,FALSE),\"\")","v":""},null,null,null,""]
[273,null,null,null,"","",null,null,null,null,null,null,"",null,{"$f":"IFERROR(VLOOKUP(M278,計算用!$A$8:$B$15,2,FALSE),\"\")","v":""},null,null,null,""]
[{"$f":"ROW()-5","v":274},null,null,null,"","",null,null,null,null,null,null,"",null,{"$f":"IFERROR(VLOOKUP(M279,計算用!$A$8:$B$15,2,FALSE),\"\")","v":""},null,null,null,""]
[275,null,null,null,"","",null,null,null,null,null,null,"",null,{"$f":"IFERROR(VLOOKUP(M280,計算用!$A$8:$B$15,2,FALSE),\"\")","v":""},null,null,null,""]
[276,null,null,null,"","",null,null,null,null,null,null,"",null,{"$f":"IFERROR(VLOOKUP(M281,計算用!$A$8:$B$15,2,FALSE),\"\")","v":""},null,null,null,""]
[277,null,null,null,"","",null,null,null,null,null,null,"",null,{"$f":"IFERROR(VLOOKUP(M282,計算用!$A$8:$B$15,2,FALSE),\"\")","v":""},null,null,null,""]
[278,null,null,null,"","",null,null,null,null,null,null,"",null,{"$f":"IFERROR(VLOOKUP(M283,計算用!$A$8:$B$15,2,FALSE),\"\")","v":""},null,null,null,""]
[279,null,null,null,"","",null,null,null,null,null,null,"",null,{"$f":"IFERROR(VLOOKUP(M284,計算用!$A$8:$B$15,2,FALSE),\"\")","v":""},null,null,null,""]
[280,null,null,null,"","",null,null,null,null,null,null,"",null,{"$f":"IFERROR(VLOOKUP(M285,計算用!$A$8:$B$15,2,FALSE),\"\")","v":""},null,null,null,""]
[281,null,null,null,"","",null,null,null,null,null,null,"",null,{"$f":"IFERROR(VLOOKUP(M286,計算用!$A$8:$B$15,2,FALSE),\"\")","v":""},null,null,null,""]
[282,null,null,null,"","",null,null,null,null,null,null,"",null,{"$f":"IFERROR(VLOOKUP(M287,計算用!$A$8:$B$15,2,FALSE),\"\")","v":""},null,null,null,""]
[283,null,null,null,"","",null,null,null,null,null,null,"",null,{"$f":"IFERROR(VLOOKUP(M288,計算用!$A$8:$B$15,2,FALSE),\"\")","v":""},null,null,null,""]
[284,null,null,null,"","",null,null,null,null,null,null,"",null,{"$f":"IFERROR(VLOOKUP(M289,計算用!$A$8:$B$15,2,FALSE),\"\")","v":""},null,null,null,""]
[285,null,null,null,"","",null,null,null,null,null,null,"",null,{"$f":"IFERROR(VLOOKUP(M290,計算用!$A$8:$B$15,2,FALSE),\"\")","v":""},null,null,null,""]
[286,null,null,null,"","",null,null,null,null,null,null,"",null,{"$f":"IFERROR(VLOOKUP(M291,計算用!$A$8:$B$15,2,FALSE),\"\")","v":""},null,null,null,""]
[287,null,null,null,"","",null,null,null,null,null,null,"",null,{"$f":"IFERROR(VLOOKUP(M292,計算用!$A$8:$B$15,2,FALSE),\"\")","v":""},null,null,null,""]
[288,null,null,null,"","",null,null,null,null,null,null,"",null,{"$f":"IFERROR(VLOOKUP(M293,計算用!$A$8:$B$15,2,FALSE),\"\")","v":""},null,null,null,""]
[289,null,null,null,"","",null,null,null,null,null,null,"",null,{"$f":"IFERROR(VLOOKUP(M294,計算用!$A$8:$B$15,2,FALSE),\"\")","v":""},null,null,null,""]
[290,null,null,null,"","",null,null,null,null,null,null,"",null,{"$f":"IFERROR(VLOOKUP(M295,計算用!$A$8:$B$15,2,FALSE),\"\")","v":""},null,null,null,""]
[291,null,null,null,"","",null,null,null,null,null,null,"",null,{"$f":"IFERROR(VLOOKUP(M296,計算用!$A$8:$B$15,2,FALSE),\"\")","v":""},null,null,null,""]
[292,null,null,null,"","",null,null,null,null,null,null,"",null,{"$f":"IFERROR(VLOOKUP(M297,計算用!$A$8:$B$15,2,FALSE),\"\")","v":""},null,null,null,""]
[293,null,null,null,"","",null,null,null,null,null,null,"",null,{"$f":"IFERROR(VLOOKUP(M298,計算用!$A$8:$B$15,2,FALSE),\"\")","v":""},null,null,null,""]
[294,null,null,null,"","",null,null,null,null,null,null,"",null,{"$f":"IFERROR(VLOOKUP(M299,計算用!$A$8:$B$15,2,FALSE),\"\")","v":""},null,null,null,""]
[295,null,null,null,"","",null,null,null,null,null,null,"",null,{"$f":"IFERROR(VLOOKUP(M300,計算用!$A$8:$B$15,2,FALSE),\"\")","v":""},null,null,null,""]
[296,null,null,null,"","",null,null,null,null,null,null,"",null,{"$f":"IFERROR(VLOOKUP(M301,計算用!$A$8:$B$15,2,FALSE),\"\")","v":""},null,null,null,""]
[297,null,null,null,"","",null,null,null,null,null,null,"",null,{"$f":"IFERROR(VLOOKUP(M302,計算用!$A$8:$B$15,2,FALSE),\"\")","v":""},null,null,null,""]
[298,null,null,null,"",{"$f":"IF(E303=\"\",\"\",COUNTIF($E$6:$E$1385,E303))","v":""},null,null,null,null,null,null,"",null,{"$f":"IFERROR(VLOOKUP(M303,計算用!$A$8:$B$15,2,FALSE),\"\")","v":""},null,null,null,""]
[299,null,null,null,"","",null,null,null,null,null,null,"",null,{"$f":"IFERROR(VLOOKUP(M304,計算用!$A$8:$B$15,2,FALSE),\"\")","v":""},null,null,null,""]
[300,null,null,null,"","",null,null,null,null,null,null,"",null,{"$f":"IFERROR(VLOOKUP(M305,計算用!$A$8:$B$15,2,FALSE),\"\")","v":""},null,null,null,""]
[301,null,null,null,"","",null,null,null,null,null,null,"",null,{"$f":"IFERROR(VLOOKUP(M306,計算用!$A$8:$B$15,2,FALSE),\"\")","v":""},null,null,null,""]
[302,null,null,null,"","",null,null,null,null,null,null,"",null,{"$f":"IFERROR(VLOOKUP(M307,計算用!$A$8:$B$15,2,FALSE),\"\")","v":""},null,null,null,""]
[303,null,null,null,"","",null,null,null,null,null,null,"",null,{"$f":"IFERROR(VLOOKUP(M308,計算用!$A$8:$B$15,2,FALSE),\"\")","v":""},null,null,null,""]
[304,null,null,null,"","",null,null,null,null,null,null,"",null,{"$f":"IFERROR(VLOOKUP(M309,計算用!$A$8:$B$15,2,FALSE),\"\")","v":""},null,null,null,""]
[305,null,null,null,"","",null,null,null,null,null,null,"",null,{"$f":"IFERROR(VLOOKUP(M310,計算用!$A$8:$B$15,2,FALSE),\"\")","v":""},null,null,null,""]
[306,null,null,null,"","",null,null,null,null,null,null,"",null,{"$f":"IFERROR(VLOOKUP(M311,計算用!$A$8:$B$15,2,FALSE),\"\")","v":""},null,null,null,""]
[307,null,null,null,"","",null,null,null,null,null,null,"",null,{"$f":"IFERROR(VLOOKUP(M312,計算用!$A$8:$B$15,2,FALSE),\"\")","v":""},null,null,null,""]
[308,null,null,null,"","",null,null,null,null,null,null,"",null,{"$f":"IFERROR(VLOOKUP(M313,計算用!$A$8:$B$15,2,FALSE),\"\")","v":""},null,null,null,""]
[309,null,null,null,"","",null,null,null,null,null,null,"",null,{"$f":"IFERROR(VLOOKUP(M314,計算用!$A$8:$B$15,2,FALSE),\"\")","v":""},null,null,null,""]
[310,null,null,null,"","",null,null,null,null,null,null,"",null,{"$f":"IFERROR(VLOOKUP(M315,計算用!$A$8:$B$15,2,FALSE),\"\")","v":""},null,null,null,""]
[311,null,null,null,"","",null,null,null,null,null,null,"",null,{"$f":"IFERROR(VLOOKUP(M316,計算用!$A$8:$B$15,2,FALSE),\"\")","v":""},null,null,null,""]
[312,null,null,null,"","",null,null,null,null,null,null,"",null,{"$f":"IFERROR(VLOOKUP(M317,計算用!$A$8:$B$15,2,FALSE),\"\")","v":""},null,null,null,""]
[313,null,null,null,"","",null,null,null,null,null,null,"",null,{"$f":"IFERROR(VLOOKUP(M318,計算用!$A$8:$B$15,2,FALSE),\"\")","v":""},null,null,null,""]
[314,null,null,null,"","",null,null,null,null,null,null,"",null,{"$f":"IFERROR(VLOOKUP(M319,計算用!$A$8:$B$15,2,FALSE),\"\")","v":""},null,null,null,{"$f":"IF(F319>=2,\"\",\"可\")","v":""}]
[315,null,null,null,{"$f":"B320&C320&D320","v":""},"",null,null,null,null,null,null,"",null,{"$f":"IFERROR(VLOOKUP(M320,計算用!$A$8:$B$15,2,FALSE),\"\")","v":""},null,null,null,""]
[316,null,null,null,"","",null,null,null,null,null,null,"",null,{"$f":"IFERROR(VLOOKUP(M321,計算用!$A$8:$B$15,2,FALSE),\"\")","v":""},null,null,null,""]
[317,null,null,null,"","",null,null,null,null,null,null,"",null,{"$f":"IFERROR(VLOOKUP(M322,計算用!$A$8:$B$15,2,FALSE),\"\")","v":""},null,null,null,""]
[318,null,null,null,"","",null,null,null,null,null,null,"",null,{"$f":"IFERROR(VLOOKUP(M323,計算用!$A$8:$B$15,2,FALSE),\"\")","v":""},null,null,null,""]
[319,null,null,null,"","",null,null,null,null,null,null,"",null,{"$f":"IFERROR(VLOOKUP(M324,計算用!$A$8:$B$15,2,FALSE),\"\")","v":""},null,null,null,""]
[320,null,null,null,"","",null,null,null,null,null,null,"",null,{"$f":"IFERROR(VLOOKUP(M325,計算用!$A$8:$B$15,2,FALSE),\"\")","v":""},null,null,null,""]
[321,null,null,null,"","",null,null,null,null,null,null,"",null,{"$f":"IFERROR(VLOOKUP(M326,計算用!$A$8:$B$15,2,FALSE),\"\")","v":""},null,null,null,""]
[322,null,null,null,"","",null,null,null,null,null,null,{"$f":"K327&L327","v":""},null,{"$f":"IFERROR(VLOOKUP(M327,計算用!$A$8:$B$15,2,FALSE),\"\")","v":""},null,null,null,""]
[323,null,null,null,"","",null,null,null,null,null,null,"",null,{"$f":"IFERROR(VLOOKUP(M328,計算用!$A$8:$B$15,2,FALSE),\"\")","v":""},null,null,null,""]
[324,null,null,null,"","",null,null,null,null,null,null,"",null,{"$f":"IFERROR(VLOOKUP(M329,計算用!$A$8:$B$15,2,FALSE),\"\")","v":""},null,null,null,""]
[325,null,null,null,"","",null,null,null,null,null,null,"",null,{"$f":"IFERROR(VLOOKUP(M330,計算用!$A$8:$B$15,2,FALSE),\"\")","v":""},null,null,null,""]
[326,null,null,null,"","",null,null,null,null,null,null,"",null,{"$f":"IFERROR(VLOOKUP(M331,計算用!$A$8:$B$15,2,FALSE),\"\")","v":""},null,null,null,""]
[327,null,null,null,"","",null,null,null,null,null,null,"",null,{"$f":"IFERROR(VLOOKUP(M332,計算用!$A$8:$B$15,2,FALSE),\"\")","v":""},null,null,null,""]
[328,null,null,null,"","",null,null,null,null,null,null,"",null,{"$f":"IFERROR(VLOOKUP(M333,計算用!$A$8:$B$15,2,FALSE),\"\")","v":""},null,null,null,""]
[329,null,null,null,"","",null,null,null,null,null,null,"",null,{"$f":"IFERROR(VLOOKUP(M334,計算用!$A$8:$B$15,2,FALSE),\"\")","v":""},null,null,null,""]
[330,null,null,null,"","",null,null,null,null,null,null,"",null,{"$f":"IFERROR(VLOOKUP(M335,計算用!$A$8:$B$15,2,FALSE),\"\")","v":""},null,null,null,""]
[331,null,null,null,"","",null,null,null,null,null,null,"",null,{"$f":"IFERROR(VLOOKUP(M336,計算用!$A$8:$B$15,2,FALSE),\"\")","v":""},null,null,null,""]
[332,null,null,null,"","",null,null,null,null,null,null,"",null,{"$f":"IFERROR(VLOOKUP(M337,計算用!$A$8:$B$15,2,FALSE),\"\")","v":""},null,null,null,""]
[333,null,null,null,"","",null,null,null,null,null,null,"",null,{"$f":"IFERROR(VLOOKUP(M338,計算用!$A$8:$B$15,2,FALSE),\"\")","v":""},null,null,null,""]
[334,null,null,null,"","",null,null,null,null,null,null,"",null,{"$f":"IFERROR(VLOOKUP(M339,計算用!$A$8:$B$15,2,FALSE),\"\")","v":""},null,null,null,""]
[335,null,null,null,"","",null,null,null,null,null,null,"",null,{"$f":"IFERROR(VLOOKUP(M340,計算用!$A$8:$B$15,2,FALSE),\"\")","v":""},null,null,null,""]
[336,null,null,null,"","",null,null,null,null,null,null,"",null,{"$f":"IFERROR(VLOOKUP(M341,計算用!$A$8:$B$15,2,FALSE),\"\")","v":""},null,null,null,""]
[337,null,null,null,"","",null,null,null,null,null,null,"",null,{"$f":"IFERROR(VLOOKUP(M342,計算用!$A$8:$B$15,2,FALSE),\"\")","v":""},null,null,null,""]
[{"$f":"ROW()-5","v":338},null,null,null,"","",null,null,null,null,null,null,"",null,{"$f":"IFERROR(VLOOKUP(M343,計算用!$A$8:$B$15,2,FALSE),\"\")","v":""},null,null,null,""]
[339,null,null,null,"","",null,null,null,null,null,null,"",null,{"$f":"IFERROR(VLOOKUP(M344,計算用!$A$8:$B$15,2,FALSE),\"\")","v":""},null,null,null,""]
[340,null,null,null,"","",null,null,null,null,null,null,"",null,{"$f":"IFERROR(VLOOKUP(M345,計算用!$A$8:$B$15,2,FALSE),\"\")","v":""},null,null,null,""]
[341,null,null,null,"","",null,null,null,null,null,null,"",null,{"$f":"IFERROR(VLOOKUP(M346,計算用!$A$8:$B$15,2,FALSE),\"\")","v":""},null,null,null,""]
[342,null,null,null,"","",null,null,null,null,null,null,"",null,{"$f":"IFERROR(VLOOKUP(M347,計算用!$A$8:$B$15,2,FALSE),\"\")","v":""},null,null,null,""]
[343,null,null,null,"","",null,null,null,null,null,null,"",null,{"$f":"IFERROR(VLOOKUP(M348,計算用!$A$8:$B$15,2,FALSE),\"\")","v":""},null,null,null,""]
[344,null,null,null,"","",null,null,null,null,null,null,"",null,{"$f":"IFERROR(VLOOKUP(M349,計算用!$A$8:$B$15,2,FALSE),\"\")","v":""},null,null,null,""]
[345,null,null,null,"","",null,null,null,null,null,null,"",null,{"$f":"IFERROR(VLOOKUP(M350,計算用!$A$8:$B$15,2,FALSE),\"\")","v":""},null,null,null,""]
[346,null,null,null,"","",null,null,null,null,null,null,"",null,{"$f":"IFERROR(VLOOKUP(M351,計算用!$A$8:$B$15,2,FALSE),\"\")","v":""},null,null,null,""]
[347,null,null,null,"","",null,null,null,null,null,null,"",null,{"$f":"IFERROR(VLOOKUP(M352,計算用!$A$8:$B$15,2,FALSE),\"\")","v":""},null,null,null,""]
[348,null,null,null,"","",null,null,null,null,null,null,"",null,{"$f":"IFERROR(VLOOKUP(M353,計算用!$A$8:$B$15,2,FALSE),\"\")","v":""},null,null,null,""]
[349,null,null,null,"","",null,null,null,null,null,null,"",null,{"$f":"IFERROR(VLOOKUP(M354,計算用!$A$8:$B$15,2,FALSE),\"\")","v":""},null,null,null,""]
[350,null,null,null,"","",null,null,null,null,null,null,"",null,{"$f":"IFERROR(VLOOKUP(M355,計算用!$A$8:$B$15,2,FALSE),\"\")","v":""},null,null,null,""]
[351,null,null,null,"","",null,null,null,null,null,null,"",null,{"$f":"IFERROR(VLOOKUP(M356,計算用!$A$8:$B$15,2,FALSE),\"\")","v":""},null,null,null,""]
[352,null,null,null,"","",null,null,null,null,null,null,"",null,{"$f":"IFERROR(VLOOKUP(M357,計算用!$A$8:$B$15,2,FALSE),\"\")","v":""},null,null,null,""]
[353,null,null,null,"","",null,null,null,null,null,null,"",null,{"$f":"IFERROR(VLOOKUP(M358,計算用!$A$8:$B$15,2,FALSE),\"\")","v":""},null,null,null,""]
[354,null,null,null,"","",null,null,null,null,null,null,"",null,{"$f":"IFERROR(VLOOKUP(M359,計算用!$A$8:$B$15,2,FALSE),\"\")","v":""},null,null,null,""]
[355,null,null,null,"","",null,null,null,null,null,null,"",null,{"$f":"IFERROR(VLOOKUP(M360,計算用!$A$8:$B$15,2,FALSE),\"\")","v":""},null,null,null,""]
[356,null,null,null,"","",null,null,null,null,null,null,"",null,{"$f":"IFERROR(VLOOKUP(M361,計算用!$A$8:$B$15,2,FALSE),\"\")","v":""},null,null,null,""]
[357,null,null,null,"","",null,null,null,null,null,null,"",null,{"$f":"IFERROR(VLOOKUP(M362,計算用!$A$8:$B$15,2,FALSE),\"\")","v":""},null,null,null,""]
[358,null,null,null,"","",null,null,null,null,null,null,"",null,{"$f":"IFERROR(VLOOKUP(M363,計算用!$A$8:$B$15,2,FALSE),\"\")","v":""},null,null,null,""]
[359,null,null,null,"","",null,null,null,null,null,null,"",null,{"$f":"IFERROR(VLOOKUP(M364,計算用!$A$8:$B$15,2,FALSE),\"\")","v":""},null,null,null,""]
[360,null,null,null,"","",null,null,null,null,null,null,"",null,{"$f":"IFERROR(VLOOKUP(M365,計算用!$A$8:$B$15,2,FALSE),\"\")","v":""},null,null,null,""]
[361,null,null,null,"","",null,null,null,null,null,null,"",null,{"$f":"IFERROR(VLOOKUP(M366,計算用!$A$8:$B$15,2,FALSE),\"\")","v":""},null,null,null,""]
[362,null,null,null,"",{"$f":"IF(E367=\"\",\"\",COUNTIF($E$6:$E$1385,E367))","v":""},null,null,null,null,null,null,"",null,{"$f":"IFERROR(VLOOKUP(M367,計算用!$A$8:$B$15,2,FALSE),\"\")","v":""},null,null,null,""]
[363,null,null,null,"","",null,null,null,null,null,null,"",null,{"$f":"IFERROR(VLOOKUP(M368,計算用!$A$8:$B$15,2,FALSE),\"\")","v":""},null,null,null,""]
[364,null,null,null,"","",null,null,null,null,null,null,"",null,{"$f":"IFERROR(VLOOKUP(M369,計算用!$A$8:$B$15,2,FALSE),\"\")","v":""},null,null,null,""]
[365,null,null,null,"","",null,null,null,null,null,null,"",null,{"$f":"IFERROR(VLOOKUP(M370,計算用!$A$8:$B$15,2,FALSE),\"\")","v":""},null,null,null,""]
[366,null,null,null,"","",null,null,null,null,null,null,"",null,{"$f":"IFERROR(VLOOKUP(M371,計算用!$A$8:$B$15,2,FALSE),\"\")","v":""},null,null,null,""]
[367,null,null,null,"","",null,null,null,null,null,null,"",null,{"$f":"IFERROR(VLOOKUP(M372,計算用!$A$8:$B$15,2,FALSE),\"\")","v":""},null,null,null,""]
[368,null,null,null,"","",null,null,null,null,null,null,"",null,{"$f":"IFERROR(VLOOKUP(M373,計算用!$A$8:$B$15,2,FALSE),\"\")","v":""},null,null,null,""]
[369,null,null,null,"","",null,null,null,null,null,null,"",null,{"$f":"IFERROR(VLOOKUP(M374,計算用!$A$8:$B$15,2,FALSE),\"\")","v":""},null,null,null,""]
[370,null,null,null,"","",null,null,null,null,null,null,"",null,{"$f":"IFERROR(VLOOKUP(M375,計算用!$A$8:$B$15,2,FALSE),\"\")","v":""},null,null,null,""]
[371,null,null,null,"","",null,null,null,null,null,null,"",null,{"$f":"IFERROR(VLOOKUP(M376,計算用!$A$8:$B$15,2,FALSE),\"\")","v":""},null,null,null,""]
[372,null,null,null,"","",null,null,null,null,null,null,"",null,{"$f":"IFERROR(VLOOKUP(M377,計算用!$A$8:$B$15,2,FALSE),\"\")","v":""},null,null,null,""]
[373,null,null,null,"","",null,null,null,null,null,null,"",null,{"$f":"IFERROR(VLOOKUP(M378,計算用!$A$8:$B$15,2,FALSE),\"\")","v":""},null,null,null,""]
[374,null,null,null,"","",null,null,null,null,null,null,"",null,{"$f":"IFERROR(VLOOKUP(M379,計算用!$A$8:$B$15,2,FALSE),\"\")","v":""},null,null,null,""]
[375,null,null,null,"","",null,null,null,null,null,null,"",null,{"$f":"IFERROR(VLOOKUP(M380,計算用!$A$8:$B$15,2,FALSE),\"\")","v":""},null,null,null,""]
[376,null,null,null,"","",null,null,null,null,null,null,"",null,{"$f":"IFERROR(VLOOKUP(M381,計算用!$A$8:$B$15,2,FALSE),\"\")","v":""},null,null,null,""]
[377,null,null,null,"","",null,null,null,null,null,null,"",null,{"$f":"IFERROR(VLOOKUP(M382,計算用!$A$8:$B$15,2,FALSE),\"\")","v":""},null,null,null,""]
[378,null,null,null,"","",null,null,null,null,null,null,"",null,{"$f":"IFERROR(VLOOKUP(M383,計算用!$A$8:$B$15,2,FALSE),\"\")","v":""},null,null,null,{"$f":"IF(F383>=2,\"\",\"可\")","v":""}]
[379,null,null,null,{"$f":"B384&C384&D384","v":""},"",null,null,null,null,null,null,"",null,{"$f":"IFERROR(VLOOKUP(M384,計算用!$A$8:$B$15,2,FALSE),\"\")","v":""},null,null,null,""]
[380,null,null,null,"","",null,null,null,null,null,null,"",null,{"$f":"IFERROR(VLOOKUP(M385,計算用!$A$8:$B$15,2,FALSE),\"\")","v":""},null,null,null,""]
[381,null,null,null,"","",null,null,null,null,null,null,"",null,{"$f":"IFERROR(VLOOKUP(M386,計算用!$A$8:$B$15,2,FALSE),\"\")","v":""},null,null,null,""]
[382,null,null,null,"","",null,null,null,null,null,null,"",null,{"$f":"IFERROR(VLOOKUP(M387,計算用!$A$8:$B$15,2,FALSE),\"\")","v":""},null,null,null,""]
[383,null,null,null,"","",null,null,null,null,null,null,"",null,{"$f":"IFERROR(VLOOKUP(M388,計算用!$A$8:$B$15,2,FALSE),\"\")","v":""},null,null,null,""]
[384,null,null,null,"","",null,null,null,null,null,null,"",null,{"$f":"IFERROR(VLOOKUP(M389,計算用!$A$8:$B$15,2,FALSE),\"\")","v":""},null,null,null,""]
[385,null,null,null,"","",null,null,null,null,null,null,"",null,{"$f":"IFERROR(VLOOKUP(M390,計算用!$A$8:$B$15,2,FALSE),\"\")","v":""},null,null,null,""]
[386,null,null,null,"","",null,null,null,null,null,null,{"$f":"K391&L391","v":""},null,{"$f":"IFERROR(VLOOKUP(M391,計算用!$A$8:$B$15,2,FALSE),\"\")","v":""},null,null,null,""]
[387,null,null,null,"","",null,null,null,null,null,null,"",null,{"$f":"IFERROR(VLOOKUP(M392,計算用!$A$8:$B$15,2,FALSE),\"\")","v":""},null,null,null,""]
[388,null,null,null,"","",null,null,null,null,null,null,"",null,{"$f":"IFERROR(VLOOKUP(M393,計算用!$A$8:$B$15,2,FALSE),\"\")","v":""},null,null,null,""]
[389,null,null,null,"","",null,null,null,null,null,null,"",null,{"$f":"IFERROR(VLOOKUP(M394,計算用!$A$8:$B$15,2,FALSE),\"\")","v":""},null,null,null,""]
[390,null,null,null,"","",null,null,null,null,null,null,"",null,{"$f":"IFERROR(VLOOKUP(M395,計算用!$A$8:$B$15,2,FALSE),\"\")","v":""},null,null,null,""]
[391,null,null,null,"","",null,null,null,null,null,null,"",null,{"$f":"IFERROR(VLOOKUP(M396,計算用!$A$8:$B$15,2,FALSE),\"\")","v":""},null,null,null,""]
[392,null,null,null,"","",null,null,null,null,null,null,"",null,{"$f":"IFERROR(VLOOKUP(M397,計算用!$A$8:$B$15,2,FALSE),\"\")","v":""},null,null,null,""]
[393,null,null,null,"","",null,null,null,null,null,null,"",null,{"$f":"IFERROR(VLOOKUP(M398,計算用!$A$8:$B$15,2,FALSE),\"\")","v":""},null,null,null,""]
[394,null,null,null,"","",null,null,null,null,null,null,"",null,{"$f":"IFERROR(VLOOKUP(M399,計算用!$A$8:$B$15,2,FALSE),\"\")","v":""},null,null,null,""]
[395,null,null,null,"","",null,null,null,null,null,null,"",null,{"$f":"IFERROR(VLOOKUP(M400,計算用!$A$8:$B$15,2,FALSE),\"\")","v":""},null,null,null,""]
[396,null,null,null,"","",null,null,null,null,null,null,"",null,{"$f":"IFERROR(VLOOKUP(M401,計算用!$A$8:$B$15,2,FALSE),\"\")","v":""},null,null,null,""]
[397,null,null,null,"","",null,null,null,null,null,null,"",null,{"$f":"IFERROR(VLOOKUP(M402,計算用!$A$8:$B$15,2,FALSE),\"\")","v":""},null,null,null,""]
[398,null,null,null,"","",null,null,null,null,null,null,"",null,{"$f":"IFERROR(VLOOKUP(M403,計算用!$A$8:$B$15,2,FALSE),\"\")","v":""},null,null,null,""]
[399,null,null,null,"","",null,null,null,null,null,null,"",null,{"$f":"IFERROR(VLOOKUP(M404,計算用!$A$8:$B$15,2,FALSE),\"\")","v":""},null,null,null,""]
[400,null,null,null,"","",null,null,null,null,null,null,"",null,{"$f":"IFERROR(VLOOKUP(M405,計算用!$A$8:$B$15,2,FALSE),\"\")","v":""},null,null,null,""]
[401,null,null,null,"","",null,null,null,null,null,null,"",null,{"$f":"IFERROR(VLOOKUP(M406,計算用!$A$8:$B$15,2,FALSE),\"\")","v":""},null,null,null,""]
[{"$f":"ROW()-5","v":402},null,null,null,"","",null,null,null,null,null,null,"",null,{"$f":"IFERROR(VLOOKUP(M407,計算用!$A$8:$B$15,2,FALSE),\"\")","v":""},null,null,null,""]
[403,null,null,null,"","",null,null,null,null,null,null,"",null,{"$f":"IFERROR(VLOOKUP(M408,計算用!$A$8:$B$15,2,FALSE),\"\")","v":""},null,null,null,""]
[404,null,null,null,"","",null,null,null,null,null,null,"",null,{"$f":"IFERROR(VLOOKUP(M409,計算用!$A$8:$B$15,2,FALSE),\"\")","v":""},null,null,null,""]
[405,null,null,null,"","",null,null,null,null,null,null,"",null,{"$f":"IFERROR(VLOOKUP(M410,計算用!$A$8:$B$15,2,FALSE),\"\")","v":""},null,null,null,""]
[406,null,null,null,"","",null,null,null,null,null,null,"",null,{"$f":"IFERROR(VLOOKUP(M411,計算用!$A$8:$B$15,2,FALSE),\"\")","v":""},null,null,null,""]
[407,null,null,null,"","",null,null,null,null,null,null,"",null,{"$f":"IFERROR(VLOOKUP(M412,計算用!$A$8:$B$15,2,FALSE),\"\")","v":""},null,null,null,""]
[408,null,null,null,"","",null,null,null,null,null,null,"",null,{"$f":"IFERROR(VLOOKUP(M413,計算用!$A$8:$B$15,2,FALSE),\"\")","v":""},null,null,null,""]
[409,null,null,null,"","",null,null,null,null,null,null,"",null,{"$f":"IFERROR(VLOOKUP(M414,計算用!$A$8:$B$15,2,FALSE),\"\")","v":""},null,null,null,""]
[410,null,null,null,"","",null,null,null,null,null,null,"",null,{"$f":"IFERROR(VLOOKUP(M415,計算用!$A$8:$B$15,2,FALSE),\"\")","v":""},null,null,null,""]
[411,null,null,null,"","",null,null,null,null,null,null,"",null,{"$f":"IFERROR(VLOOKUP(M416,計算用!$A$8:$B$15,2,FALSE),\"\")","v":""},null,null,null,""]
[412,null,null,null,"","",null,null,null,null,null,null,"",null,{"$f":"IFERROR(VLOOKUP(M417,計算用!$A$8:$B$15,2,FALSE),\"\")","v":""},null,null,null,""]
[413,null,null,null,"","",null,null,null,null,null,null,"",null,{"$f":"IFERROR(VLOOKUP(M418,計算用!$A$8:$B$15,2,FALSE),\"\")","v":""},null,null,null,""]
[414,null,null,null,"","",null,null,null,null,null,null,"",null,{"$f":"IFERROR(VLOOKUP(M419,計算用!$A$8:$B$15,2,FALSE),\"\")","v":""},null,null,null,""]
[415,null,null,null,"","",null,null,null,null,null,null,"",null,{"$f":"IFERROR(VLOOKUP(M420,計算用!$A$8:$B$15,2,FALSE),\"\")","v":""},null,null,null,""]
[416,null,null,null,"","",null,null,null,null,null,null,"",null,{"$f":"IFERROR(VLOOKUP(M421,計算用!$A$8:$B$15,2,FALSE),\"\")","v":""},null,null,null,""]
[417,null,null,null,"","",null,null,null,null,null,null,"",null,{"$f":"IFERROR(VLOOKUP(M422,計算用!$A$8:$B$15,2,FALSE),\"\")","v":""},null,null,null,""]
[418,null,null,null,"","",null,null,null,null,null,null,"",null,{"$f":"IFERROR(VLOOKUP(M423,計算用!$A$8:$B$15,2,FALSE),\"\")","v":""},null,null,null,""]
[419,null,null,null,"","",null,null,null,null,null,null,"",null,{"$f":"IFERROR(VLOOKUP(M424,計算用!$A$8:$B$15,2,FALSE),\"\")","v":""},null,null,null,""]
[420,null,null,null,"","",null,null,null,null,null,null,"",null,{"$f":"IFERROR(VLOOKUP(M425,計算用!$A$8:$B$15,2,FALSE),\"\")","v":""},null,null,null,""]
[421,null,null,null,"","",null,null,null,null,null,null,"",null,{"$f":"IFERROR(VLOOKUP(M426,計算用!$A$8:$B$15,2,FALSE),\"\")","v":""},null,null,null,""]
[422,null,null,null,"","",null,null,null,null,null,null,"",null,{"$f":"IFERROR(VLOOKUP(M427,計算用!$A$8:$B$15,2,FALSE),\"\")","v":""},null,null,null,""]
[423,null,null,null,"","",null,null,null,null,null,null,"",null,{"$f":"IFERROR(VLOOKUP(M428,計算用!$A$8:$B$15,2,FALSE),\"\")","v":""},null,null,null,""]
[424,null,null,null,"","",null,null,null,null,null,null,"",null,{"$f":"IFERROR(VLOOKUP(M429,計算用!$A$8:$B$15,2,FALSE),\"\")","v":""},null,null,null,""]
[425,null,null,null,"","",null,null,null,null,null,null,"",null,{"$f":"IFERROR(VLOOKUP(M430,計算用!$A$8:$B$15,2,FALSE),\"\")","v":""},null,null,null,""]
[426,null,null,null,"",{"$f":"IF(E431=\"\",\"\",COUNTIF($E$6:$E$1385,E431))","v":""},null,null,null,null,null,null,"",null,{"$f":"IFERROR(VLOOKUP(M431,計算用!$A$8:$B$15,2,FALSE),\"\")","v":""},null,null,null,""]
[427,null,null,null,"","",null,null,null,null,null,null,"",null,{"$f":"IFERROR(VLOOKUP(M432,計算用!$A$8:$B$15,2,FALSE),\"\")","v":""},null,null,null,""]
[428,null,null,null,"","",null,null,null,null,null,null,"",null,{"$f":"IFERROR(VLOOKUP(M433,計算用!$A$8:$B$15,2,FALSE),\"\")","v":""},null,null,null,""]
[429,null,null,null,"","",null,null,null,null,null,null,"",null,{"$f":"IFERROR(VLOOKUP(M434,計算用!$A$8:$B$15,2,FALSE),\"\")","v":""},null,null,null,""]
[430,null,null,null,"","",null,null,null,null,null,null,"",null,{"$f":"IFERROR(VLOOKUP(M435,計算用!$A$8:$B$15,2,FALSE),\"\")","v":""},null,null,null,""]
[431,null,null,null,"","",null,null,null,null,null,null,"",null,{"$f":"IFERROR(VLOOKUP(M436,計算用!$A$8:$B$15,2,FALSE),\"\")","v":""},null,null,null,""]
[432,null,null,null,"","",null,null,null,null,null,null,"",null,{"$f":"IFERROR(VLOOKUP(M437,計算用!$A$8:$B$15,2,FALSE),\"\")","v":""},null,null,null,""]
[433,null,null,null,"","",null,null,null,null,null,null,"",null,{"$f":"IFERROR(VLOOKUP(M438,計算用!$A$8:$B$15,2,FALSE),\"\")","v":""},null,null,null,""]
[434,null,null,null,"","",null,null,null,null,null,null,"",null,{"$f":"IFERROR(VLOOKUP(M439,計算用!$A$8:$B$15,2,FALSE),\"\")","v":""},null,null,null,""]
[435,null,null,null,"","",null,null,null,null,null,null,"",null,{"$f":"IFERROR(VLOOKUP(M440,計算用!$A$8:$B$15,2,FALSE),\"\")","v":""},null,null,null,""]
[436,null,null,null,"","",null,null,null,null,null,null,"",null,{"$f":"IFERROR(VLOOKUP(M441,計算用!$A$8:$B$15,2,FALSE),\"\")","v":""},null,null,null,""]
[437,null,null,null,"","",null,null,null,null,null,null,"",null,{"$f":"IFERROR(VLOOKUP(M442,計算用!$A$8:$B$15,2,FALSE),\"\")","v":""},null,null,null,""]
[438,null,null,null,"","",null,null,null,null,null,null,"",null,{"$f":"IFERROR(VLOOKUP(M443,計算用!$A$8:$B$15,2,FALSE),\"\")","v":""},null,null,null,""]
[439,null,null,null,"","",null,null,null,null,null,null,"",null,{"$f":"IFERROR(VLOOKUP(M444,計算用!$A$8:$B$15,2,FALSE),\"\")","v":""},null,null,null,""]
[440,null,null,null,"","",null,null,null,null,null,null,"",null,{"$f":"IFERROR(VLOOKUP(M445,計算用!$A$8:$B$15,2,FALSE),\"\")","v":""},null,null,null,""]
[441,null,null,null,"","",null,null,null,null,null,null,"",null,{"$f":"IFERROR(VLOOKUP(M446,計算用!$A$8:$B$15,2,FALSE),\"\")","v":""},null,null,null,""]
[442,null,null,null,"","",null,null,null,null,null,null,"",null,{"$f":"IFERROR(VLOOKUP(M447,計算用!$A$8:$B$15,2,FALSE),\"\")","v":""},null,null,null,{"$f":"IF(F447>=2,\"\",\"可\")","v":""}]
[443,null,null,null,{"$f":"B448&C448&D448","v":""},"",null,null,null,null,null,null,"",null,{"$f":"IFERROR(VLOOKUP(M448,計算用!$A$8:$B$15,2,FALSE),\"\")","v":""},null,null,null,""]
[444,null,null,null,"","",null,null,null,null,null,null,"",null,{"$f":"IFERROR(VLOOKUP(M449,計算用!$A$8:$B$15,2,FALSE),\"\")","v":""},null,null,null,""]
[445,null,null,null,"","",null,null,null,null,null,null,"",null,{"$f":"IFERROR(VLOOKUP(M450,計算用!$A$8:$B$15,2,FALSE),\"\")","v":""},null,null,null,""]
[446,null,null,null,"","",null,null,null,null,null,null,"",null,{"$f":"IFERROR(VLOOKUP(M451,計算用!$A$8:$B$15,2,FALSE),\"\")","v":""},null,null,null,""]
[447,null,null,null,"","",null,null,null,null,null,null,"",null,{"$f":"IFERROR(VLOOKUP(M452,計算用!$A$8:$B$15,2,FALSE),\"\")","v":""},null,null,null,""]
[448,null,null,null,"","",null,null,null,null,null,null,"",null,{"$f":"IFERROR(VLOOKUP(M453,計算用!$A$8:$B$15,2,FALSE),\"\")","v":""},null,null,null,""]
[449,null,null,null,"","",null,null,null,null,null,null,"",null,{"$f":"IFERROR(VLOOKUP(M454,計算用!$A$8:$B$15,2,FALSE),\"\")","v":""},null,null,null,""]
[450,null,null,null,"","",null,null,null,null,null,null,{"$f":"K455&L455","v":""},null,{"$f":"IFERROR(VLOOKUP(M455,計算用!$A$8:$B$15,2,FALSE),\"\")","v":""},null,null,null,""]
[451,null,null,null,"","",null,null,null,null,null,null,"",null,{"$f":"IFERROR(VLOOKUP(M456,計算用!$A$8:$B$15,2,FALSE),\"\")","v":""},null,null,null,""]
[452,null,null,null,"","",null,null,null,null,null,null,"",null,{"$f":"IFERROR(VLOOKUP(M457,計算用!$A$8:$B$15,2,FALSE),\"\")","v":""},null,null,null,""]
[453,null,null,null,"","",null,null,null,null,null,null,"",null,{"$f":"IFERROR(VLOOKUP(M458,計算用!$A$8:$B$15,2,FALSE),\"\")","v":""},null,null,null,""]
[454,null,null,null,"","",null,null,null,null,null,null,"",null,{"$f":"IFERROR(VLOOKUP(M459,計算用!$A$8:$B$15,2,FALSE),\"\")","v":""},null,null,null,""]
[455,null,null,null,"","",null,null,null,null,null,null,"",null,{"$f":"IFERROR(VLOOKUP(M460,計算用!$A$8:$B$15,2,FALSE),\"\")","v":""},null,null,null,""]
[456,null,null,null,"","",null,null,null,null,null,null,"",null,{"$f":"IFERROR(VLOOKUP(M461,計算用!$A$8:$B$15,2,FALSE),\"\")","v":""},null,null,null,""]
[457,null,null,null,"","",null,null,null,null,null,null,"",null,{"$f":"IFERROR(VLOOKUP(M462,計算用!$A$8:$B$15,2,FALSE),\"\")","v":""},null,null,null,""]
[458,null,null,null,"","",null,null,null,null,null,null,"",null,{"$f":"IFERROR(VLOOKUP(M463,計算用!$A$8:$B$15,2,FALSE),\"\")","v":""},null,null,null,""]
[459,null,null,null,"","",null,null,null,null,null,null,"",null,{"$f":"IFERROR(VLOOKUP(M464,計算用!$A$8:$B$15,2,FALSE),\"\")","v":""},null,null,null,""]
[460,null,null,null,"","",null,null,null,null,null,null,"",null,{"$f":"IFERROR(VLOOKUP(M465,計算用!$A$8:$B$15,2,FALSE),\"\")","v":""},null,null,null,""]
[461,null,null,null,"","",null,null,null,null,null,null,"",null,{"$f":"IFERROR(VLOOKUP(M466,計算用!$A$8:$B$15,2,FALSE),\"\")","v":""},null,null,null,""]
[462,null,null,null,"","",null,null,null,null,null,null,"",null,{"$f":"IFERROR(VLOOKUP(M467,計算用!$A$8:$B$15,2,FALSE),\"\")","v":""},null,null,null,""]
[463,null,null,null,"","",null,null,null,null,null,null,"",null,{"$f":"IFERROR(VLOOKUP(M468,計算用!$A$8:$B$15,2,FALSE),\"\")","v":""},null,null,null,""]
[464,null,null,null,"","",null,null,null,null,null,null,"",null,{"$f":"IFERROR(VLOOKUP(M469,計算用!$A$8:$B$15,2,FALSE),\"\")","v":""},null,null,null,""]
[465,null,null,null,"","",null,null,null,null,null,null,"",null,{"$f":"IFERROR(VLOOKUP(M470,計算用!$A$8:$B$15,2,FALSE),\"\")","v":""},null,null,null,""]
[{"$f":"ROW()-5","v":466},null,null,null,"","",null,null,null,null,null,null,"",null,{"$f":"IFERROR(VLOOKUP(M471,計算用!$A$8:$B$15,2,FALSE),\"\")","v":""},null,null,null,""]
[467,null,null,null,"","",null,null,null,null,null,null,"",null,{"$f":"IFERROR(VLOOKUP(M472,計算用!$A$8:$B$15,2,FALSE),\"\")","v":""},null,null,null,""]
[468,null,null,null,"","",null,null,null,null,null,null,"",null,{"$f":"IFERROR(VLOOKUP(M473,計算用!$A$8:$B$15,2,FALSE),\"\")","v":""},null,null,null,""]
[469,null,null,null,"","",null,null,null,null,null,null,"",null,{"$f":"IFERROR(VLOOKUP(M474,計算用!$A$8:$B$15,2,FALSE),\"\")","v":""},null,null,null,""]
[470,null,null,null,"","",null,null,null,null,null,null,"",null,{"$f":"IFERROR(VLOOKUP(M475,計算用!$A$8:$B$15,2,FALSE),\"\")","v":""},null,null,null,""]
[471,null,null,null,"","",null,null,null,null,null,null,"",null,{"$f":"IFERROR(VLOOKUP(M476,計算用!$A$8:$B$15,2,FALSE),\"\")","v":""},null,null,null,""]
[472,null,null,null,"","",null,null,null,null,null,null,"",null,{"$f":"IFERROR(VLOOKUP(M477,計算用!$A$8:$B$15,2,FALSE),\"\")","v":""},null,null,null,""]
[473,null,null,null,"","",null,null,null,null,null,null,"",null,{"$f":"IFERROR(VLOOKUP(M478,計算用!$A$8:$B$15,2,FALSE),\"\")","v":""},null,null,null,""]
[474,null,null,null,"","",null,null,null,null,null,null,"",null,{"$f":"IFERROR(VLOOKUP(M479,計算用!$A$8:$B$15,2,FALSE),\"\")","v":""},null,null,null,""]
[475,null,null,null,"","",null,null,null,null,null,null,"",null,{"$f":"IFERROR(VLOOKUP(M480,計算用!$A$8:$B$15,2,FALSE),\"\")","v":""},null,null,null,""]
[476,null,null,null,"","",null,null,null,null,null,null,"",null,{"$f":"IFERROR(VLOOKUP(M481,計算用!$A$8:$B$15,2,FALSE),\"\")","v":""},null,null,null,""]
[477,null,null,null,"","",null,null,null,null,null,null,"",null,{"$f":"IFERROR(VLOOKUP(M482,計算用!$A$8:$B$15,2,FALSE),\"\")","v":""},null,null,null,""]
[478,null,null,null,"","",null,null,null,null,null,null,"",null,{"$f":"IFERROR(VLOOKUP(M483,計算用!$A$8:$B$15,2,FALSE),\"\")","v":""},null,null,null,""]
[479,null,null,null,"","",null,null,null,null,null,null,"",null,{"$f":"IFERROR(VLOOKUP(M484,計算用!$A$8:$B$15,2,FALSE),\"\")","v":""},null,null,null,""]
[480,null,null,null,"","",null,null,null,null,null,null,"",null,{"$f":"IFERROR(VLOOKUP(M485,計算用!$A$8:$B$15,2,FALSE),\"\")","v":""},null,null,null,""]
[481,null,null,null,"","",null,null,null,null,null,null,"",null,{"$f":"IFERROR(VLOOKUP(M486,計算用!$A$8:$B$15,2,FALSE),\"\")","v":""},null,null,null,""]
[482,null,null,null,"","",null,null,null,null,null,null,"",null,{"$f":"IFERROR(VLOOKUP(M487,計算用!$A$8:$B$15,2,FALSE),\"\")","v":""},null,null,null,""]
[483,null,null,null,"","",null,null,null,null,null,null,"",null,{"$f":"IFERROR(VLOOKUP(M488,計算用!$A$8:$B$15,2,FALSE),\"\")","v":""},null,null,null,""]
[484,null,null,null,"","",null,null,null,null,null,null,"",null,{"$f":"IFERROR(VLOOKUP(M489,計算用!$A$8:$B$15,2,FALSE),\"\")","v":""},null,null,null,""]
[485,null,null,null,"","",null,null,null,null,null,null,"",null,{"$f":"IFERROR(VLOOKUP(M490,計算用!$A$8:$B$15,2,FALSE),\"\")","v":""},null,null,null,""]
[486,null,null,null,"","",null,null,null,null,null,null,"",null,{"$f":"IFERROR(VLOOKUP(M491,計算用!$A$8:$B$15,2,FALSE),\"\")","v":""},null,null,null,""]
[487,null,null,null,"","",null,null,null,null,null,null,"",null,{"$f":"IFERROR(VLOOKUP(M492,計算用!$A$8:$B$15,2,FALSE),\"\")","v":""},null,null,null,""]
[488,null,null,null,"","",null,null,null,null,null,null,"",null,{"$f":"IFERROR(VLOOKUP(M493,計算用!$A$8:$B$15,2,FALSE),\"\")","v":""},null,null,null,""]
[489,null,null,null,"","",null,null,null,null,null,null,"",null,{"$f":"IFERROR(VLOOKUP(M494,計算用!$A$8:$B$15,2,FALSE),\"\")","v":""},null,null,null,""]
[490,null,null,null,"",{"$f":"IF(E495=\"\",\"\",COUNTIF($E$6:$E$1385,E495))","v":""},null,null,null,null,null,null,"",null,{"$f":"IFERROR(VLOOKUP(M495,計算用!$A$8:$B$15,2,FALSE),\"\")","v":""},null,null,null,""]
[491,null,null,null,"","",null,null,null,null,null,null,"",null,{"$f":"IFERROR(VLOOKUP(M496,計算用!$A$8:$B$15,2,FALSE),\"\")","v":""},null,null,null,""]
[492,null,null,null,"","",null,null,null,null,null,null,"",null,{"$f":"IFERROR(VLOOKUP(M497,計算用!$A$8:$B$15,2,FALSE),\"\")","v":""},null,null,null,""]
[493,null,null,null,"","",null,null,null,null,null,null,"",null,{"$f":"IFERROR(VLOOKUP(M498,計算用!$A$8:$B$15,2,FALSE),\"\")","v":""},null,null,null,""]
[494,null,null,null,"","",null,null,null,null,null,null,"",null,{"$f":"IFERROR(VLOOKUP(M499,計算用!$A$8:$B$15,2,FALSE),\"\")","v":""},null,null,null,""]
[495,null,null,null,"","",null,null,null,null,null,null,"",null,{"$f":"IFERROR(VLOOKUP(M500,計算用!$A$8:$B$15,2,FALSE),\"\")","v":""},null,null,null,""]
[496,null,null,null,"","",null,null,null,null,null,null,"",null,{"$f":"IFERROR(VLOOKUP(M501,計算用!$A$8:$B$15,2,FALSE),\"\")","v":""},null,null,null,""]
[497,null,null,null,"","",null,null,null,null,null,null,"",null,{"$f":"IFERROR(VLOOKUP(M502,計算用!$A$8:$B$15,2,FALSE),\"\")","v":""},null,null,null,""]
[498,null,null,null,"","",null,null,null,null,null,null,"",null,{"$f":"IFERROR(VLOOKUP(M503,計算用!$A$8:$B$15,2,FALSE),\"\")","v":""},null,null,null,""]
[499,null,null,null,"","",null,null,null,null,null,null,"",null,{"$f":"IFERROR(VLOOKUP(M504,計算用!$A$8:$B$15,2,FALSE),\"\")","v":""},null,null,null,""]
[500,null,null,null,"","",null,null,null,null,null,null,"",null,{"$f":"IFERROR(VLOOKUP(M505,計算用!$A$8:$B$15,2,FALSE),\"\")","v":""},null,null,null,""]

{"sheet":"実績額一覧","index":5,"n_rows":107,"n_cols":39,"rows_kept":107,"cut":false,"hidden":false,"merged":[[2,4,3,4],[2,8,2,12],[2,0,3,0],[2,1,3,1],[2,2,3,2],[2,3,3,3],[2,7,3,7],[2,6,3,6],[2,5,3,5]]}
["事業所・施設別実績額一覧（サービス別一覧）"]
[]
["No.","介護保険\n事業所番号","事業所・施設名","サービス種別","事業所の\n電話番号","事業所の\n郵便番号","事業所の住所","法人名","実績額（千円）"]
[null,null,null,null,null,null,null,null,"介護\n慰労金","感染対策\n費用助成\n事業","個別再開\n支援助成\n事業","再開環境\n整備助成\n事業","小計",null,null,null,null,null,null,null,null,null,null,null,null,null,null,null,null,null,null,null,null,null,null,"20万","5万"]
[{"$f":"ROW()-4","v":1},{"$f":"IFERROR(INDIRECT(\"個票\"&$A5&\"！$h$7\"),\"\")","v":"0420123456"},{"$f":"IFERROR(INDIRECT(\"個票\"&$A5&\"！$t$7\"),\"\")","v":"特別養護老人ホーム長寿社会政策課"},{"$f":"IFERROR(INDIRECT(\"個票\"&$A5&\"！$h$10\"),\"\")","v":"介護老人福祉施設"},{"$f":"IFERROR(INDIRECT(\"個票\"&$A5&\"！$AC$9\"),\"\")","v":"022-211-2549"},{"$f":"IFERROR(INDIRECT(\"個票\"&$A5&\"！$d$9\"),\"\")","v":"980-8570"},{"$f":"IFERROR(INDIRECT(\"個票\"&$A5&\"！$H$9\")&INDIRECT(\"個票\"&$A5&\"！$L$9\"),\"\")","v":"宮城県仙台市青葉区本町３丁目８－１"},{"$f":"IF(M5>0,実績報告書!$W$8,\"\")","v":"社会福祉法人宮城県"},{"$f":"IFERROR(INDIRECT(\"個票\"&$A5&\"！$ag$17\"),\"\")","v":151},{"$f":"IFERROR(INDIRECT(\"個票\"&$A5&\"！$ag$22\"),\"\")","v":1529},{"$f":"IFERROR(INDIRECT(\"個票\"&$A5&\"！$ag$37\"),\"\")","v":0},{"$f":"IFERROR(INDIRECT(\"個票\"&$A5&\"！$ag$47\"),\"\")","v":0},{"$f":"SUM(I5,J5,K5,L5)","v":1680},null,null,{"$f":"IF(_xlfn.SHEETS()-6=COUNTIF(M5:M107,\">0\"),\"○\",\"！（本表の事業所数と個票の枚数が一致しません）\")","v":"○"},null,null,null,null,null,null,null,null,null,null,null,null,null,null,null,null,null,null,null,{"$f":"IFERROR(INDIRECT(\"個票\"&$A5&\"！$m$19\"),\"\")","v":0},{"$f":"IFERROR(INDIRECT(\"個票\"&$A5&\"！$v$19\"),\"\")","v":3},{"$f":"IFERROR(INDIRECT(\"個票\"&$A5&\"！$m$19\"),\"\")","v":0},{"$f":"IFERROR(INDIRECT(\"個票\"&$A5&\"！$m$19\"),\"\")","v":0}]
[{"$f":"ROW()-4","v":2},{"$f":"IFERROR(INDIRECT(\"個票\"&$A6&\"！$h$7\"),\"\")","v":"0420123999"},"居宅介護支援事業所長寿社会政策課","居宅介護支援事業所","022-211-2549","980-8570","宮城県仙台市青葉区本町３丁目８－１",{"$f":"IF(M6>0,実績報告書!$W$8,\"\")","v":"社会福祉法人宮城県"},{"$f":"IFERROR(INDIRECT(\"個票\"&$A6&\"！$ag$17\"),\"\")","v":100},{"$f":"IFERROR(INDIRECT(\"個票\"&$A6&\"！$ag$22\"),\"\")","v":177},{"$f":"IFERROR(INDIRECT(\"個票\"&$A6&\"！$ag$37\"),\"\")","v":19.5},{"$f":"IFERROR(INDIRECT(\"個票\"&$A6&\"！$ag$47\"),\"\")","v":152},448.5,null,null,null,null,null,null,null,null,null,null,null,null,null,null,null,null,null,null,null,null,null,null,{"$f":"IFERROR(INDIRECT(\"個票\"&$A6&\"！$m$19\"),\"\")","v":0},{"$f":"IFERROR(INDIRECT(\"個票\"&$A6&\"！$v$19\"),\"\")","v":2},{"$f":"IFERROR(INDIRECT(\"個票\"&$A6&\"！$m$18\"),\"\")","v":0},{"$f":"IFERROR(INDIRECT(\"個票\"&$A6&\"！$v$18\"),\"\")","v":0}]
[3,"","","","","","",{"$f":"IF(M7>0,実績報告書!$W$8,\"\")","v":""},"","","","",0,null,null,null,null,null,null,null,null,null,null,null,null,null,null,null,null,null,null,null,null,null,null,"","","",""]
[4,"","","","","","",{"$f":"IF(M8>0,実績報告書!$W$8,\"\")","v":""},"","","","",0,null,null,null,null,null,null,null,null,null,null,null,null,null,null,null,null,null,null,null,null,null,null,"","","",""]
[5,"","","","","","",{"$f":"IF(M9>0,実績報告書!$W$8,\"\")","v":""},"","","","",0,null,null,null,null,null,null,null,null,null,null,null,null,null,null,null,null,null,null,null,null,null,null,"","","",""]
[6,"","","","","","",{"$f":"IF(M10>0,実績報告書!$W$8,\"\")","v":""},"","","","",0,null,null,null,null,null,null,null,null,null,null,null,null,null,null,null,null,null,null,null,null,null,null,"","","",""]
[7,"","","","","","",{"$f":"IF(M11>0,実績報告書!$W$8,\"\")","v":""},"","","","",0,null,null,null,null,null,null,null,null,null,null,null,null,null,null,null,null,null,null,null,null,null,null,"","","",""]
[8,"","","","","","",{"$f":"IF(M12>0,実績報告書!$W$8,\"\")","v":""},"","","","",0,null,null,null,null,null,null,null,null,null,null,null,null,null,null,null,null,null,null,null,null,null,null,"","","",""]
[9,"","","","","","",{"$f":"IF(M13>0,実績報告書!$W$8,\"\")","v":""},"","","","",0,null,null,null,null,null,null,null,null,null,null,null,null,null,null,null,null,null,null,null,null,null,null,"","","",""]
[10,"","","","","","",{"$f":"IF(M14>0,実績報告書!$W$8,\"\")","v":""},"","","","",0,null,null,null,null,null,null,null,null,null,null,null,null,null,null,null,null,null,null,null,null,null,null,"","","",""]
[11,"","","","","","",{"$f":"IF(M15>0,実績報告書!$W$8,\"\")","v":""},"","","","",0,null,null,null,null,null,null,null,null,null,null,null,null,null,null,null,null,null,null,null,null,null,null,"","","",""]
[12,"","","","","","",{"$f":"IF(M16>0,実績報告書!$W$8,\"\")","v":""},"","","","",0,null,null,null,null,null,null,null,null,null,null,null,null,null,null,null,null,null,null,null,null,null,null,"","","",""]
[13,"","","","","","",{"$f":"IF(M17>0,実績報告書!$W$8,\"\")","v":""},"","","","",0,null,null,null,null,null,null,null,null,null,null,null,null,null,null,null,null,null,null,null,null,null,null,"","","",""]
[14,"","","","","","",{"$f":"IF(M18>0,実績報告書!$W$8,\"\")","v":""},"","","","",0,null,null,null,null,null,null,null,null,null,null,null,null,null,null,null,null,null,null,null,null,null,null,"","","",""]
[15,"","","","","","",{"$f":"IF(M19>0,実績報告書!$W$8,\"\")","v":""},"","","","",0,null,null,null,null,null,null,null,null,null,null,null,null,null,null,null,null,null,null,null,null,null,null,"","","",""]
[16,"","","","","","",{"$f":"IF(M20>0,実績報告書!$W$8,\"\")","v":""},"","","","",0,null,null,null,null,null,null,null,null,null,null,null,null,null,null,null,null,null,null,null,null,null,null,"","","",""]
[17,"","","","","","",{"$f":"IF(M21>0,実績報告書!$W$8,\"\")","v":""},"","","","",0,null,null,null,null,null,null,null,null,null,null,null,null,null,null,null,null,null,null,null,null,null,null,"","","",""]
[18,"","","","","","",{"$f":"IF(M22>0,実績報告書!$W$8,\"\")","v":""},"","","","",0,null,null,null,null,null,null,null,null,null,null,null,null,null,null,null,null,null,null,null,null,null,null,"","","",""]
[19,"","","","","","",{"$f":"IF(M23>0,実績報告書!$W$8,\"\")","v":""},"","","","",0,null,null,null,null,null,null,null,null,null,null,null,null,null,null,null,null,null,null,null,null,null,null,"","","",""]
[20,"","","","","","",{"$f":"IF(M24>0,実績報告書!$W$8,\"\")","v":""},"","","","",0,null,null,null,null,null,null,null,null,null,null,null,null,null,null,null,null,null,null,null,null,null,null,"","","",""]
[21,"","","","","","",{"$f":"IF(M25>0,実績報告書!$W$8,\"\")","v":""},"","","","",0,null,null,null,null,null,null,null,null,null,null,null,null,null,null,null,null,null,null,null,null,null,null,"","","",""]
[22,"","","","","","",{"$f":"IF(M26>0,実績報告書!$W$8,\"\")","v":""},"","","","",0,null,null,null,null,null,null,null,null,null,null,null,null,null,null,null,null,null,null,null,null,null,null,"","","",""]
[23,"","","","","","",{"$f":"IF(M27>0,実績報告書!$W$8,\"\")","v":""},"","","","",0,null,null,null,null,null,null,null,null,null,null,null,null,null,null,null,null,null,null,null,null,null,null,"","","",""]
[24,"","","","","","",{"$f":"IF(M28>0,実績報告書!$W$8,\"\")","v":""},"","","","",0,null,null,null,null,null,null,null,null,null,null,null,null,null,null,null,null,null,null,null,null,null,null,"","","",""]
[25,"","","","","","",{"$f":"IF(M29>0,実績報告書!$W$8,\"\")","v":""},"","","","",0,null,null,null,null,null,null,null,null,null,null,null,null,null,null,null,null,null,null,null,null,null,null,"","","",""]
[{"$f":"ROW()-4","v":26},{"$f":"IFERROR(INDIRECT(\"個票\"&$A30&\"！$h$7\"),\"\")","v":""},"","","","","",{"$f":"IF(M30>0,実績報告書!$W$8,\"\")","v":""},"","","","",0,null,null,null,null,null,null,null,null,null,null,null,null,null,null,null,null,null,null,null,null,null,null,"","",{"$f":"IFERROR(INDIRECT(\"個票\"&$A30&\"！$m$18\"),\"\")","v":""},{"$f":"IFERROR(INDIRECT(\"個票\"&$A30&\"！$v$18\"),\"\")","v":""}]
[27,"","","","","","",{"$f":"IF(M31>0,実績報告書!$W$8,\"\")","v":""},"","","","",0,null,null,null,null,null,null,null,null,null,null,null,null,null,null,null,null,null,null,null,null,null,null,"","","",""]
[28,"","","","","","",{"$f":"IF(M32>0,実績報告書!$W$8,\"\")","v":""},"","","","",0,null,null,null,null,null,null,null,null,null,null,null,null,null,null,null,null,null,null,null,null,null,null,"","","",""]
[29,"","","","","","",{"$f":"IF(M33>0,実績報告書!$W$8,\"\")","v":""},"","","","",0,null,null,null,null,null,null,null,null,null,null,null,null,null,null,null,null,null,null,null,null,null,null,"","","",""]
[30,"","","","","","",{"$f":"IF(M34>0,実績報告書!$W$8,\"\")","v":""},"","","","",0,null,null,null,null,null,null,null,null,null,null,null,null,null,null,null,null,null,null,null,null,null,null,"","","",""]
[31,"","","","","","",{"$f":"IF(M35>0,実績報告書!$W$8,\"\")","v":""},"","","","",0,null,null,null,null,null,null,null,null,null,null,null,null,null,null,null,null,null,null,null,null,null,null,"","","",""]
[32,"","","","","","",{"$f":"IF(M36>0,実績報告書!$W$8,\"\")","v":""},"","","","",0,null,null,null,null,null,null,null,null,null,null,null,null,null,null,null,null,null,null,null,null,null,null,"","","",""]
[33,"","","","","","",{"$f":"IF(M37>0,実績報告書!$W$8,\"\")","v":""},"","","","",{"$f":"SUM(I37,J37,K37,L37)","v":0},null,null,null,null,null,null,null,null,null,null,null,null,null,null,null,null,null,null,null,null,null,null,"","","",""]
[34,"","","","","","",{"$f":"IF(M38>0,実績報告書!$W$8,\"\")","v":""},"","","","",0,null,null,null,null,null,null,null,null,null,null,null,null,null,null,null,null,null,null,null,null,null,null,"","","",""]
[35,"","","","","","",{"$f":"IF(M39>0,実績報告書!$W$8,\"\")","v":""},"","","","",0,null,null,null,null,null,null,null,null,null,null,null,null,null,null,null,null,null,null,null,null,null,null,"","","",""]
[36,"","","","","","",{"$f":"IF(M40>0,実績報告書!$W$8,\"\")","v":""},"","","","",0,null,null,null,null,null,null,null,null,null,null,null,null,null,null,null,null,null,null,null,null,null,null,"","","",""]
[37,"","","","","","",{"$f":"IF(M41>0,実績報告書!$W$8,\"\")","v":""},"","","","",0,null,null,null,null,null,null,null,null,null,null,null,null,null,null,null,null,null,null,null,null,null,null,"","","",""]
[38,"","","","","","",{"$f":"IF(M42>0,実績報告書!$W$8,\"\")","v":""},"","","","",0,null,null,null,null,null,null,null,null,null,null,null,null,null,null,null,null,null,null,null,null,null,null,"","","",""]
[39,"","","","","","",{"$f":"IF(M43>0,実績報告書!$W$8,\"\")","v":""},"","","","",0,null,null,null,null,null,null,null,null,null,null,null,null,null,null,null,null,null,null,null,null,null,null,"","","",""]
[40,"","","","","","",{"$f":"IF(M44>0,実績報告書!$W$8,\"\")","v":""},"","","","",0,null,null,null,null,null,null,null,null,null,null,null,null,null,null,null,null,null,null,null,null,null,null,"","","",""]
[41,"","","","","","",{"$f":"IF(M45>0,実績報告書!$W$8,\"\")","v":""},"","","","",0,null,null,null,null,null,null,null,null,null,null,null,null,null,null,null,null,null,null,null,null,null,null,"","","",""]
[42,"","","","","","",{"$f":"IF(M46>0,実績報告書!$W$8,\"\")","v":""},"","","","",0,null,null,null,null,null,null,null,null,null,null,null,null,null,null,null,null,null,null,null,null,null,null,"","","",""]
[43,"","","","","","",{"$f":"IF(M47>0,実績報告書!$W$8,\"\")","v":""},"","","","",0,null,null,null,null,null,null,null,null,null,null,null,null,null,null,null,null,null,null,null,null,null,null,"","","",""]
[44,"","","","","","",{"$f":"IF(M48>0,実績報告書!$W$8,\"\")","v":""},"","","","",0,null,null,null,null,null,null,null,null,null,null,null,null,null,null,null,null,null,null,null,null,null,null,"","","",""]
[45,"","","","","","",{"$f":"IF(M49>0,実績報告書!$W$8,\"\")","v":""},"","","","",0,null,null,null,null,null,null,null,null,null,null,null,null,null,null,null,null,null,null,null,null,null,null,"","","",""]
[46,"","","","","","",{"$f":"IF(M50>0,実績報告書!$W$8,\"\")","v":""},"","","","",0,null,null,null,null,null,null,null,null,null,null,null,null,null,null,null,null,null,null,null,null,null,null,"","","",""]
[47,"","","","","","",{"$f":"IF(M51>0,実績報告書!$W$8,\"\")","v":""},"","","","",0,null,null,null,null,null,null,null,null,null,null,null,null,null,null,null,null,null,null,null,null,null,null,"","","",""]
[48,"","","","","","",{"$f":"IF(M52>0,実績報告書!$W$8,\"\")","v":""},"","","","",0,null,null,null,null,null,null,null,null,null,null,null,null,null,null,null,null,null,null,null,null,null,null,"","","",""]
[49,"","","","","","",{"$f":"IF(M53>0,実績報告書!$W$8,\"\")","v":""},"","","","",0,null,null,null,null,null,null,null,null,null,null,null,null,null,null,null,null,null,null,null,null,null,null,"","","",""]
[50,"","","","","","",{"$f":"IF(M54>0,実績報告書!$W$8,\"\")","v":""},"","","","",0,null,null,null,null,null,null,null,null,null,null,null,null,null,null,null,null,null,null,null,null,null,null,"","","",""]
[{"$f":"ROW()-4","v":51},{"$f":"IFERROR(INDIRECT(\"個票\"&$A55&\"！$h$7\"),\"\")","v":""},"","","","","",{"$f":"IF(M55>0,実績報告書!$W$8,\"\")","v":""},"","","","",0,null,null,null,null,null,null,null,null,null,null,null,null,null,null,null,null,null,null,null,null,null,null,"","",{"$f":"IFERROR(INDIRECT(\"個票\"&$A55&\"！$m$18\"),\"\")","v":""},{"$f":"IFERROR(INDIRECT(\"個票\"&$A55&\"！$v$18\"),\"\")","v":""}]
[52,"","","","","","",{"$f":"IF(M56>0,実績報告書!$W$8,\"\")","v":""},"","","","",0,null,null,null,null,null,null,null,null,null,null,null,null,null,null,null,null,null,null,null,null,null,null,"","","",""]
[53,"","","","","","",{"$f":"IF(M57>0,実績報告書!$W$8,\"\")","v":""},"","","","",0,null,null,null,null,null,null,null,null,null,null,null,null,null,null,null,null,null,null,null,null,null,null,"","","",""]
[54,"","","","","","",{"$f":"IF(M58>0,実績報告書!$W$8,\"\")","v":""},"","","","",0,null,null,null,null,null,null,null,null,null,null,null,null,null,null,null,null,null,null,null,null,null,null,"","","",""]
[55,"","","","","","",{"$f":"IF(M59>0,実績報告書!$W$8,\"\")","v":""},"","","","",0,null,null,null,null,null,null,null,null,null,null,null,null,null,null,null,null,null,null,null,null,null,null,"","","",""]
[56,"","","","","","",{"$f":"IF(M60>0,実績報告書!$W$8,\"\")","v":""},"","","","",0,null,null,null,null,null,null,null,null,null,null,null,null,null,null,null,null,null,null,null,null,null,null,"","","",""]
[57,"","","","","","",{"$f":"IF(M61>0,実績報告書!$W$8,\"\")","v":""},"","","","",0,null,null,null,null,null,null,null,null,null,null,null,null,null,null,null,null,null,null,null,null,null,null,"","","",""]
[58,"","","","","","",{"$f":"IF(M62>0,実績報告書!$W$8,\"\")","v":""},"","","","",0,null,null,null,null,null,null,null,null,null,null,null,null,null,null,null,null,null,null,null,null,null,null,"","","",""]
[59,"","","","","","",{"$f":"IF(M63>0,実績報告書!$W$8,\"\")","v":""},"","","","",0,null,null,null,null,null,null,null,null,null,null,null,null,null,null,null,null,null,null,null,null,null,null,"","","",""]
[60,"","","","","","",{"$f":"IF(M64>0,実績報告書!$W$8,\"\")","v":""},"","","","",0,null,null,null,null,null,null,null,null,null,null,null,null,null,null,null,null,null,null,null,null,null,null,"","","",""]
[61,"","","","","","",{"$f":"IF(M65>0,実績報告書!$W$8,\"\")","v":""},"","","","",0,null,null,null,null,null,null,null,null,null,null,null,null,null,null,null,null,null,null,null,null,null,null,"","","",""]
[62,"","","","","","",{"$f":"IF(M66>0,実績報告書!$W$8,\"\")","v":""},"","","","",0,null,null,null,null,null,null,null,null,null,null,null,null,null,null,null,null,null,null,null,null,null,null,"","","",""]
[63,"","","","","","",{"$f":"IF(M67>0,実績報告書!$W$8,\"\")","v":""},"","","","",0,null,null,null,null,null,null,null,null,null,null,null,null,null,null,null,null,null,null,null,null,null,null,"","","",""]
[64,"","","","","","",{"$f":"IF(M68>0,実績報告書!$W$8,\"\")","v":""},"","","","",0,null,null,null,null,null,null,null,null,null,null,null,null,null,null,null,null,null,null,null,null,null,null,"","","",""]
[65,"",{"$f":"IFERROR(INDIRECT(\"個票\"&$A69&\"！$t$7\"),\"\")","v":""},{"$f":"IFERROR(INDIRECT(\"個票\"&$A69&\"！$h$10\"),\"\")","v":""},{"$f":"IFERROR(INDIRECT(\"個票\"&$A69&\"！$AC$9\"),\"\")","v":""},{"$f":"IFERROR(INDIRECT(\"個票\"&$A69&\"！$d$9\"),\"\")","v":""},{"$f":"IFERROR(INDIRECT(\"個票\"&$A69&\"！$H$9\")&INDIRECT(\"個票\"&$A69&\"！$L$9\"),\"\")","v":""},{"$f":"IF(M69>0,実績報告書!$W$8,\"\")","v":""},"","","","",{"$f":"SUM(I69,J69,K69,L69)","v":0},null,null,null,null,null,null,null,null,null,null,null,null,null,null,null,null,null,null,null,null,null,null,"","","",""]
[{"$f":"ROW()-4","v":66},{"$f":"IFERROR(INDIRECT(\"個票\"&$A70&\"！$h$7\"),\"\")","v":""},"","","","","",{"$f":"IF(M70>0,実績報告書!$W$8,\"\")","v":""},{"$f":"IFERROR(INDIRECT(\"個票\"&$A70&\"！$ag$17\"),\"\")","v":""},{"$f":"IFERROR(INDIRECT(\"個票\"&$A70&\"！$ag$22\"),\"\")","v":""},{"$f":"IFERROR(INDIRECT(\"個票\"&$A70&\"！$ag$37\"),\"\")","v":""},{"$f":"IFERROR(INDIRECT(\"個票\"&$A70&\"！$ag$47\"),\"\")","v":""},0,null,null,null,null,null,null,null,null,null,null,null,null,null,null,null,null,null,null,null,null,null,null,{"$f":"IFERROR(INDIRECT(\"個票\"&$A70&\"！$m$19\"),\"\")","v":""},{"$f":"IFERROR(INDIRECT(\"個票\"&$A70&\"！$v$19\"),\"\")","v":""},"",""]
[67,"","","","","","",{"$f":"IF(M71>0,実績報告書!$W$8,\"\")","v":""},"","","","",0,null,null,null,null,null,null,null,null,null,null,null,null,null,null,null,null,null,null,null,null,null,null,"","","",""]
[68,"","","","","","",{"$f":"IF(M72>0,実績報告書!$W$8,\"\")","v":""},"","","","",0,null,null,null,null,null,null,null,null,null,null,null,null,null,null,null,null,null,null,null,null,null,null,"","","",""]
[69,"","","","","","",{"$f":"IF(M73>0,実績報告書!$W$8,\"\")","v":""},"","","","",0,null,null,null,null,null,null,null,null,null,null,null,null,null,null,null,null,null,null,null,null,null,null,"","","",""]
[70,"","","","","","",{"$f":"IF(M74>0,実績報告書!$W$8,\"\")","v":""},"","","","",0,null,null,null,null,null,null,null,null,null,null,null,null,null,null,null,null,null,null,null,null,null,null,"","","",""]
[71,"","","","","","",{"$f":"IF(M75>0,実績報告書!$W$8,\"\")","v":""},"","","","",0,null,null,null,null,null,null,null,null,null,null,null,null,null,null,null,null,null,null,null,null,null,null,"","","",""]
[72,"","","","","","",{"$f":"IF(M76>0,実績報告書!$W$8,\"\")","v":""},"","","","",0,null,null,null,null,null,null,null,null,null,null,null,null,null,null,null,null,null,null,null,null,null,null,"","","",""]
[73,"","","","","","",{"$f":"IF(M77>0,実績報告書!$W$8,\"\")","v":""},"","","","",0,null,null,null,null,null,null,null,null,null,null,null,null,null,null,null,null,null,null,null,null,null,null,"","","",""]
[74,"","","","","","",{"$f":"IF(M78>0,実績報告書!$W$8,\"\")","v":""},"","","","",0,null,null,null,null,null,null,null,null,null,null,null,null,null,null,null,null,null,null,null,null,null,null,"","","",""]
[75,"","","","","","",{"$f":"IF(M79>0,実績報告書!$W$8,\"\")","v":""},"","","","",0,null,null,null,null,null,null,null,null,null,null,null,null,null,null,null,null,null,null,null,null,null,null,"","","",""]
[{"$f":"ROW()-4","v":76},{"$f":"IFERROR(INDIRECT(\"個票\"&$A80&\"！$h$7\"),\"\")","v":""},"","","","","",{"$f":"IF(M80>0,実績報告書!$W$8,\"\")","v":""},"","","","",0,null,null,null,null,null,null,null,null,null,null,null,null,null,null,null,null,null,null,null,null,null,null,"","",{"$f":"IFERROR(INDIRECT(\"個票\"&$A80&\"！$m$18\"),\"\")","v":""},{"$f":"IFERROR(INDIRECT(\"個票\"&$A80&\"！$v$18\"),\"\")","v":""}]
[77,"","","","","","",{"$f":"IF(M81>0,実績報告書!$W$8,\"\")","v":""},"","","","",0,null,null,null,null,null,null,null,null,null,null,null,null,null,null,null,null,null,null,null,null,null,null,"","","",""]
[78,"","","","","","",{"$f":"IF(M82>0,実績報告書!$W$8,\"\")","v":""},"","","","",0,null,null,null,null,null,null,null,null,null,null,null,null,null,null,null,null,null,null,null,null,null,null,"","","",""]
[79,"","","","","","",{"$f":"IF(M83>0,実績報告書!$W$8,\"\")","v":""},"","","","",0,null,null,null,null,null,null,null,null,null,null,null,null,null,null,null,null,null,null,null,null,null,null,"","","",""]
[80,"","","","","","",{"$f":"IF(M84>0,実績報告書!$W$8,\"\")","v":""},"","","","",0,null,null,null,null,null,null,null,null,null,null,null,null,null,null,null,null,null,null,null,null,null,null,"","","",""]
[81,"","","","","","",{"$f":"IF(M85>0,実績報告書!$W$8,\"\")","v":""},"","","","",0,null,null,null,null,null,null,null,null,null,null,null,null,null,null,null,null,null,null,null,null,null,null,"","","",""]
[82,"","","","","","",{"$f":"IF(M86>0,実績報告書!$W$8,\"\")","v":""},"","","","",0,null,null,null,null,null,null,null,null,null,null,null,null,null,null,null,null,null,null,null,null,null,null,"","","",""]
[83,"","","","","","",{"$f":"IF(M87>0,実績報告書!$W$8,\"\")","v":""},"","","","",0,null,null,null,null,null,null,null,null,null,null,null,null,null,null,null,null,null,null,null,null,null,null,"","","",""]
[84,"","","","","","",{"$f":"IF(M88>0,実績報告書!$W$8,\"\")","v":""},"","","","",0,null,null,null,null,null,null,null,null,null,null,null,null,null,null,null,null,null,null,null,null,null,null,"","","",""]
[85,"","","","","","",{"$f":"IF(M89>0,実績報告書!$W$8,\"\")","v":""},"","","","",0,null,null,null,null,null,null,null,null,null,null,null,null,null,null,null,null,null,null,null,null,null,null,"","","",""]
[86,"","","","","","",{"$f":"IF(M90>0,実績報告書!$W$8,\"\")","v":""},"","","","",0,null,null,null,null,null,null,null,null,null,null,null,null,null,null,null,null,null,null,null,null,null,null,"","","",""]
[87,"","","","","","",{"$f":"IF(M91>0,実績報告書!$W$8,\"\")","v":""},"","","","",0,null,null,null,null,null,null,null,null,null,null,null,null,null,null,null,null,null,null,null,null,null,null,"","","",""]
[88,"","","","","","",{"$f":"IF(M92>0,実績報告書!$W$8,\"\")","v":""},"","","","",0,null,null,null,null,null,null,null,null,null,null,null,null,null,null,null,null,null,null,null,null,null,null,"","","",""]
[89,"","","","","","",{"$f":"IF(M93>0,実績報告書!$W$8,\"\")","v":""},"","","","",0,null,null,null,null,null,null,null,null,null,null,null,null,null,null,null,null,null,null,null,null,null,null,"","","",""]
[90,"","","","","","",{"$f":"IF(M94>0,実績報告書!$W$8,\"\")","v":""},"","","","",0,null,null,null,null,null,null,null,null,null,null,null,null,null,null,null,null,null,null,null,null,null,null,"","","",""]
[91,"","","","","","",{"$f":"IF(M95>0,実績報告書!$W$8,\"\")","v":""},"","","","",0,null,null,null,null,null,null,null,null,null,null,null,null,null,null,null,null,null,null,null,null,null,null,"","","",""]
[92,"","","","","","",{"$f":"IF(M96>0,実績報告書!$W$8,\"\")","v":""},"","","","",0,null,null,null,null,null,null,null,null,null,null,null,null,null,null,null,null,null,null,null,null,null,null,"","","",""]
[93,"","","","","","",{"$f":"IF(M97>0,実績報告書!$W$8,\"\")","v":""},"","","","",0,null,null,null,null,null,null,null,null,null,null,null,null,null,null,null,null,null,null,null,null,null,null,"","","",""]
[94,"","","","","","",{"$f":"IF(M98>0,実績報告書!$W$8,\"\")","v":""},"","","","",0,null,null,null,null,null,null,null,null,null,null,null,null,null,null,null,null,null,null,null,null,null,null,"","","",""]
[95,"","","","","","",{"$f":"IF(M99>0,実績報告書!$W$8,\"\")","v":""},"","","","",0,null,null,null,null,null,null,null,null,null,null,null,null,null,null,null,null,null,null,null,null,null,null,"","","",""]
[96,"","","","","","",{"$f":"IF(M100>0,実績報告書!$W$8,\"\")","v":""},"","","","",0,null,null,null,null,null,null,null,null,null,null,null,null,null,null,null,null,null,null,null,null,null,null,"","","",""]
[97,"","","","","","",{"$f":"IF(M101>0,実績報告書!$W$8,\"\")","v":""},"","","","",{"$f":"SUM(I101,J101,K101,L101)","v":0},null,null,null,null,null,null,null,null,null,null,null,null,null,null,null,null,null,null,null,null,null,null,"","","",""]
[98,"","","","","","",{"$f":"IF(M102>0,実績報告書!$W$8,\"\")","v":""},"","","","",{"$f":"SUM(I102,J102,K102,L102)","v":0},null,null,null,null,null,null,null,null,null,null,null,null,null,null,null,null,null,null,null,null,null,null,"","","",""]
[99,"","","","","","",{"$f":"IF(M103>0,実績報告書!$W$8,\"\")","v":""},"","","","",{"$f":"SUM(I103,J103,K103,L103)","v":0},null,null,null,null,null,null,null,null,null,null,null,null,null,null,null,null,null,null,null,null,null,null,"","","",""]
[100,"","","","","","",{"$f":"IF(M104>0,実績報告書!$W$8,\"\")","v":""},"","","","",{"$f":"SUM(I104,J104,K104,L104)","v":0},null,null,null,null,null,null,null,null,null,null,null,null,null,null,null,null,null,null,null,null,null,null,"","","",""]
[null,null,null,null,null,null,null,null,null,null,null,null,null,null,null,null,null,null,null,null,null,null,null,null,null,null,null,null,null,null,null,null,null,null,null,null,null,"",""]
[]
[null,null,"　"]

{"sheet":"法人実績額内訳","index":6,"n_rows":9,"n_cols":2,"rows_kept":9,"cut":false,"hidden":false,"merged":[[2,1,3,1],[2,0,3,0]]}
["法人実績額内訳"]
[null,"（単位：千円）"]
[null,"実績額"]
[]
["介護慰労金事業",{"$f":"SUM(実績額一覧!I5:I104)","v":251}]
["感染症対策を徹底した上での\n介護サービス提供支援事業",{"$f":"SUM(実績額一覧!J5:J104)","v":1706}]
["在宅サービス事業所による\n利用者への再開支援への助成事業",{"$f":"SUM(実績額一覧!K5:K104)","v":19.5}]
["在宅サービス事業所における\n環境整備への助成事業",{"$f":"SUM(実績額一覧!L5:L104)","v":152}]
["合計",{"$f":"SUM(B5:B8)","v":2128.5}]

{"sheet":"計算用","index":7,"n_rows":67,"n_cols":8,"rows_kept":67,"cut":false,"hidden":true,"merged":[]}
[null,null,null,null,null,null,null,"※本シートは絶対に編集しないこと。"]
["施設区分"]
["陽性者(濃厚接触者)発生施設","通所系･施設系で1日以上勤務又は訪問系で陽性者等に1日以上対応","訪問系で陽性者等への対応はないが対象期間に10日以上勤務","対象期間の勤務が９日以下"]
["その他の施設","対象期間に10日以上勤務","対象期間の勤務が9日以下"]
[]
[]
["慰労金単価"]
[{"$f":"A3&B3","v":"陽性者(濃厚接触者)発生施設通所系･施設系で1日以上勤務又は訪問系で陽性者等に1日以上対応"},20]
[{"$f":"A3&C3","v":"陽性者(濃厚接触者)発生施設訪問系で陽性者等への対応はないが対象期間に10日以上勤務"},5]
[{"$f":"A3&D3","v":"陽性者(濃厚接触者)発生施設対象期間の勤務が９日以下"},0]
[{"$f":"A4&B4","v":"その他の施設対象期間に10日以上勤務"},5]
[{"$f":"A4&C4","v":"その他の施設対象期間の勤務が9日以下"},0]
[]
["支払金額"]
[50000]
[200000]
["なし"]
["あり"]
[]
[]
["北海道"]
["青森県"]
["岩手県"]
["宮城県"]
["秋田県"]
["山形県"]
["福島県"]
["茨城県"]
["栃木県"]
["群馬県"]
["埼玉県"]
["千葉県"]
["東京都"]
["神奈川県"]
["新潟県"]
["富山県"]
["石川県"]
["福井県"]
["山梨県"]
["長野県"]
["岐阜県"]
["静岡県"]
["愛知県"]
["三重県"]
["滋賀県"]
["京都府"]
["大阪府"]
["兵庫県"]
["奈良県"]
["和歌山県"]
["鳥取県"]
["島根県"]
["岡山県"]
["広島県"]
["山口県"]
["徳島県"]
["香川県"]
["愛媛県"]
["高知県"]
["福岡県"]
["佐賀県"]
["長崎県"]
["熊本県"]
["大分県"]
["宮崎県"]
["鹿児島県"]
["沖縄県"]